Workbook

Sheet Cover Sheet
A1: NRS Local Area Migration Spreadsheet - 2022 Update
A2: This spreadsheet contains the data tables and figures on a wide range of migration indicators.
A3: Link to NRS website: Local Area Migration (opens a new window)
A4: Publication date
A5: The data tables in this spreadsheet were originally published at 9.30am on 11 August 2022.
A6: Geographic coverage
A7: Scottish administrative areas.
A8: Time period
A9: 2004 to 2021 (mid-year or calendar year)
A10: Supplier
A11: National Records of Scotland (NRS).
A12: Department
A13: Demographic Statistics and Vital Events.
A14: Data sources
A15: The figures come from a wide range of sources which can be found on the "Information" Sheet under the relevant topic name.
A16: Accessibility
A17: Most tables have been redesigned to improve accessibility, in line with the Governemnt Statistical Service guidelines. However, in order to retain the functionality of the sheets with light purple and dark purple coloured tabs, these sheets have not been altered. All the data is available on an accessible sheet.
A18: Shorthand used in Tables
A19: Some tables use shorthand: [c] = confidential - small number, may be disclosive; [low] = zero due to rounding; [w] = none recorded; [x] = not available; [z] = not applicable.
A20: Website link for UK equivalent data (2020)
A21: Local Area Migration Indictors for UK (ONS website - opens a new window)
A22: Copyright and reproduction
A23: The content of this spreadsheet is © Crown copyright 2022. You may re-use this information (not including logos) free of charge in any format or medium, under the terms of the Open Government Licence.
A24: View the open government licence at the National Archives (opens a new window).
A25: Contact us
A26: Please get in touch if you need any further information, or have any suggestions for improvement.
A27: Statistics Customer Services telephone: (0131) 314 4299
A28: E-mail: population.migration@nrscotland.gov.uk
A29: For media enquiries, please contact communications@nrscotland.gov.uk
A30: Go to the Introduction

Sheet Table of Contents
A1: Table of Contents
A2: This worksheet contains one table.
A3: Date published: 11 August 2022
A4: Worksheet Name | B4: Worksheet Information
A5: Cover sheet | B5: Cover sheet
A6: Notes | B6: Notes for tables
A7: Introduction | B7: Introduction - How this spreadsheet works
A8: Information | B8: Provides information on each indicator, data sources and any strengths and weaknesses to be aware of
A9: Comparing Indicators | B9: Allows you to compare up to three indicators for one selected area
A10: Comparing Areas | B10: Allows you to compare up to three Council areas for one selected indicator
A11: Comparing NHS Board Areas | B11: Allows you to compare up to three NHS Board areas for one selected indicator
A12: Total Net Migration | B12: Total net migration
A13: Total net migration for ages 0-15 | B13: Total net migration for ages 0-15
A14: Total net migration for ages 16-64 | B14: Total net migration for ages 16-64
A15: Total net migration for people aged 65+ | B15: Total net migration for people aged 65+
A16: Total in-migration | B16: Total in-migration
A17: Total out-migration | B17: Total out-migration
A18: Within Scotland net migration | B18: Within Scotland net migration
A19: Within Scotland in-migration | B19: Within Scotland in-migration
A20: Within Scotland out-migration | B20: Within Scotland out-migration
A21: Rest of UK net migration | B21: Rest of UK net migration
A22: Rest of UK in-migration | B22: Rest of UK in-migration
A23: Rest of UK out-migration | B23: Rest of UK out-migration
A24: International net migration | B24: International net migration
A25: International in-migration | B25: International in-migration
A26: International out-migration | B26: International out-migration
A27: Census population by country of birth | B27: Census population by country of birth
A28: Population born outside the UK | B28: Population born outside the UK
A29: Population with non-British nationality | B29: Population with non-British nationality
A30: National Insurance Number (NINo) allocations | B30: National Insurance Number (NINo) allocations
A31: EU Settlement Scheme (EUSS) applications (by nationality) | B31: EU Settlement Scheme (EUSS) applications (by nationality)
A32: EU Settlement Scheme (EUSS) applications (by age group) | B32: EU Settlement Scheme (EUSS) applications (by age group)
A33: EU Settlement Scheme (EUSS) applications (concluded applications) | B33: EU Settlement Scheme (EUSS) applications (concluded applications)
A34: Pupils from a minority ethnic group (2021) | B34: Pupils from a minority ethnic group (2021)
A35: Pupils from a minority ethnic group (time series) | B35: Pupils from a minority ethnic group (time series)
A36: Pupils with English as an additional language | B36: Pupils with English as an additional language
A37: Births to non-UK mothers | B37: Births to non-UK mothers
A38: Births to non-UK mothers as a percentage of total births | B38: Births to non-UK mothers as a percentage of total births
A39: Citizenships | B39: Citizenships

Sheet Notes
A1: Notes related to the data in this spreadsheet
A2: This worksheet contains one table.
A3: Return to front page
A4: Note Number | B4: Note Text | C4: Note Link
A5: Note 1 | B5: Figures include asylum seekers. For 2015-16 onwards, figures also include refugees.
A6: Note 2 | B6: Movements to/from the armed forces were included in these figures in previous releases of this spreadsheet but are no longer treated as migration. Armed forces movements are included in the mid-year population estimates under another category.
A7: Note 3 | B7: Source for data: 'Total Migration to or from Scotland' section of the NRS website. Also choose from the left hand side: "Migration within Scotland", "Rest of the UK Migration" and "International Migration". Migration within Scotland is estimated based on GP registration data. This may have been affected by the COVID-19 pandemic. During the pandemic, many people may have moved address without registering a change of address with their GP. In particular, students may have moved from their term-time address to their parents’ address. There may also be people who registered a change of address with their GP during one mid-year period, when the move itself could have taken place in the past. For example, people may have wanted to check that their GP had details of their correct address to ensure that they received details of their COVID-19 vaccination appointments. NRS have not made any adjustments to the established method to estimate migration within Scotland. | C7: NRS Website - Migration Data
A8: Note 4 | B8: The NHS Board areas used for estimates between 2003-04 and 2010-11 are those that existed between 2006 and 2014. The 2011-12 estimates onwards use the NHS Board areas that came into force in April 2014.
A9: Note 5 | B9: International migration estimates for the year ending June 2021 are using a different method to those previously published. They rely less on International Passenger Survey (IPS) data and make greater use of administrative data. This means that the latest figures on international migration may not be comparable with previous estimates produced from the IPS or more recently using some statistical modelling (for the year ending June 2020). | C9: NRS Website - Migration Methods
A10: Note 6 | B10: Totals have been rounded to the nearest ten at council level, and the nearest hundred at national level. This may result in the sum of council area data differing from the national totals.
A11: Note 7 | B11: In April 2019, a boundary change at Cardowan by Stepps, between Glasgow and North Lanarkshire council areas (Greater Glasgow and Clyde and Lanarkshire health board areas) resulted in approximately 400 people transferring from Glasgow to North Lanarkshire. These moves have been accounted for as migration within Scotland in 2018-19 estimates.
A12: Note 8 | B12: Includes UK (part not specified), Channel Islands, Isle of Man and Ireland (part not specified). 2011 Census data is based on NHS Health Board areas that existed between 2006 and 2014.
A13: Note 9 | B13: Source: Scotland's Census Standard Outputs file 'KS204SC' | C13: NRS Website - 2011 Census Results
A14: Note 10 | B14: In order to protect against disclosure of personal information, some records have been swapped between different geographic areas. Some cell values will be affected, particularly small values at the most detailed geographies.
A15: Note 11 | B15: A number of census tables including information on country of birth incorrectly classified 1,565 people with country of birth coded as Malta or Cyprus. These people were incorrectly classified as ‘EU countries: member countries in 2001’, and not ‘EU countries: Accession countries April 2001 to March 2011’. Previous versions of this workbook used the incorrect unrevised figures; this has now been corrected.
A16: Note 12 | B16: The data above comes from the ONS Annual Population Survey (APS) and Labour Force Survey (LFS). From 2020, the LFS has used a new weighting methodology to reflect the change in survey operations during the coronavirus (COVID-19) pandemic and caution should be taken when making comparisons. More information on the reweighting and other impacts of COVID-19 on the data can be found on the ONS website. | C16: ONS Website - Population born outside UK
A17: Note 13 | B17: Figures are rounded to the nearest thousand and come with confidence intervals, which can be found on the ONS website. Totals may not sum due to rounding. | C17: ONS Website - Population born outside UK
A18: Note 14 | B18: Source: 'Table 1.1' and 'Table 1.2' in the 'Data' file, from the Population by Country of Birth and Nationality section of the NRS website. | C18: NRS Website - Data Source
A19: Note 15 | B19: National Records of Scotland (NRS) has made the decision to cancel the publication of Scotland’s population by country of birth and nationality for the year ending December 2021, which would usually have been out in May 2022. This is therefore shown as [x] = not available for 2021.
A20: Note 16 | B20: These statistics are usually updated quarterly. The latest data can be accessed at the GOV.UK website. Data for 2021 will be added when it becomes available. | C20: GOV.UK Website - Latest NINO Data
A21: Note 17 | B21: Figures are rounded to the nearest ten. Some additional disclosure control has been applied. Totals may not sum due to rounding method used.
A22: Note 18 | B22: Registration date is derived from the date at which a NINo is maintained on the National Insurance Recording & Pay As You Earn System.
A23: Note 19 | B23: Data for 2021 will be added when it becomes available. NINo operations were paused for the majority of applicants from mid-March 2020 and therefore estimates for 2020 and 2021 should be viewed with caution. The service for EU Nationals was more heavily disrupted than for Non-EU nationals. This was due to the closure of face-to-face services which at the time (prior to the end of the transition period, 31 December 2020) required EU nationals to attend an evidence of identity interview prior to a NINo being allocated. The majority of Non-EU Nationals were able to access the NINo service via a postal process as they would have had their identity verified by another government department, for example through the Home Office visa process. The postal process was reinstated on 1 June 2020, after being suspended in March 2020. Further information about the latest NINo statistics can be found on the GOV.UK website. | C23: GOV.UK Website - NINO allocations to June 2021
A24: Note 20 | B24: The quarterly National Insurance number allocations to adult overseas nationals entering the UK National Statistics publication is currently suspended due to an underlying data issue. Progress is being made to investigate. Once a solution is in place DWP will reinstate the statistical series as soon as possible in line with the UK Statistics Authority Code of Practice for Statistics. DWP will provide an update by early October 2022 or as soon as they have any further information. | C24: GOV.UK Website - NINO Data Suspension
A25: Note 21 | B25: Improvements have been made to the allocation of migrants whose residential address is incomplete. Figures reflect the best estimate of an overseas national's locality at the time of registering for a NINo. A very small proportion of NINo registrations are to overseas nationals registering whilst abroad.
A26: Note 22 | B26: Source: Department for Work and Pensions (DWP), National Insurance Number Allocations to Adult Overseas Nationals - data produced using the Stat-Xplore tool at the DWP website. | C26: DWP Website - StatsXplore
A27: Note 23 | B27: These statistics are updated quarterly. The latest data can be accessed at the GOV.UK website. | C27: GOV.UK Website - Latest Settlement Scheme data
A28: Note 24 | B28: Figures in these tables have been derived from live management information systems and are provisional and subject to change. Figures are rounded to the nearest 10, therefore table breakdowns may not match overall totals.
A29: Note 25 | B29: Tables include data since testing of the scheme began on 28 August 2018 through to 31 December 2021.
A30: Note 26 | B30: EEA EFTA (Iceland, Liechtenstein, Norway) plus Swiss nationals were able to apply from 30 March 2019, when the scheme fully launched.
A31: Note 27 | B31: The EU Settlement Scheme allows those currently resident in the UK under EU law to obtain a status under the UK’s Immigration Rules. As such it is open to all those currently here under EU law, which includes eligible non-EEA nationals.
A32: Note 28 | B32: These statistics are released as Experimental Statistics, meaning they are going through development and evaluation.
A33: Note 29 | B33: Applications received by region and local authority exclude a small number of records (2.6%) where locational data is not currently in an analysable form from live systems. See Notes for EUSS_01 on the Home Office website | C33: Home Office website
A34: Note 30 | B34: Applications received by nationality exclude small numbers of records (0.01%), in which nationality is not currently in an analysable form from live systems.
A35: Note 31 | B35: Applications received by age group exclude small numbers of records (0.01%) where age is not currently in an analysable form from live systems.
A36: Note 32 | B36: Other outcomes include withdrawn or void applications, invalid applications and refused applications.
A37: Note 33 | B37: The data in this table are mainly derived from the annual pupil census which takes place in September of the relevant year. Data is from the GOV.SCOT website. | C37: Gov.Scot website - Supplementary Statistics
A38: Note 34 | B38: Grant aided school figures are displayed separately, but are included in the Scotland total. Grant aided school figures exclude grant aided special schools as no ethnicity information is collected for them.
A39: Note 35 | B39: 'White (all)' includes all known categories other than 'Minority ethnic group. 'White - British' includes White - Scottish and White - Other British.
A40: Note 36 | B40: 'White other' includes 'White - Gypsy/Traveller', 'White - Other', 'White - Irish' and 'White - Polish'.
A41: Note 37 | B41: 'Minority ethnic group' includes all known categories other than 'White - Scottish', 'White - Other British' and 'White other'.
A42: Note 38 | B42: Source: Pupils Census, Scottish Government publication and from requested custom data (contact: AnalyticalServices@educationscotland.gov.scot ) | C42: Gov.Scot website
A43: Note 39 | B43: Minority ethnic group includes all categories other than 'White - UK' and 'White - other' and 'Unknown/not disclosed' (up to 2010). From 2011, it includes all categories other than 'White - Scottish', 'White - Other British' and 'White - Other'.
A44: Note 40 | B44: Ethnicity figures for 2011 to latest year are not directly comparable to previous years due to the changes in ethnicity categories in 2011. Categories are based on those used in 2011 population census.
A45: Note 41 | B45: The competency levels 'New to English', 'Early Acquisition', 'Developing competence' and 'Competent' have been combined. Totals may not sum due to data being suppressed where the number of pupils is between 1 and 4.
A46: Note 42 | B46: Births to non-UK mothers is the total of all births of mothers not born in the UK, Isle of Man, or the Channel Islands, or where the birth of the mother is not stated. Prior to 2020, the number of 'not stated' was small (below 10) for each year, however, in 2020 there were 263 births without a country of birth of the mother stated, with the majority of these registered in Glasgow City/NHS Greater Glasgow and Clyde. This may have been the result of impacts of the coronavirus (COVID-19) pandemic on birth registrations. The number of 'not stated in 2021 was lower (97) but still higher than usual. The full breakdown of births by mother's country of birth is available in the NRS Vital Events Reference Tables, Table 3.09. | C46: NRS Wesite - Births to non-UK borm Mothers
A47: Note 43 | B47: Source: NRS Vital Events Reference Tables, Table 3.09. NRS Website. | C47: NRS Website - Vital Events
A48: Note 44 | B48: Source: Citizenship data tables immigration statistics, Home Office website. | C48: Home Office Website
A49: Note 45 | B49: Definition of citizenship ceremonies: A ceremony organised by County or Local Authorities for successful applicants over 18 years of age for British citizenship. At the ceremony the applicant takes the Oath or Affirmation of allegiance to Her Majesty the Queen and the Pledge of loyalty to the United Kingdom. Since 1 January 2004 this has been the final stage in the process of attaining British citizenship. The citizenship ceremony is organised by the relevant local authority, and happens after the Home Office have processed the application.
A50: Note 46 | B50: 2004 data reflects ceremonies held only for applications received and decided in that year. Persons granted citizenship who applied before 2004 were not required to attend a ceremony.
A51: Note 47 | B51: Data for 2021 have not been published but will be added once they have been released.

Sheet Introduction
B5: Local Area Migration
B26: The main worksheets are:
B28: Information on Indicators and Data Sources | E28: Provides information on each indicator, data sources and any strengths and weaknesses to be aware of
B29: Comparing Indicators | E29: Allows you to compare up to three indicators for one selected area
B30: Comparing Areas | E30: Allows you to compare up to three Council areas for one selected indicator
B31: Comparing NHS Board Areas | E31: Allows you to compare up to three NHS Board areas for one selected indicator
B34: Background data and information on the data source is also available:
B36: Total net migration | F36: Information | G36: Data
B37: Total net migration for ages 0-15 | F37: Information | G37: Data
B38: Total net migration for ages 16-64 | F38: Information | G38: Data
B39: Total net migration for people aged 65+ | F39: Information | G39: Data
B40: Total in-migration | F40: Information | G40: Data
B41: Total out-migration | F41: Information | G41: Data
B42: Within Scotland net migration | F42: Information | G42: Data
B43: Within Scotland in-migration | F43: Information | G43: Data
B44: Within Scotland out-migration | F44: Information | G44: Data
B45: Rest of UK net migration | F45: Information | G45: Data
B46: Rest of UK in-migration | F46: Information | G46: Data
B47: Rest of UK out-migration | F47: Information | G47: Data
B48: International net migration | F48: Information | G48: Data
B49: International in-migration | F49: Information | G49: Data
B50: International out-migration | F50: Information | G50: Data
B51: Census population by country of birth | F51: Information | G51: Data
B52: Population born outside the UK | F52: Information | G52: Data
B53: Population with non-British nationality | F53: Information | G53: Data
B54: National Insurance Number (NINo) allocations | F54: Information | G54: Data
B55: EU Settlement Scheme (EUSS) applications (by nationality) | F55: Information | G55: Data
B56: EU Settlement Scheme (EUSS) applications (by age group) | F56: Information | G56: Data
B57: EU Settlement Scheme (EUSS) applications (concluded applications) | F57: Information | G57: Data
B58: Pupils from a minority ethnic group (2021) | F58: Information | G58: Data
B59: Pupils from a minority ethnic group (time series) | F59: Information | G59: Data
B60: Pupils with English as an additional language | F60: Information | G60: Data
B61: Births to non-UK mothers | F61: Information | G61: Data
B62: Births to non-UK mothers as a percentage of total births | F62: Information | G62: Data
B63: Citizenships | F63: Information | G63: Data
B64: Data can also be compared using our interactive visualisation app | F64: NRS website (opens in a new window).

Sheet Information
C5: Information on Indicators and Data Sources
C7: This page contains information on the strengths and weaknesses of each indicator. Additional information is provided for some key data sources of migration data, as well as links to further information.
C9: Click on the title to view information on the indicator:
C10: Notes for tables
C11: Total net migration
C12: Total net migration for ages 0-15
C13: Total net migration for ages 16-64
C14: Total net migration for people aged 65+
C15: Total in-migration
C16: Total out-migration
C17: Within Scotland net migration
C18: Within Scotland in-migration
C19: Within Scotland out-migration
C20: Rest of UK net migration
C21: Rest of UK in-migration
C22: Rest of UK out-migration
C23: International net migration
C24: International in-migration
C25: International out-migration
C26: Census population by country of birth
C27: Population born outside the UK
C28: Population with non-British nationality
C29: National Insurance Number (NINo) allocations
C30: EU Settlement Scheme (EUSS) applications
C31: Pupils from a minority ethnic group
C32: Pupils with English as an additional language
C33: Births to non-UK mothers
C34: Citizenships
C36: Additional information on key data sources used for the indicators:
C37: Community Health Index (CHI)
C38: International Passenger Survey (IPS)
C39: National Health Service Central Register (NHSCR)
C40: NRS mid-year population and migration estimates
C42: Total net migration
C43: Indicator of: | D43: Difference between in and out migration for the rest of the UK, within Scotland and internationally.
C44: Information: | D44: These figures are published by NRS and relate to total net migration (difference between immigration and emigration). They include asylum seekers and rounding adjustments. Refugees are also included from 2015-16 onwards. More information on the methodology for the NRS migration estimates can be found in the Migration section of this website.
C45: Strengths: | D45: Provides an estimate of all long-term migrants (i.e. those that stay for 12 months or more) at Council and NHS Board area level.
C46: Weaknesses: | D46: Estimates are only produced annually, about 10 months after the period to which they refer, and rely on administrative and survey data rather than a comprehensive count of people moving.
C47: Source: | D47: 'Total Migration To and From Scotland' section of the NRS website
C49: Total net migration for ages 0-15
C50: Indicator of: | D50: Difference between in and out migration for the rest of the UK, within Scotland and internationally of people aged 15 and under
C51: Information: | D51: These figures include asylum seekers and rounding adjustments. Refugees are also included from 2015-16 onwards. More information on the methodology for the NRS migration estimates can be found in the Migration section of this website.
C52: Strengths: | D52: Provides an estimate of all long-term migrants (i.e. those that stay for 12 months or more) within this age group at Council and NHS Board area level.
C53: Weaknesses: | D53: Estimates are only produced annually, about 10 months after the period to which they refer, and rely on administrative and survey data rather than a comprehensive count of people moving.
C54: Source: | D54: 'Total Migration To and From Scotland' section of the NRS website
C56: Total net migration for ages 16-64
C57: Indicator of: | D57: Difference between in and out migration for the rest of the UK, within Scotland and internationally of people aged between 16 and 64
C58: Information: | D58: These figures include asylum seekers and rounding adjustments. Refugees are also included from 2015-16 onwards. More information on the methodology for the NRS migration estimates can be found in the Migration section of this website.
C59: Strengths: | D59: Provides an estimate of all long-term migrants (i.e. those that stay for 12 months or more) within this age group at Council and NHS Board area level.
C60: Weaknesses: | D60: Estimates are only produced annually, about 10 months after the period to which they refer, and rely on administrative and survey data rather than a comprehensive count of people moving.
C61: Source: | D61: 'Total Migration To and From Scotland' section of the NRS website
C63: Total net migration for ages 65+
C64: Indicator of: | D64: Difference between in and out migration for the rest of the UK, within Scotland and internationally of people aged 65 and over
C65: Information: | D65: These figures include asylum seekers and rounding adjustments. Refugees are also included from 2015-16 onwards. More information on the methodology for the NRS migration estimates can be found in the Migration section of this website.
C66: Strengths: | D66: Provides an estimate of all long-term migrants (i.e. those that stay for 12 months or more) within this age group at Council and NHS Board area level.
C67: Weaknesses: | D67: Estimates are only produced annually, about 10 months after the period to which they refer, and rely on administrative and survey data rather than a comprehensive count of people moving.
C68: Source: | D68: 'Total Migration To and From Scotland' section of the NRS website
C70: Total in-migration
C71: Indicator of: | D71: Flow of people to administrative areas in Scotland from the rest of the UK, other areas within Scotland and internationally.
C72: Information: | D72: These figures measure total in-migration. Figures include asylum seekers, refugees are also included from 2015-16 onwards. Scotland level estimates cannot be derived by adding together the estimates for individual Council areas or NHS Board areas because administrative area estimates include moves within Scotland. It would not, therefore, be appropriate to compare total in-migration for Scotland with total in-migration for an administrative area. More information on the methodology for the NRS migration estimates can be found in the Migration section of this website.
C73: Strengths: | D73: The best available measure of immigration (or inflow) to Scotland.
C74: Weaknesses: | D74: Estimates are only produced annually, about 10 months after the period to which they refer, and rely on administrative and survey data rather than a comprehensive count of people moving.
C75: Source: | D75: 'Total Migration To and From Scotland' section of the NRS website
C77: Total out-migration
C78: Indicator of: | D78: Flow of people from administrative areas in Scotland to the rest of the UK, other areas within Scotland and internationally.
C79: Information: | D79: These figures measure total out-migration. Figures include asylum seekers. Scotland level estimates cannot be derived by adding together the estimates for individual Council areas or NHS Board areas because administrative area estimates include moves within Scotland. It would not, therefore, be appropriate to compare total out-migration for Scotland with total out-migration for an administrative area. More information on the methodology for the NRS migration estimates can be found in the Migration section of this website.
C80: Strengths: | D80: The best available measure of emigration (or outflow) from Scotland.
C81: Weaknesses: | D81: Estimates are only produced annually, about 10 months after the period to which they refer, and rely on administrative and survey data rather than a comprehensive count of people moving.
C82: Source: | D82: 'Total Migration To and From Scotland' section of the NRS website
C84: Within Scotland net migration
C85: Indicator of: | D85: Net migration between administrative areas within Scotland
C86: Information: | D86: Moves within Scotland at Council area level are derived from a combination of the National Health Service Central Register (NHSCR) and the Community Health Index (CHI), and from the NHSCR for NHS Board areas. More information on the methodology for the NRS migration estimates can be found in the Migration section of this website.
C87: Strengths: | D87: These estimates are National Statistics.
C88: Weaknesses: | D88: Estimates are only produced annually, about 10 months after the period to which they refer, and rely on administrative and survey data rather than a comprehensive count of people moving.
C89: Source: | D89: 'Migration within Scotland' section of the NRS website
C91: Within Scotland in-migration
C92: Indicator of: | D92: Flow of people to administrative areas in Scotland from other areas within Scotland
C93: Information: | D93: Moves within Scotland at Council area level are derived from a combination of the National Health Service Central Register (NHSCR) and the Community Health Index (CHI), and from the NHSCR for NHS Board areas. More information on the methodology for the NRS migration estimates can be found in the Migration section of this website.
C94: Strengths: | D94: These estimates are National Statistics.
C95: Weaknesses: | D95: Estimates are only produced annually, about 10 months after the period to which they refer, and rely on administrative and survey data rather than a comprehensive count of people moving.
C96: Source: | D96: 'Migration within Scotland' section of the NRS website
C98: Within Scotland out-migration
C99: Indicator of: | D99: Flow of people from administrative areas in Scotland to other areas within Scotland
C100: Information: | D100: Moves within Scotland at Council area level are derived from a combination of the National Health Service Central Register (NHSCR) and the Community Health Index (CHI), and from the NHSCR for NHS Board areas. More information on the methodology for the NRS migration estimates can be found in the Migration section of this website.
C101: Strengths: | D101: These estimates are National Statistics.
C102: Weaknesses: | D102: Estimates are only produced annually, about 10 months after the period to which they refer, and rely on administrative and survey data rather than a comprehensive count of people moving.
C103: Source: | D103: 'Migration within Scotland' section of the NRS website
C105: Rest of UK net migration
C106: Indicator of: | D106: Net migration between administrative areas in Scotland and the rest of the UK
C107: Information: | D107: These are the NRS National Statistics for rest of UK migration. Moves between Scottish administrative areas and the rest of the UK are derived from General Practitioner (GP) registration information. Moves between Scotland and the rest of the UK used here do not include movements to/from the armed forces. More information on the methodology for the NRS migration estimates can be found in the Migration section of this website.
C108: Strengths: | D108: These estimates are National Statistics.
C109: Weaknesses: | D109: Estimates are only produced annually at Scottish administrative area level, about 10 months after the period to which they refer, and rely on administrative and survey data rather than a comprehensive count of people moving.
C110: Source: | D110: 'Migration between Scotland and Rest of the UK' section of the NRS website
C112: Rest of UK in-migration
C113: Indicator of: | D113: Flow of people to administrative areas in Scotland from the rest of the UK
C114: Information: | D114: These are the NRS National Statistics for rest of UK migration. Moves between Scottish administrative areas and the rest of the UK are derived from the National Health Service Central Register (NHSCR) and Community Health Index (CHI). Moves between Scotland and the rest of the UK used here do not include movements to/from the armed forces. More information on the methodology for the NRS migration estimates can be found in the Migration section of this website.
C115: Strengths: | D115: These estimates are National Statistics.
C116: Weaknesses: | D116: Estimates are only produced annually at Scottish administrative area level, about 10 months after the period to which they refer, and rely on administrative and survey data rather than a comprehensive count of people moving.
C117: Source: | D117: 'Migration between Scotland and Rest of the UK' section of the NRS website
C119: Rest of UK out-migration
C120: Indicator of: | D120: Flow of people from administrative areas in Scotland to the rest of the UK
C121: Information: | D121: These are the NRS National Statistics for rest of UK migration. Moves between Scottish administrative areas and the rest of the UK are derived from General Practitioner (GP) registration information. Moves between Scotland and the rest of the UK used here do not include movements to/from the armed forces. More information on the methodology for the NRS migration estimates can be found in the Migration section of this website.
C122: Strengths: | D122: These estimates are National Statistics.
C123: Weaknesses: | D123: Estimates are only produced annually at Scottish administrative area level, about 10 months after the period to which they refer, and rely on administrative and survey data rather than a comprehensive count of people moving.
C124: Source: | D124: 'Migration between Scotland and Rest of the UK' section of the NRS website
C126: International net migration
C127: Indicator of: | D127: International net migration
C128: Information: | D128: These figures measure international net migration. International migration estimates for the year ending June 2021 are using a different method to those previously published. They rely less on International Passenger Survey (IPS) data and make greater use of administrative data. This means that the latest figures on international migration may not be comparable with previous estimates produced from the IPS or more recently using some statistical modelling (for the year ending June 2020). Data from the National Health Service Central Register (NHSCR) and the Community Health Index (CHI) are also used for this process. In March 2020 the IPS was suspended due to the pandemic. International migration for March to June 2020 has been modelled using alternative data sources. More information on the methodology for the NRS migration estimates can be found in the Migration section of this website. Asylum seekers are included for all years, refugees are also included from 2015-16 onwards.
C129: Strengths: | D129: The best available measure of international net migration for Scotland.
C130: Weaknesses: | D130: The IPS sample size for Scotland is small, making the estimates less reliable.
D131: Estimates are only produced annually, about 10 months after the period to which they refer.
C132: Source: | D132: International Migration section of the NRS website
C134: International in-migration
C135: Indicator of: | D135: International in-migration to administrative areas in Scotland.
C136: Information: | D136: These figures measure international net migration. International migration estimates for the year ending June 2021 are using a different method to those previously published. They rely less on International Passenger Survey (IPS) data and make greater use of administrative data. This means that the latest figures on international migration may not be comparable with previous estimates produced from the IPS or more recently using some statistical modelling (for the year ending June 2020). Data from the National Health Service Central Register (NHSCR) and the Community Health Index (CHI) are also used for this process. In March 2020 the IPS was suspended due to the pandemic. International migration for March to June 2020 has been modelled using alternative data sources. More information on the methodology for the NRS migration estimates can be found in the Migration section of this website. Asylum seekers are included for all years, refugees are also included from 2015-16 onwards.
C137: Strengths: | D137: The best available measure of international immigration (or inflow).
C138: Weaknesses: | D138: The IPS sample size for Scotland is small, making the estimates less reliable.
D139: Estimates are only produced annually, about 10 months after the period to which they refer.
C140: Source: | D140: International Migration section of the NRS website
C142: International out-migration
C143: Indicator of: | D143: International out-migration from administrative areas in Scotland.
C144: Information: | D144: These figures measure international net migration. International migration estimates for the year ending June 2021 are using a different method to those previously published. They rely less on International Passenger Survey (IPS) data and make greater use of administrative data. This means that the latest figures on international migration may not be comparable with previous estimates produced from the IPS or more recently using some statistical modelling (for the year ending June 2020). Data from the National Health Service Central Register (NHSCR) and the Community Health Index (CHI) are also used for this process. In March 2020 the IPS was suspended due to the pandemic. International migration for March to June 2020 has been modelled using alternative data sources. More information on the methodology for the NRS migration estimates can be found in the Migration section of this website. Asylum seekers are included for all years, refugees are also included from 2015-16 onwards.
C145: Strengths: | D145: The best available measure of international emigration (or outflow).
C146: Weaknesses: | D146: The IPS sample size for Scotland is small, making the estimates less reliable.
D147: Estimates are only produced annually, about 10 months after the period to which they refer.
C148: Source: | D148: International Migration section of the NRS website
C150: Population born outside the UK
C151: Indicator of: | D151: Resident population ('stock') of migrants based on those with non-UK country of birth
C152: Information: | D152: The country of birth data from the Annual Population Survey (APS) is used for this indicator. This information gives an estimate of the number of people living in Scotland who were born outside the UK. The data is available from 2004, on a calendar year basis. The APS comprises of data from the Labour Force Survey (LFS), plus data from the Annual Local (Area) Labour Force Survey Boosts for England, Scotland and Wales. It is updated quarterly and is published about 8 months after the time period to which it refers. Data is available at council area level although some data is suppressed. For 2020, the LFS used a new weighting methodology to reflect the change in survey operations during the coronavirus (COVID-19) pandemic and caution should be taken when making comparisons. National Records of Scotland (NRS) has made the decision to cancel the publication of Scotland’s population by country of birth and nationality for the year ending December 2021, which would usually have been out in May 2022. This is therefore shown as [x] = not available for 2021. This is due to the impending reweighting of the Annual Population Survey (APS), the data of which traditionally informs the release, which will not be complete until Autumn 2022. More information on the reweighting and other impacts of COVID-19 on the data can be found on the ONS website.
C153: Link: | D153: ONS website.
C154: Strengths: | D154: Gives a more robust estimate of change over time than looking at nationality as an individual's nationality can change.
C155: Weaknesses: | D155: LFS excludes most communal establishments and foreign students living in halls of residence, and so the number of foreign born migrants is likely to be under-reported.
D156: For some council areas an estimate cannot be made from the APS as the number of people born outside the UK is too small for the estimate to be reliable.
D157: Some people born outside the UK may have lived in the UK for a long time and are therefore not regarded as migrants.
C158: Source: | D158: 'Population by Country of Birth and Nationality' section of the NRS website
C160: Population with non-British nationality
C161: Indicator of: | D161: Resident population ('stock') of migrants based on those with non-British nationality
C162: Information: | D162: Nationality data from the Annual Population Survey (APS) is used for this indicator. This information gives an estimate of the number of people living in Scotland who were born outside the UK. The data is available from 2004, on a calendar year basis. The APS comprises of data from the Labour Force Survey (LFS), plus data from the Annual Local (Area) Labour Force Survey Boosts for England, Scotland and Wales. It is updated quarterly and is published about 8 months after the time period to which it refers. Data is available at council area level although some data is suppressed. Suppressed estimates are indicated with either [low] = zero due to rounding or [c] = confidential. For 2020, the LFS used a new weighting methodology to reflect the change in survey operations during the coronavirus (COVID-19) pandemic and caution should be taken when making comparisons. National Records of Scotland (NRS) has made the decision to cancel the publication of Scotland’s population by country of birth and nationality for the year ending December 2021, which would usually have been out in May 2022. This is therefore shown as [x] = not available for 2021. This is due to the impending reweighting of the Annual Population Survey (APS), the data of which traditionally informs the release, which will not be complete until Autumn 2022. More information on the reweighting and other impacts of COVID-19 on the data can be found on the ONS website.
C163: Link: | D163: ONS website.
C164: Strengths: | D164: Gives a more up to date look at migration than country of birth data, as people who were born outside the UK but have lived here for many years are not regarded as migrants.
C165: Weaknesses: | D165: LFS excludes most communal establishments and foreign students living in halls of residence, and so the number of foreign born migrants is likely to be under-reported.
D166: For some council areas an estimate cannot be made from the APS as the number of people born outside the UK is too small for the estimate to be reliable.
D167: An individuals nationality can change, meaning time series are less robust than for country of birth data.
C168: Source: | D168: 'Population by Country of Birth and Nationality' section of the NRS website
C170: National Insurance Number (NINo) allocations to adult overseas nationals entering the UK
C171: Indicator of: | D171: Inflow of overseas nationals, looking to work or claim benefits
C172: Information: | D172: These data have been obtained using the Stat-Xplore tool on the DWP website, which has annual Council area data. Data used here is on a calendar year basis up until 2020. Data for 2021 will be added when it becomes available. NINo data March 2020 to June 2021: NINo operations were paused for the majority of applicants from mid-March 2020 and therefore estimates for 2020 and 2021 should be viewed with caution. The service for EU Nationals was more heavily disrupted than for Non-EU nationals. This was due to the closure of face-to-face services which at the time (prior to the end of the transition period, 31 December 2020) required EU nationals to attend an evidence of identity interview prior to a NINo being allocated. The majority of Non-EU Nationals were able to access the NINo service via a postal process as they would have had their identity verified by another government department, for example through the Home Office visa process. The postal process was reinstated on 1 June 2020, after being suspended in March 2020. The quarterly 'National Insurance number allocations to adult overseas nationals entering the UK' National Statistics publication is currently (as at 11 August 2022) suspended due to an underlying data issue. Progress is being made to investigate. Once a solution is in place DWP will reinstate the statistical series as soon as possible in line with the UK Statistics Authority Code of Practice for Statistics. DWP will provide an update by early October 2022 or as soon as they have any further information.
C173: Strengths: | D173: Includes any overseas national looking to work or claim benefits/tax credits in the UK, self-employed or students working part-time.
D174: Provides Council area level data.
D175: Location data relates to the residence of the individual, not their employer.
C176: Weaknesses: | D176: Based on the date of registration not the date of arrival, and the lag between the two can often be a year or even longer. Random adjustments have been applied to the data to avoid the disclosure of confidential information.
D177: Excludes those not working, nor planning to work or claim benefits, so children and students that don't work are not included.
D178: Excludes returning UK nationals.
D179: Does not provide any outflow information or overall stock.
D180: Includes migrants staying less than one month as there is no minimum stay for registration.
D181: Data reflects the migrant's first destination or location at registration, not where migrants settle nor does it reflect the stock of migrants nationally.
C182: Source: | D182: Department for Work and Pensions - Stat-Xplore
C184: EU Settlement Scheme (EUSS) applications
C185: Indicator of: | D185: Number of people who have applied to remain in the UK following Brexit. The EU Settlement Scheme (EUSS) enables resident EU, other EEA and Swiss citizens, and their family members, to obtain a UK immigration status.
C186: Information: | D186: These data come from the Home Office and are updated quarterly. They include applications by nationality, age group and outcome.
C187: Strengths: | D187: Detailed and timely information based on administrative data.
C188: Weaknesses: | D188: These data are classed as experimental statistics. They do not indicate how many people are eligible to apply to the scheme nor how many EU citizens live in the UK. They measure applications rather than applicants; one individual may need to apply multiple times (for example, to gain pre-settled and then settled status) and this will be recorded as separate applications.
D189: Data come from a live operational database to which revisions may be made.
C190: Source: | D190: 'EU Settlement Scheme' section of the UK government website
C192: Pupils from a minority ethnic group
C193: Indicator of: | D193: School aged children by ethnicity
C194: Information: | D194: These figures come from the Pupil Census which is collected by the Scottish Government through the ScotXed programme, and are available annually from 2003. The Pupil Census covers all publicly funded schools in Scotland (local authority and grant-aided). It is conducted in September and the data is published in December on the Scottish Government website, with supplementary data being published in March.
C195: Strengths: | D195: Data is reasonably current.
D196: Can provide an indication of where migrant families with school aged children live, rather than work.
C197: Weaknesses: | D197: Provides no information about migrants without school aged children.
D198: Although over 97.5 per cent of pupils disclosed their ethnic background, some pupils' ethnicity was in the 'unknown' category.
D199: No specific nationality data.
D200: Only includes children in publicly funded schools.
D201: Non-migrants may be from a minority ethnic group.
C202: Source: | D202: Pupil Census, Scottish Government
C204: Pupils with English as an additional language
C205: Indicator of: | D205: Migrants from non-English speaking countries with school aged children
C206: Information: | D206: These figures come from the Pupil Census which is collected by the Scottish Government through the ScotXed programme, and are available annually from 2003. The Pupil Census covers all publicly funded schools in Scotland (local authority and grant-aided). It is conducted in September and the data is published in December on the Scottish Government website, with supplementary data being published in March the following year.
C207: Strengths: | D207: Data is reasonably current.
D208: Can provide an indication of where migrant families with school aged children live, rather than work.
C209: Weaknesses: | D209: Provides no information about migrants without school aged children.
D210: No specific nationality data.
D211: Only includes children in publicly funded schools.
D212: Excludes migrants from English speaking countries (whose first language is English) and those fluent in English.
D213: Includes non-recent migrants still speaking a different home language if pupils have English as an additional language.
C214: Source: | D214: Pupil Census, Scottish Government
C216: Births to non-UK mothers
C217: Indicator of: | D217: Number of babies born each year to mothers who had a non-UK country of birth
C218: Information: | D218: This data comes from the NRS Vital Events branch and is collected when the birth is registered. This data is published annually on a calendar year basis. Data is available back to 1996.
C219: Strengths: | D219: Gives an indication of migrants choosing to have children, potentially indicating a desire to settle in an area.
C220: Weaknesses: | D220: Only gives information on a very specific group of migrants (i.e. mothers having children).
C221: Source: | D221: 'Births' section of the Vital Events Reference Tables on the NRS website
C223: Citizenships
C224: Indicator of: | D224: Overseas nationals gaining UK citizenship
C225: Information: | D225: Definition of citizenship ceremonies: A ceremony organised by County or Local Authorities for successful applicants over 18 years of age for British citizenship. At the ceremony the applicant takes the Oath or Affirmation of allegiance to Her Majesty the Queen and the Pledge of loyalty to the United Kingdom. Since 1 January 2004 this has been the final stage in the process of attaining British citizenship. The citizenship ceremony is organised by the relevant local authority, and happens after the Home Office have processed the application.
C226: Strengths: | D226: Shows the number of people aged 18 and over that have become British citizens.
C227: Weaknesses: | D227: Citizenship is a complicated subject, and people will gain British Citizenship for a variety of different reasons.
C228: Source: | D228: Home Office Immigration Statistics
C230: Information on key data sources
C232: Census
... 31 more rows

Sheet Info lookup (hidden)
C2: Indicator of: | D2: Information: | E2: Strengths: | F2: Weaknesses: | G2: Source:
A3: 1 | B3: Not specified | C3: ~ | D3: ~ | E3: ~ | F3: ~ | G3: ~
A4: 2 | B4: Total net migration | C4: =Information!D43 -> Difference between in and out migration for the rest of the UK, within Scotland and internationally. | D4: =Information!D44 -> These figures are published by NRS and relate to total net migration (difference between immigration and emigration). They include asylum seekers and rounding adjustments. Refugees are also included from 2015-16 onwards. More information on the methodology for the NRS migration estimates can be found in the Migration section of this website. | E4: =Information!D45 -> Provides an estimate of all long-term migrants (i.e. those that stay for 12 months or more) at Council and NHS Board area level. | F4: =CONCATENATE(Information!D46) -> Estimates are only produced annually, about 10 months after the period to which they refer, and rely on administrative and survey data rather than a comprehensive count of people moving. | G4: =Information!D47 -> 'Total Migration To and From Scotland' section of the NRS website
A5: 3 | B5: Total net migration for ages 0-15 | C5: =Information!D50 -> Difference between in and out migration for the rest of the UK, within Scotland and internationally of people aged 15 and under | D5: =Information!D51 -> These figures include asylum seekers and rounding adjustments. Refugees are also included from 2015-16 onwards. More information on the methodology for the NRS migration estimates can be found in the Migration section of this website. | E5: =Information!D52 -> Provides an estimate of all long-term migrants (i.e. those that stay for 12 months or more) within this age group at Council and NHS Board area level. | F5: =CONCATENATE(Information!D53) -> Estimates are only produced annually, about 10 months after the period to which they refer, and rely on administrative and survey data rather than a comprehensive count of people moving. | G5: =Information!D54 -> 'Total Migration To and From Scotland' section of the NRS website
A6: 4 | B6: Total net migration for ages 16 - 64 | C6: =Information!D57 -> Difference between in and out migration for the rest of the UK, within Scotland and internationally of people aged between 16 and 64 | D6: =Information!D58 -> These figures include asylum seekers and rounding adjustments. Refugees are also included from 2015-16 onwards. More information on the methodology for the NRS migration estimates can be found in the Migration section of this website. | E6: =Information!D59 -> Provides an estimate of all long-term migrants (i.e. those that stay for 12 months or more) within this age group at Council and NHS Board area level. | F6: =CONCATENATE(Information!D60) -> Estimates are only produced annually, about 10 months after the period to which they refer, and rely on administrative and survey data rather than a comprehensive count of people moving. | G6: =Information!D61 -> 'Total Migration To and From Scotland' section of the NRS website
A7: 5 | B7: Total net migration for people aged 65+ | C7: =Information!D64 -> Difference between in and out migration for the rest of the UK, within Scotland and internationally of people aged 65 and over | D7: =Information!D65 -> These figures include asylum seekers and rounding adjustments. Refugees are also included from 2015-16 onwards. More information on the methodology for the NRS migration estimates can be found in the Migration section of this website. | E7: =Information!D66 -> Provides an estimate of all long-term migrants (i.e. those that stay for 12 months or more) within this age group at Council and NHS Board area level. | F7: =CONCATENATE(Information!D67) -> Estimates are only produced annually, about 10 months after the period to which they refer, and rely on administrative and survey data rather than a comprehensive count of people moving. | G7: =Information!D68 -> 'Total Migration To and From Scotland' section of the NRS website
A8: 6 | B8: Total in-migration | C8: =Information!D71 -> Flow of people to administrative areas in Scotland from the rest of the UK, other areas within Scotland and internationally. | D8: =Information!D72 -> These figures measure total in-migration. Figures include asylum seekers, refugees are also included from 2015-16 onwards. Scotland level estimates cannot be derived by adding together the estimates for individual Council areas or NHS Board areas because administrative area estimates include moves within Scotland. It would not, therefore, be appropriate to compare total in-migration for Scotland with total in-migration for an administrative area. More information on the methodology for the NRS migration estimates can be found in the Migration section of this website. | E8: =Information!D73 -> The best available measure of immigration (or inflow) to Scotland. | F8: =Information!D74 -> Estimates are only produced annually, about 10 months after the period to which they refer, and rely on administrative and survey data rather than a comprehensive count of people moving. | G8: =Information!D75 -> 'Total Migration To and From Scotland' section of the NRS website
A9: 7 | B9: Total out-migration | C9: =Information!D78 -> Flow of people from administrative areas in Scotland to the rest of the UK, other areas within Scotland and internationally. | D9: =Information!D79 -> These figures measure total out-migration. Figures include asylum seekers. Scotland level estimates cannot be derived by adding together the estimates for individual Council areas or NHS Board areas because administrative area estimates include moves within Scotland. It would not, therefore, be appropriate to compare total out-migration for Scotland with total out-migration for an administrative area. More information on the methodology for the NRS migration estimates can be found in the Migration section of this website. | E9: =Information!D80 -> The best available measure of emigration (or outflow) from Scotland. | F9: =Information!D81 -> Estimates are only produced annually, about 10 months after the period to which they refer, and rely on administrative and survey data rather than a comprehensive count of people moving. | G9: =Information!D82 -> 'Total Migration To and From Scotland' section of the NRS website
A10: 8 | B10: Within Scotland net migration | C10: =Information!D85 -> Net migration between administrative areas within Scotland | D10: =Information!D86 -> Moves within Scotland at Council area level are derived from a combination of the National Health Service Central Register (NHSCR) and the Community Health Index (CHI), and from the NHSCR for NHS Board areas. More information on the methodology for the NRS migration estimates can be found in the Migration section of this website. | E10: =Information!D87 -> These estimates are National Statistics. | F10: =Information!D88 -> Estimates are only produced annually, about 10 months after the period to which they refer, and rely on administrative and survey data rather than a comprehensive count of people moving. | G10: =Information!D89 -> 'Migration within Scotland' section of the NRS website
A11: 9 | B11: Within Scotland in-migration | C11: =Information!D92 -> Flow of people to administrative areas in Scotland from other areas within Scotland | D11: =Information!D93 -> Moves within Scotland at Council area level are derived from a combination of the National Health Service Central Register (NHSCR) and the Community Health Index (CHI), and from the NHSCR for NHS Board areas. More information on the methodology for the NRS migration estimates can be found in the Migration section of this website. | E11: =Information!D94 -> These estimates are National Statistics. | F11: =Information!D95 -> Estimates are only produced annually, about 10 months after the period to which they refer, and rely on administrative and survey data rather than a comprehensive count of people moving. | G11: =Information!D96 -> 'Migration within Scotland' section of the NRS website
A12: 10 | B12: Within Scotland out-migration | C12: =Information!D99 -> Flow of people from administrative areas in Scotland to other areas within Scotland | D12: =Information!D100 -> Moves within Scotland at Council area level are derived from a combination of the National Health Service Central Register (NHSCR) and the Community Health Index (CHI), and from the NHSCR for NHS Board areas. More information on the methodology for the NRS migration estimates can be found in the Migration section of this website. | E12: =Information!D101 -> These estimates are National Statistics. | F12: =Information!D102 -> Estimates are only produced annually, about 10 months after the period to which they refer, and rely on administrative and survey data rather than a comprehensive count of people moving. | G12: =Information!D103 -> 'Migration within Scotland' section of the NRS website
A13: 11 | B13: Rest of UK net migration | C13: =Information!D106 -> Net migration between administrative areas in Scotland and the rest of the UK | D13: =Information!D107 -> These are the NRS National Statistics for rest of UK migration. Moves between Scottish administrative areas and the rest of the UK are derived from General Practitioner (GP) registration information. Moves between Scotland and the rest of the UK used here do not include movements to/from the armed forces. More information on the methodology for the NRS migration estimates can be found in the Migration section of this website. | E13: =Information!D108 -> These estimates are National Statistics. | F13: =CONCATENATE(Information!D109) -> Estimates are only produced annually at Scottish administrative area level, about 10 months after the period to which they refer, and rely on administrative and survey data rather than a comprehensive count of people moving. | G13: =Information!D110 -> 'Migration between Scotland and Rest of the UK' section of the NRS website
A14: 12 | B14: Rest of UK in-migration | C14: =Information!D113 -> Flow of people to administrative areas in Scotland from the rest of the UK | D14: =Information!D114 -> These are the NRS National Statistics for rest of UK migration. Moves between Scottish administrative areas and the rest of the UK are derived from the National Health Service Central Register (NHSCR) and Community Health Index (CHI). Moves between Scotland and the rest of the UK used here do not include movements to/from the armed forces. More information on the methodology for the NRS migration estimates can be found in the Migration section of this website. | E14: =Information!D115 -> These estimates are National Statistics. | F14: =CONCATENATE(Information!D116) -> Estimates are only produced annually at Scottish administrative area level, about 10 months after the period to which they refer, and rely on administrative and survey data rather than a comprehensive count of people moving. | G14: =Information!D117 -> 'Migration between Scotland and Rest of the UK' section of the NRS website
A15: 13 | B15: Rest of UK out-migration | C15: =Information!D120 -> Flow of people from administrative areas in Scotland to the rest of the UK | D15: =Information!D121 -> These are the NRS National Statistics for rest of UK migration. Moves between Scottish administrative areas and the rest of the UK are derived from General Practitioner (GP) registration information. Moves between Scotland and the rest of the UK used here do not include movements to/from the armed forces. More information on the methodology for the NRS migration estimates can be found in the Migration section of this website. | E15: =Information!D122 -> These estimates are National Statistics. | F15: =CONCATENATE(Information!D123) -> Estimates are only produced annually at Scottish administrative area level, about 10 months after the period to which they refer, and rely on administrative and survey data rather than a comprehensive count of people moving. | G15: =Information!D124 -> 'Migration between Scotland and Rest of the UK' section of the NRS website
A16: 14 | B16: International net migration | C16: =Information!D127 -> International net migration | D16: =Information!D128 -> These figures measure international net migration. International migration estimates for the year ending June 2021 are using a different method to those previously published. They rely less on International Passenger Survey (IPS) data and make greater use of administrative data. This means that the latest figures on international migration may not be comparable with previous estimates produced from the IPS or more recently using some statistical modelling (for the year ending June 2020). Data from the National Health Service Central Register (NHSCR) and the Community Health Index (CHI) are also used for this process. In March 2020 the IPS was suspended due to the pandemic. International migration for March to June 2020 has been modelled using alternative data sources. More information on the methodology for the NRS migration estimates can be found in the Migration section of this website. Asylum seekers are included for all years, refugees are also included from 2015-16 onwards. | E16: =Information!D129 -> The best available measure of international net migration for Scotland. | F16: =CONCATENATE(Information!D130,Information!D131) -> The IPS sample size for Scotland is small, making the estimates less reliable. Estimates are only produced annually, about 10 months after the period to which they refer. | G16: =Information!D132 -> International Migration section of the NRS website
A17: 15 | B17: International in-migration | C17: =Information!D135 -> International in-migration to administrative areas in Scotland. | D17: =Information!D136 -> These figures measure international net migration. International migration estimates for the year ending June 2021 are using a different method to those previously published. They rely less on International Passenger Survey (IPS) data and make greater use of administrative data. This means that the latest figures on international migration may not be comparable with previous estimates produced from the IPS or more recently using some statistical modelling (for the year ending June 2020). Data from the National Health Service Central Register (NHSCR) and the Community Health Index (CHI) are also used for this process. In March 2020 the IPS was suspended due to the pandemic. International migration for March to June 2020 has been modelled using alternative data sources. More information on the methodology for the NRS migration estimates can be found in the Migration section of this website. Asylum seekers are included for all years, refugees are also included from 2015-16 onwards. | E17: =Information!D137 -> The best available measure of international immigration (or inflow). | F17: =CONCATENATE(Information!D138,Information!D139) -> The IPS sample size for Scotland is small, making the estimates less reliable. Estimates are only produced annually, about 10 months after the period to which they refer. | G17: =Information!D140 -> International Migration section of the NRS website
A18: 16 | B18: International out-migration | C18: =Information!D143 -> International out-migration from administrative areas in Scotland. | D18: =Information!D144 -> These figures measure international net migration. International migration estimates for the year ending June 2021 are using a different method to those previously published. They rely less on International Passenger Survey (IPS) data and make greater use of administrative data. This means that the latest figures on international migration may not be comparable with previous estimates produced from the IPS or more recently using some statistical modelling (for the year ending June 2020). Data from the National Health Service Central Register (NHSCR) and the Community Health Index (CHI) are also used for this process. In March 2020 the IPS was suspended due to the pandemic. International migration for March to June 2020 has been modelled using alternative data sources. More information on the methodology for the NRS migration estimates can be found in the Migration section of this website. Asylum seekers are included for all years, refugees are also included from 2015-16 onwards. | E18: =Information!D145 -> The best available measure of international emigration (or outflow). | F18: =CONCATENATE(Information!D146,Information!D147) -> The IPS sample size for Scotland is small, making the estimates less reliable. Estimates are only produced annually, about 10 months after the period to which they refer. | G18: =Information!D148 -> International Migration section of the NRS website
A19: 17 | B19: National Insurance Number (NINo) allocations to adult overseas nationals entering the UK | C19: =Information!D171 -> Inflow of overseas nationals, looking to work or claim benefits | D19: =Information!D172 -> These data have been obtained using the Stat-Xplore tool on the DWP website, which has annual Council area data. Data used here is on a calendar year basis up until 2020. Data for 2021 will be added when it becomes available. NINo data March 2020 to June 2021: NINo operations were paused for the majority of applicants from mid-March 2020 and therefore estimates for 2020 and 2021 should be viewed with caution. The service for EU Nationals was more heavily disrupted than for Non-EU nationals. This was due to the closure of face-to-face services which at the time (prior to the end of the transition period, 31 December 2020) required EU nationals to attend an evidence of identity interview prior to a NINo being allocated. The majority of Non-EU Nationals were able to access the NINo service via a postal process as they would have had their identity verified by another government department, for example through the Home Office visa process. The postal process was reinstated on 1 June 2020, after being suspended in March 2020. The quarterly 'National Insurance number allocations to adult overseas nationals entering the UK' National Statistics publication is currently (as at 11 August 2022) suspended due to an underlying data issue. Progress is being made to investigate. Once a solution is in place DWP will reinstate the statistical series as soon as possible in line with the UK Statistics Authority Code of Practice for Statistics. DWP will provide an update by early October 2022 or as soon as they have any further information. | E19: =CONCATENATE(Information!D173,Information!D174,Information!D175) -> Includes any overseas national looking to work or claim benefits/tax credits in the UK, self-employed or students working part-time. Provides Council area level data. Location data relates to the residence of the individual, not their employer. | F19: =CONCATENATE(Information!D176,Information!D177,Information!D178,Information!D179,Information!D180,Information!D181) -> Based on the date of registration not the date of arrival, and the lag between the two can often be a year or even longer. Random adjustments have been applied to the data to avoid the disclosure of confidential information. Excludes those not working, nor planning to work or claim benefits, so children and students that don't work are not included. Excludes returning UK nationals. Does not provide any outflow information or overall stock. Includes migrants staying less than one month as there is no minimum stay for registration. Data reflects the migrant's first destination or location at registration, not where migrants settle nor does it reflect the stock of migrants nationally. | G19: =Information!D182 -> Department for Work and Pensions - Stat-Xplore
A20: 18 | B20: Births to non-UK mothers | C20: =Information!D217 -> Number of babies born each year to mothers who had a non-UK country of birth | D20: =Information!D218 -> This data comes from the NRS Vital Events branch and is collected when the birth is registered. This data is published annually on a calendar year basis. Data is available back to 1996. | E20: =Information!D219 -> Gives an indication of migrants choosing to have children, potentially indicating a desire to settle in an area. | F20: =Information!D220 -> Only gives information on a very specific group of migrants (i.e. mothers having children). | G20: =Information!D221 -> 'Births' section of the Vital Events Reference Tables on the NRS website
A21: 19 | B21: Pupils from a minority ethnic group | C21: =Information!D193 -> School aged children by ethnicity | D21: =Information!D194 -> These figures come from the Pupil Census which is collected by the Scottish Government through the ScotXed programme, and are available annually from 2003. The Pupil Census covers all publicly funded schools in Scotland (local authority and grant-aided). It is conducted in September and the data is published in December on the Scottish Government website, with supplementary data being published in March. | E21: =CONCATENATE(Information!D195,Information!D196) -> Data is reasonably current. Can provide an indication of where migrant families with school aged children live, rather than work. | F21: =CONCATENATE(Information!D197,Information!D198,Information!D199,Information!D200,Information!D201) -> Provides no information about migrants without school aged children. Although over 97.5 per cent of pupils disclosed their ethnic background, some pupils' ethnicity was in the 'unknown' category. No specific nationality data. Only includes children in publicly funded schools. Non-migrants may be from a minority ethnic group. | G21: =Information!D202 -> Pupil Census, Scottish Government
A22: 20 | B22: Pupils with English as an additional language | C22: =Information!D205 -> Migrants from non-English speaking countries with school aged children | D22: =Information!D206 -> These figures come from the Pupil Census which is collected by the Scottish Government through the ScotXed programme, and are available annually from 2003. The Pupil Census covers all publicly funded schools in Scotland (local authority and grant-aided). It is conducted in September and the data is published in December on the Scottish Government website, with supplementary data being published in March the following year. | E22: =CONCATENATE(Information!D207,Information!D208) -> Data is reasonably current. Can provide an indication of where migrant families with school aged children live, rather than work. | F22: =CONCATENATE(Information!D209,Information!D210,Information!D211,Information!D212,Information!D213) -> Provides no information about migrants without school aged children. No specific nationality data. Only includes children in publicly funded schools. Excludes migrants from English speaking countries (whose first language is English) and those fluent in English. Includes non-recent migrants still speaking a different home language if pupils have English as an additional language. | G22: =Information!D214 -> Pupil Census, Scottish Government
A23: 21 | B23: Population born outside the UK | C23: =Information!D151 -> Resident population ('stock') of migrants based on those with non-UK country of birth | D23: =CONCATENATE(Information!D152,Information!D153) -> The country of birth data from the Annual Population Survey (APS) is used for this indicator. This information gives an estimate of the number of people living in Scotland who were born outside the UK. The data is available from 2004, on a calendar year basis. The APS comprises of data from the Labour Force Survey (LFS), plus data from the Annual Local (Area) Labour Force Survey Boosts for England, Scotland and Wales. It is updated quarterly and is published about 8 months after the time period to which it refers. Data is available at council area level although some data is suppressed. For 2020, the LFS used a new weighting methodology to reflect the change in survey operations during the coronavirus (COVID-19) pandemic and caution should be taken when making comparisons. National Records of Scotland (NRS) has made the decision to cancel the publication of Scotland’s population by country of birth and nationality for the year ending December 2021, which would usually have been out in May 2022. This is therefore shown as [x] = not available for 2021. This is due to the impending reweighting of the Annual Population Survey (APS), the data of which traditionally informs the release, which will not be complete until Autumn 2022. More information on the reweighting and other impacts of COVID-19 on the data can be found on the ONS website.ONS website. | E23: =Information!D154 -> Gives a more robust estimate of change over time than looking at nationality as an individual's nationality can change. | F23: =CONCATENATE(Information!D155,Information!D156,Information!D157) -> LFS excludes most communal establishments and foreign students living in halls of residence, and so the number of foreign born migrants is likely to be under-reported. For some council areas an estimate cannot be made from the APS as the number of people born outside the UK is too small for the estimate to be reliable. Some people born outside the UK may have lived in the UK for a long time and are therefore not regarded as migrants. | G23: =Information!D158 -> 'Population by Country of Birth and Nationality' section of the NRS website
A24: 22 | B24: Population with non-British nationality | C24: =Information!D161 -> Resident population ('stock') of migrants based on those with non-British nationality | D24: =CONCATENATE(Information!D162,Information!D163) -> Nationality data from the Annual Population Survey (APS) is used for this indicator. This information gives an estimate of the number of people living in Scotland who were born outside the UK. The data is available from 2004, on a calendar year basis. The APS comprises of data from the Labour Force Survey (LFS), plus data from the Annual Local (Area) Labour Force Survey Boosts for England, Scotland and Wales. It is updated quarterly and is published about 8 months after the time period to which it refers. Data is available at council area level although some data is suppressed. Suppressed estimates are indicated with either [low] = zero due to rounding or [c] = confidential. For 2020, the LFS used a new weighting methodology to reflect the change in survey operations during the coronavirus (COVID-19) pandemic and caution should be taken when making comparisons. National Records of Scotland (NRS) has made the decision to cancel the publication of Scotland’s population by country of birth and nationality for the year ending December 2021, which would usually have been out in May 2022. This is therefore shown as [x] = not available for 2021. This is due to the impending reweighting of the Annual Population Survey (APS), the data of which traditionally informs the release, which will not be complete until Autumn 2022. More information on the reweighting and other impacts of COVID-19 on the data can be found on the ONS website.ONS website. | E24: =Information!D164 -> Gives a more up to date look at migration than country of birth data, as people who were born outside the UK but have lived here for many years are not regarded as migrants. | F24: =CONCATENATE(Information!D165,Information!D166,Information!D167) -> LFS excludes most communal establishments and foreign students living in halls of residence, and so the number of foreign born migrants is likely to be under-reported. For some council areas an estimate cannot be made from the APS as the number of people born outside the UK is too small for the estimate to be reliable. An individuals nationality can change, meaning time series are less robust than for country of birth data. | G24: =Information!D168 -> 'Population by Country of Birth and Nationality' section of the NRS website
A25: 23 | B25: Citizenships | C25: =Information!D224 -> Overseas nationals gaining UK citizenship | D25: =Information!D225 -> Definition of citizenship ceremonies: A ceremony organised by County or Local Authorities for successful applicants over 18 years of age for British citizenship. At the ceremony the applicant takes the Oath or Affirmation of allegiance to Her Majesty the Queen and the Pledge of loyalty to the United Kingdom. Since 1 January 2004 this has been the final stage in the process of attaining British citizenship. The citizenship ceremony is organised by the relevant local authority, and happens after the Home Office have processed the application. | E25: =Information!D226 -> Shows the number of people aged 18 and over that have become British citizens. | F25: =Information!D227 -> Citizenship is a complicated subject, and people will gain British Citizenship for a variety of different reasons. | G25: =Information!D228 -> Home Office Immigration Statistics

Sheet Comparing Indicators
S1: Geography | U1: Indicator | V1: Timing | Y1: Value | AA1: Timing of Indicator data
R2: Code - Geography | S2: 1 | T2: Ind1 | U2: 1 | X2: Code - count/rate | Y2: 1 | AB2: =I15 -> 2015 | AC2: =J15 -> 2016 | AD2: 2017 | AE2: 2018 | AF2: 2019 | AG2: 2020 | AH2: 2021
R3: 1 | S3: Not specified | T3: Ind2 | U3: 1 | V3: 1 | W3: Mid-year | AA3: =VLOOKUP($E$16,$U$7:$V$29,2,FALSE) -> 0 | AB3: =IF((VLOOKUP($S$2,INDIRECT("Data"&AB2),$U$2+2,FALSE))="",NA(),(VLOOKUP($S$2,INDIRECT("Data"&AB2),$U$2+2,FALSE))) ->  | AH3: =IF((VLOOKUP($S$2,INDIRECT("Data"&AH2),$U$2+2,FALSE))="",NA(),(VLOOKUP($S$2,INDIRECT("Data"&AH2),$U$2+2,FALSE))) -> 
R4: 2 | S4: SCOTLAND | T4: Ind3 | U4: 1 | V4: 2 | W4: Calendar year
R5: 3 | S5: Aberdeen City | AA5: =VLOOKUP($E$18,$U$7:$V$29,2,FALSE) -> 0 | AB5: =IF((VLOOKUP($S$2,INDIRECT("Data"&AB2),$U$3+2,FALSE))="",NA(),(VLOOKUP($S$2,INDIRECT("Data"&AB2),$U$3+2,FALSE))) ->  | AC5: =IF((VLOOKUP($S$2,INDIRECT("Data"&AC2),$U$3+2,FALSE))="",NA(),(VLOOKUP($S$2,INDIRECT("Data"&AC2),$U$3+2,FALSE))) -> 
R6: 4 | S6: Aberdeenshire
C7: Comparing Indicators | R7: 5 | S7: Angus | T7: 1 | U7: Not specified | X7: 1 | Y7: Count | AA7: =VLOOKUP($E$20,$U$7:$V$29,2,FALSE) -> 0 | AB7: =IF((VLOOKUP($S$2,INDIRECT("Data"&AB2),$U$4+2,FALSE))="",NA(),(VLOOKUP($S$2,INDIRECT("Data"&AB2),$U$4+2,FALSE))) ->  | AC7: =IF((VLOOKUP($S$2,INDIRECT("Data"&AC2),$U$4+2,FALSE))="",NA(),(VLOOKUP($S$2,INDIRECT("Data"&AC2),$U$4+2,FALSE))) -> 
R8: 6 | S8: Argyll and Bute | T8: 2 | U8: Total net migration | V8: 1 | X8: 2 | Y8: Rate per 1000
R9: 7 | S9: City of Edinburgh | T9: 3 | U9: Total net migration for ages 0-15 | V9: 1
R10: 8 | S10: Clackmannanshire | T10: 4 | U10: Total net migration for ages 16-64 | V10: 1
C11: Geography | E11: =VLOOKUP($S$2,$R$3:$S$36,2) -> Not specified | R11: 9 | S11: Dumfries and Galloway | T11: 5 | U11: Total net migration for people aged 65+ | V11: 1
R12: 10 | S12: Dundee City | T12: 6 | U12: Total in-migration | V12: 1
C13: Value | E13: =VLOOKUP($Y$2,$X$7:$Y$8,2) -> Count | R13: 11 | S13: East Ayrshire | T13: 7 | U13: Total out-migration | V13: 1 | AB13: =I15 -> 2015 | AC13: 2016 | AD13: 2017 | AE13: 2018 | AF13: 2019 | AG13: 2020 | AH13: 2021
R14: 12 | S14: East Dunbartonshire | T14: 8 | U14: Within Scotland net migration | V14: 1 | AB14: =IF((VLOOKUP($S$2,INDIRECT("Rate"&AB13),$U$2+2,FALSE))="",NA(),(VLOOKUP($S$2,INDIRECT("Rate"&AB13),$U$2+2,FALSE))) -> 
G15: Timing of data | I15: 2015 | J15: 2016 | K15: 2017 | L15: 2018 | M15: 2019 | N15: 2020 | O15: 2021 | R15: 13 | S15: East Lothian | T15: 9 | U15: Within Scotland in-migration | V15: 1
C16: Indicator | E16: =VLOOKUP($U$2,$T$7:$U$29,2) -> Not specified | G16: =VLOOKUP(AA3,$V$3:$W$4,2) ->  | I16: =IF($Y$2=1,AB3,AB14) ->  | R16: 14 | S16: East Renfrewshire | T16: 10 | U16: Within Scotland out-migration | V16: 1 | AB16: =IF((VLOOKUP($S$2,INDIRECT("Rate"&AB13),$U$3+2,FALSE))="",NA(),(VLOOKUP($S$2,INDIRECT("Rate"&AB13),$U$3+2,FALSE))) ->  | AC16: =IF((VLOOKUP($S$2,INDIRECT("Rate"&AC2),$U$3+2,FALSE))="",NA(),(VLOOKUP($S$2,INDIRECT("Rate"&AC2),$U$3+2,FALSE))) -> 
R17: 15 | S17: Falkirk | T17: 11 | U17: Rest of UK net migration | V17: 1
C18: Indicator | E18: =VLOOKUP($U$3,$T$7:$U$29,2) -> Not specified | G18: =VLOOKUP(AA5,$V$2:$W$4,2) ->  | I18: =IF($Y$2=1,AB5,AB16) ->  | O18: =IF($Y$2=1,AH5,AH16) ->  | R18: 16 | S18: Fife | T18: 12 | U18: Rest of UK in-migration | V18: 1 | AB18: =IF((VLOOKUP($S$2,INDIRECT("Rate"&AB13),$U$4+2,FALSE))="",NA(),(VLOOKUP($S$2,INDIRECT("Rate"&AB13),$U$4+2,FALSE))) ->  | AC18: =IF((VLOOKUP($S$2,INDIRECT("Rate"&AC2),$U$4+2,FALSE))="",NA(),(VLOOKUP($S$2,INDIRECT("Rate"&AC2),$U$4+2,FALSE))) -> 
R19: 17 | S19: Glasgow City | T19: 13 | U19: Rest of UK out-migration | V19: 1
C20: Indicator | E20: =VLOOKUP($U$4,$T$7:$U$29,2) -> Not specified | G20: =VLOOKUP($AA$7,$V$3:$W$4,2) ->  | I20: =IF($Y$2=1,AB7,AB18) ->  | O20: =IF($Y$2=1,AH7,AH18) ->  | R20: 18 | S20: Highland | T20: 14 | U20: International net migration | V20: 1
R21: 19 | S21: Inverclyde | T21: 15 | U21: International in-migration | V21: 1
R22: 20 | S22: Midlothian | T22: 16 | U22: International out-migration | V22: 1
R23: 21 | S23: Moray | T23: 17 | U23: NINo Allocation | V23: 2
R24: 22 | S24: Na h-Eileanan Siar | T24: 18 | U24: Births to non-UK mothers | V24: 2
R25: 23 | S25: North Ayrshire | T25: 19 | U25: Pupils from a minority ethnic group | V25: 2
R26: 24 | S26: North Lanarkshire | T26: 20 | U26: Pupils with English as an additional language | V26: 2
R27: 25 | S27: Orkney Islands | T27: 21 | U27: Population born outside the UK | V27: 2
R28: 26 | S28: Perth and Kinross | T28: 22 | U28: Population with non-British nationality | V28: 2
R29: 27 | S29: Renfrewshire | T29: 23 | U29: Citizenships | V29: 2
R30: 28 | S30: Scottish Borders
R31: 29 | S31: Shetland Islands
R32: 30 | S32: South Ayrshire
R33: 31 | S33: South Lanarkshire
R34: 32 | S34: Stirling
R35: 33 | S35: West Dunbartonshire
R36: 34 | S36: West Lothian
B43: Information on Indicators
B45: =VLOOKUP($U$2,'Info lookup'!$A$3:$B$25,2) -> Not specified
B46: Indicator of: | D46: =VLOOKUP($U$2,'Info lookup'!$A$2:$F$25,3) -> ~
B47: Information: | D47: =VLOOKUP($U$2,'Info lookup'!$A$2:$F$25,4) -> ~
B48: Strengths: | D48: =VLOOKUP($U$2,'Info lookup'!$A$2:$F$25,5) -> ~
B49: Weaknesses: | D49: =VLOOKUP($U$2,'Info lookup'!$A$2:$F$25,6) -> ~
B50: Source: | D50: =VLOOKUP($U$2,'Info lookup'!$A$2:$G$25,7) -> ~
B52: =VLOOKUP($U$3,'Info lookup'!$A$3:$F$25,2) -> Not specified
B53: Indicator of: | D53: =VLOOKUP($U$3,'Info lookup'!$A$2:$F$25,3) -> ~
B54: Information: | D54: =VLOOKUP($U$3,'Info lookup'!$A$2:$F$25,4) -> ~
B55: Strengths: | D55: =VLOOKUP($U$3,'Info lookup'!$A$2:$F$25,5) -> ~
B56: Weaknesses: | D56: =VLOOKUP($U$3,'Info lookup'!$A$2:$F$25,6) -> ~
B57: Source: | D57: =VLOOKUP($U$3,'Info lookup'!$A$2:$G$25,7) -> ~
B59: =VLOOKUP($U$4,'Info lookup'!$A$3:$F$25,2) -> Not specified
B60: Indicator of: | D60: =VLOOKUP($U$4,'Info lookup'!$A$2:$F$25,3) -> ~
B61: Information: | D61: =VLOOKUP($U$4,'Info lookup'!$A$2:$F$25,4) -> ~
B62: Strengths: | D62: =VLOOKUP($U$4,'Info lookup'!$A$2:$F$25,5) -> ~
B63: Weaknesses: | D63: =VLOOKUP($U$4,'Info lookup'!$A$2:$F$25,6) -> ~
B64: Source: | D64: =VLOOKUP($U$4,'Info lookup'!$A$2:$G$25,7) -> ~
B66: © Crown Copyright 2022

Sheet Comparing Areas
S1: Geography | U1: Indicator | V1: Timing | X1: Value
R2: Code - Geography 1 | S2: 1 | T2: Code - indicator | U2: 1 | V2: Code | W2: 1 | X2: Code - count/rate | Y2: 1
R3: Code - Geography 2 | S3: 1 | V3: 1 | W3: Mid-year | X3: 1 | Y3: Count
R4: Code - Geography 3 | S4: 1 | V4: 2 | W4: Calendar year | X4: 2 | Y4: Rate per 1000 | Z4: Count
Z5: =I15 -> 2015 | AA5: 2016 | AB5: 2017 | AC5: 2018 | AD5: 2019 | AE5: 2020 | AF5: 2021
Z6: =IF((VLOOKUP($S$2,INDIRECT("Data"&Z5),$U$2+2,FALSE))="",NA(),(VLOOKUP($S$2,INDIRECT("Data"&Z5),$U$2+2,FALSE))) -> 
B7: Comparing Areas | Z7: =IF((VLOOKUP($S$3,INDIRECT("Data"&Z5),$U$2+2,FALSE))="",NA(),(VLOOKUP($S$3,INDIRECT("Data"&Z5),$U$2+2,FALSE))) ->  | AA7: =IF((VLOOKUP($S$3,INDIRECT("Data"&AA5),$U$2+2,FALSE))="",NA(),(VLOOKUP($S$3,INDIRECT("Data"&AA5),$U$2+2,FALSE))) -> 
Z8: =IF((VLOOKUP($S$4,INDIRECT("Data"&Z5),$U$2+2,FALSE))="",NA(),(VLOOKUP($S$4,INDIRECT("Data"&Z5),$U$2+2,FALSE))) ->  | AA8: =IF((VLOOKUP($S$4,INDIRECT("Data"&AA5),$U$2+2,FALSE))="",NA(),(VLOOKUP($S$4,INDIRECT("Data"&AA5),$U$2+2,FALSE))) -> 
Z10: Rate
C11: Indicator | E11: =VLOOKUP($U$2,$T$14:$U$36,2) -> Not specified | U11: Calendar/mid-year code | V11: =VLOOKUP(U2,T14:V34,3) -> 1 | Z11: =I15 -> 2015 | AA11: 2016 | AB11: 2017 | AC11: 2018 | AD11: 2019 | AE11: 2020 | AF11: =O15 -> 2021
Z12: =IF((VLOOKUP($S$2,INDIRECT("Rate"&Z11),$U$2+2,FALSE))="",NA(),(VLOOKUP($S$2,INDIRECT("Rate"&Z11),$U$2+2,FALSE))) -> 
C13: Value | E13: =VLOOKUP($Y$2,$X$3:$Y$4,2) -> Count | L13: =VLOOKUP($V$11,$V$3:$W$4,2) -> Mid-year | Z13: =IF((VLOOKUP($S$3,INDIRECT("Rate"&Z11),$U$2+2,FALSE))="",NA(),(VLOOKUP($S$3,INDIRECT("Rate"&Z11),$U$2+2,FALSE))) ->  | AA13: =IF((VLOOKUP($S$3,INDIRECT("Rate"&AA11),$U$2+2,FALSE))="",NA(),(VLOOKUP($S$3,INDIRECT("Rate"&AA11),$U$2+2,FALSE))) -> 
R14: 1 | S14: Not specified | T14: 1 | U14: Not specified | V14: 1 | Z14: =IF((VLOOKUP($S$4,INDIRECT("Rate"&Z11),$U$2+2,FALSE))="",NA(),(VLOOKUP($S$4,INDIRECT("Rate"&Z11),$U$2+2,FALSE))) -> 
I15: 2015 | J15: 2016 | K15: 2017 | L15: 2018 | M15: 2019 | N15: 2020 | O15: 2021 | R15: 2 | S15: SCOTLAND | T15: 2 | U15: ='Comparing Indicators'!U8 -> Total net migration | V15: 1
C16: Geography | E16: =VLOOKUP($S$2,$R$14:$S$47,2) -> Not specified | I16: =IF($Y$2=1,Z6,Z12) ->  | J16: =IF($Y$2=1,AA6,AA12) ->  | R16: 3 | S16: Aberdeen City | T16: 3 | U16: ='Comparing Indicators'!U9 -> Total net migration for ages 0-15 | V16: 1
R17: 4 | S17: Aberdeenshire | T17: 4 | U17: ='Comparing Indicators'!U10 -> Total net migration for ages 16-64 | V17: 1
C18: Geography | E18: =VLOOKUP($S$3,$R$14:$S$47,2) -> Not specified | I18: =IF($Y$2=1,Z7,Z13) ->  | J18: =IF($Y$2=1,AA7,AA13) ->  | R18: 5 | S18: Angus | T18: 5 | U18: ='Comparing Indicators'!U11 -> Total net migration for people aged 65+ | V18: 1
R19: 6 | S19: Argyll and Bute | T19: 6 | U19: ='Comparing Indicators'!U12 -> Total in-migration | V19: 1
C20: Geography | E20: =VLOOKUP($S$4,$R$14:$S$47,2) -> Not specified | I20: =IF($Y$2=1,Z8,Z14) ->  | J20: =IF($Y$2=1,AA8,AA14) ->  | R20: 7 | S20: City of Edinburgh | T20: 7 | U20: ='Comparing Indicators'!U13 -> Total out-migration | V20: 1
R21: 8 | S21: Clackmannanshire | T21: 8 | U21: ='Comparing Indicators'!U14 -> Within Scotland net migration | V21: 1
R22: 9 | S22: Dumfries and Galloway | T22: 9 | U22: ='Comparing Indicators'!U15 -> Within Scotland in-migration | V22: 1
R23: 10 | S23: Dundee City | T23: 10 | U23: ='Comparing Indicators'!U16 -> Within Scotland out-migration | V23: 1
R24: 11 | S24: East Ayrshire | T24: 11 | U24: ='Comparing Indicators'!U17 -> Rest of UK net migration | V24: 1
R25: 12 | S25: East Dunbartonshire | T25: 12 | U25: ='Comparing Indicators'!U18 -> Rest of UK in-migration | V25: 1
R26: 13 | S26: East Lothian | T26: 13 | U26: ='Comparing Indicators'!U19 -> Rest of UK out-migration | V26: 1
R27: 14 | S27: East Renfrewshire | T27: 14 | U27: ='Comparing Indicators'!U20 -> International net migration | V27: 1
R28: 15 | S28: Falkirk | T28: 15 | U28: ='Comparing Indicators'!U21 -> International in-migration | V28: 1
R29: 16 | S29: Fife | T29: 16 | U29: ='Comparing Indicators'!U22 -> International out-migration | V29: 1
R30: 17 | S30: Glasgow City | T30: 17 | U30: ='Comparing Indicators'!U23 -> NINo Allocation | V30: 2
R31: 18 | S31: Highland | T31: 18 | U31: ='Comparing Indicators'!U24 -> Births to non-UK mothers | V31: 2
R32: 19 | S32: Inverclyde | T32: 19 | U32: ='Comparing Indicators'!U25 -> Pupils from a minority ethnic group | V32: 2
R33: 20 | S33: Midlothian | T33: 20 | U33: ='Comparing Indicators'!U26 -> Pupils with English as an additional language | V33: 2
R34: 21 | S34: Moray | T34: 21 | U34: ='Comparing Indicators'!U27 -> Population born outside the UK | V34: 2
R35: 22 | S35: Na h-Eileanan Siar | T35: 22 | U35: ='Comparing Indicators'!U28 -> Population with non-British nationality | V35: 2
R36: 23 | S36: North Ayrshire | T36: 23 | U36: ='Comparing Indicators'!U29 -> Citizenships | V36: 2
R37: 24 | S37: North Lanarkshire
R38: 25 | S38: Orkney Islands
R39: 26 | S39: Perth and Kinross
R40: 27 | S40: Renfrewshire
R41: 28 | S41: Scottish Borders
R42: 29 | S42: Shetland Islands
B43: =VLOOKUP($U$2,'Info lookup'!$A$3:$F$25,2) -> Not specified | R43: 30 | S43: South Ayrshire
B44: Indicator of: | D44: =VLOOKUP($U$2,'Info lookup'!$A$4:$F$25,3) ->  | R44: 31 | S44: South Lanarkshire
B45: Information: | D45: =VLOOKUP($U$2,'Info lookup'!$A$4:$F$25,4) ->  | R45: 32 | S45: Stirling
B46: Strengths: | D46: =VLOOKUP($U$2,'Info lookup'!$A$4:$F$25,5) ->  | R46: 33 | S46: West Dunbartonshire
B47: Weaknesses: | D47: =VLOOKUP($U$2,'Info lookup'!$A$4:$F$25,6) ->  | R47: 34 | S47: West Lothian
B48: Source: | D48: =VLOOKUP($U$2,'Info lookup'!$A$4:$G$25,7) -> 
B50: © Crown Copyright 2022

Sheet Comparing NHS Board Areas
S1: Health Board Areas | W1: Indicator
S2: HB area 1 | T2: 1 | V2: Ind | W2: 1
S3: HB area 2 | T3: 1
S4: HB area 3 | T4: 1
Y6: Timing | AB6: Value | AF6: Count
B7: Comparing NHS Board Areas | T7: 1 | V7: 1 | W7: 1 | Y7: Code | Z7: =VLOOKUP($W$2,$V$11:$X$27,3) -> 0 | AD7: 1 | AF7: =I15 -> 2015 | AG7: 2016 | AH7: 2017 | AI7: 2018 | AJ7: 2019 | AK7: 2020 | AL7: 2021
T8: 1 | AF8: =IF((VLOOKUP(($T$2+34),INDIRECT("Data"&AF7),$W$2+2,FALSE))="",NA(),(VLOOKUP($T$2+34,INDIRECT("Data"&AF7),$W$2+2,FALSE))) -> 
T9: 1 | AF9: =IF((VLOOKUP(($T$3+34),INDIRECT("Data"&AF7),$W$2+2,FALSE))="",NA(),(VLOOKUP($T$3+34,INDIRECT("Data"&AF7),$W$2+2,FALSE))) -> 
X10: Timing codes | AF10: =IF((VLOOKUP(($T$4+34),INDIRECT("Data"&AF7),$W$2+2,FALSE))="",NA(),(VLOOKUP($T$4+34,INDIRECT("Data"&AF7),$W$2+2,FALSE))) -> 
C11: Indicator | E11: =VLOOKUP($W$2,HBIndicatorCode,2) -> Not specified | S11: 1 | T11: Not specified | V11: 1 | W11: Not specified | Y11: 1 | Z11: Mid-year | AB11: 1 | AC11: Count
S12: 2 | T12: SCOTLAND | V12: 2 | W12: Total net migration | X12: 1 | Y12: 2 | Z12: Calendar year | AB12: 2 | AC12: Rate per 1000 | AF12: Rate
C13: Value | E13: =VLOOKUP($AD$7,$AB$11:$AC$12,2) -> Count | K13: =VLOOKUP($Z$7,TimingCode,2) ->  | S13: 3 | T13: Ayrshire and Arran | V13: 3 | W13: Total net migration for ages 0-15 | X13: 1 | AF13: =I15 -> 2015 | AG13: 2016 | AH13: 2017 | AI13: 2018 | AJ13: 2019 | AK13: 2020 | AL13: 2021
S14: 4 | T14: Borders | V14: 4 | W14: Total net migration for ages 16-64 | X14: 1 | AF14: =IF((VLOOKUP(($T$2+34),INDIRECT("Rate"&AF13),$W$2+2,FALSE))="",NA(),(VLOOKUP($T$2+34,INDIRECT("Rate"&AF13),$W$2+2,FALSE))) -> 
I15: 2015 | J15: 2016 | K15: 2017 | L15: 2018 | M15: 2019 | N15: 2020 | O15: 2021 | S15: 5 | T15: Dumfries and Galloway | V15: 5 | W15: Total net migration for people aged 65+ | X15: 1 | AF15: =IF((VLOOKUP(($T$3+34),INDIRECT("Rate"&AF13),$W$2+2,FALSE))="",NA(),(VLOOKUP($T$3+34,INDIRECT("Rate"&AF13),$W$2+2,FALSE))) -> 
C16: Geography | E16: =VLOOKUP($T$2,HBCode,2) -> Not specified | I16: =IF($AD$7=1,AF8,AF14) ->  | S16: 6 | T16: Fife | V16: 6 | W16: Total in-migration | X16: 1 | AF16: =IF((VLOOKUP(($T$4+34),INDIRECT("Rate"&AF13),$W$2+2,FALSE))="",NA(),(VLOOKUP($T$4+34,INDIRECT("Rate"&AF13),$W$2+2,FALSE))) -> 
S17: 7 | T17: Forth Valley | V17: 7 | W17: Total out-migration | X17: 1
C18: Geography | E18: =VLOOKUP($T$3,HBCode,2) -> Not specified | I18: =IF($AD$7=1,AF9,AF15) ->  | S18: 8 | T18: Grampian | V18: 8 | W18: Within Scotland net migration | X18: 1
S19: 9 | T19: Greater Glasgow and Clyde | V19: 9 | W19: Within Scotland in-migration | X19: 1
C20: Geography | E20: =VLOOKUP($T$4,HBCode,2) -> Not specified | I20: =IF($AD$7=1,AF10,AF16) ->  | S20: 10 | T20: Highland | V20: 10 | W20: Within Scotland out-migration | X20: 1
S21: 11 | T21: Lanarkshire | V21: 11 | W21: Rest of UK net migration | X21: 1
S22: 12 | T22: Lothian | V22: 12 | W22: Rest of UK in-migration | X22: 1
S23: 13 | T23: Orkney | V23: 13 | W23: Rest of UK out-migration | X23: 1
S24: 14 | T24: Shetland | V24: 14 | W24: International net migration | X24: 1
S25: 15 | T25: Tayside | V25: 15 | W25: International in-migration | X25: 1
S26: 16 | T26: Western Isles | V26: 16 | W26: International out-migration | X26: 1
W29: (Set code in column X to 1 if data is at mid-year, 2 if data is for calendar year.)
B43: =VLOOKUP('Comparing NHS Board Areas'!$W$2,'Info lookup'!$A$3:$F$23,2) -> Not specified
B44: Indicator of: | D44: =VLOOKUP($W$2,'Info lookup'!$A$4:$F$23,3) -> 
B45: Information: | D45: =VLOOKUP($W$2,'Info lookup'!$A$4:$F$23,4) -> 
B46: Strengths: | D46: =VLOOKUP($W$2,'Info lookup'!$A$4:$F$23,5) -> 
B47: Weaknesses: | D47: =VLOOKUP($W$2,'Info lookup'!$A$4:$F$23,6) -> 
B48: Source: | D48: =VLOOKUP($W$2,'Info lookup'!$A$4:$G$23,7) -> 
B50: Note
B51: 1) The NHS Board areas used for estimates between 2003-04 and 2010-11 are those that existed between 2006 and 2014. The 2011-12 estimates onwards use the NHS Board areas that came into force in April 2014.
B54: © Crown Copyright 2022

Sheet Total net migration
A1: Total net migration
A2: This worksheet contains two tables, presented next to each other vertically with one blank row between the tables.
A3: See notes [1], [2], [3], [4], [5], [6] which are explained in the Notes worksheet.
A4: Return to front page
A5: Council Area | B5: 2003-04 | C5: 2004-05 | D5: 2005-06 | E5: 2006-07 | F5: 2007-08 | G5: 2008-09 | H5: 2009-10 | I5: 2010-11 | J5: 2011-12 | K5: 2012-13 | L5: 2013-14 | M5: 2014-15 | N5: 2015-16 | O5: 2016-17 | P5: 2017-18 | Q5: 2018-19 | R5: 2019-20 | S5: 2020-21
A6: Scotland | B6: 18600 | C6: 25300 | D6: 18800 | E6: 33000 | F6: 26400 | G6: 24400 | H6: 26100 | I6: 30200 | J6: 12700 | K6: 10000 | L6: 17600 | M6: 28000 | N6: 31700 | O6: 23900 | P6: 20900 | Q6: 30200 | R6: 16900 | S6: 27800
A7: Aberdeen City | B7: -1190 | C7: 1110 | D7: 1140 | E7: 2950 | F7: 1650 | G7: 2970 | H7: 2750 | I7: 3080 | J7: 1850 | K7: 1660 | L7: 1410 | M7: 1090 | N7: -970 | O7: -1420 | P7: -1320 | Q7: 810 | R7: 500 | S7: -1510
A8: Aberdeenshire | B8: 3230 | C8: 2780 | D8: 3070 | E8: 2680 | F8: 1880 | G8: 1510 | H8: 1690 | I8: 1380 | J8: 1390 | K8: 1660 | L8: 2040 | M8: 990 | N8: -350 | O8: -690 | P8: -600 | Q8: -380 | R8: -130 | S8: 2240
A9: Angus | B9: 1340 | C9: 1070 | D9: 950 | E9: 760 | F9: 650 | G9: 150 | H9: 360 | I9: 120 | J9: 260 | K9: 110 | L9: 650 | M9: 540 | N9: 70 | O9: 140 | P9: 200 | Q9: 490 | R9: 280 | S9: 940
A10: Argyll and Bute | B10: 930 | C10: 440 | D10: 200 | E10: 380 | F10: -40 | G10: -30 | H10: 290 | I10: 300 | J10: -230 | K10: -20 | L10: -280 | M10: -230 | N10: 230 | O10: 140 | P10: -80 | Q10: -70 | R10: -90 | S10: 1220
A11: City of Edinburgh | B11: 2230 | C11: 5320 | D11: 3410 | E11: 4920 | F11: 3360 | G11: 5860 | H11: 8070 | I11: 8040 | J11: 3970 | K11: 3000 | L11: 3300 | M11: 6260 | N11: 7660 | O11: 5090 | P11: 4620 | Q11: 5910 | R11: 2890 | S11: -1380
A12: Clackmannanshire | B12: 550 | C12: 570 | D12: 300 | E12: 740 | F12: 400 | G12: 40 | H12: -80 | I12: -10 | J12: -260 | K12: -60 | L12: -80 | M12: 140 | N12: 10 | O12: 120 | P12: -30 | Q12: 150 | R12: 100 | S12: 300
A13: Dumfries and Galloway | B13: 1180 | C13: 1190 | D13: 470 | E13: 710 | F13: 810 | G13: 300 | H13: 120 | I13: 380 | J13: -130 | K13: -10 | L13: 330 | M13: 330 | N13: 390 | O13: 320 | P13: 380 | Q13: 730 | R13: 340 | S13: 1500
A14: Dundee City | B14: -740 | C14: 570 | D14: -110 | E14: 270 | F14: 610 | G14: 920 | H14: 980 | I14: 1430 | J14: 490 | K14: 310 | L14: -10 | M14: 210 | N14: 180 | O14: 590 | P14: 350 | Q14: 820 | R14: -80 | S14: -610
A15: East Ayrshire | B15: 370 | C15: 40 | D15: 90 | E15: 330 | F15: 550 | G15: 380 | H15: 30 | I15: 30 | J15: -80 | K15: -120 | L15: -90 | M15: 60 | N15: 150 | O15: 20 | P15: 230 | Q15: 430 | R15: 50 | S15: 900
A16: East Dunbartonshire | B16: -460 | C16: -480 | D16: -450 | E16: -290 | F16: -180 | G16: -80 | H16: -70 | I16: -110 | J16: 260 | K16: 90 | L16: 910 | M16: 550 | N16: 710 | O16: 690 | P16: 370 | Q16: 420 | R16: 610 | S16: 490
A17: East Lothian | B17: 430 | C17: 500 | D17: 930 | E17: 1560 | F17: 1640 | G17: 710 | H17: 600 | I17: 450 | J17: 790 | K17: 520 | L17: 710 | M17: 960 | N17: 960 | O17: 800 | P17: 1150 | Q17: 1270 | R17: 970 | S17: 1820
A18: East Renfrewshire | B18: -100 | C18: -20 | D18: -210 | E18: 50 | F18: -70 | G18: 70 | H18: 370 | I18: 270 | J18: 190 | K18: 540 | L18: 890 | M18: 630 | N18: 820 | O18: 960 | P18: 520 | Q18: 370 | R18: 730 | S18: 690
A19: Falkirk | B19: 1510 | C19: 1640 | D19: 940 | E19: 940 | F19: 660 | G19: 570 | H19: 460 | I19: 1020 | J19: 360 | K19: 380 | L19: 420 | M19: 730 | N19: 940 | O19: 900 | P19: 430 | Q19: 730 | R19: 230 | S19: 610
A20: Fife | B20: 2350 | C20: 2660 | D20: 1560 | E20: 1890 | F20: 1630 | G20: 1550 | H20: 1810 | I20: 2080 | J20: 620 | K20: 300 | L20: 650 | M20: 1230 | N20: 1610 | O20: 1520 | P20: 1240 | Q20: 2300 | R20: 1440 | S20: 1760
A21: Glasgow City | B21: -3420 | C21: -1560 | D21: -1990 | E21: 2300 | F21: 2930 | G21: 3990 | H21: 3050 | I21: 5370 | J21: 1150 | K21: 440 | L21: 2050 | M21: 5840 | N21: 7960 | O21: 5390 | P21: 5360 | Q21: 6270 | R21: 3260 | S21: 390
A22: Highland | B22: 2850 | C22: 2860 | D22: 2050 | E22: 2680 | F22: 2110 | G22: 990 | H22: 990 | I22: 900 | J22: 120 | K22: 90 | L22: 240 | M22: 1120 | N22: 1200 | O22: 810 | P22: 970 | Q22: 980 | R22: 390 | S22: 3390
A23: Inverclyde | B23: -600 | C23: -130 | D23: -350 | E23: -320 | F23: -200 | G23: -360 | H23: -230 | I23: -290 | J23: -310 | K23: -160 | L23: -270 | M23: -140 | N23: -60 | O23: 10 | P23: -180 | Q23: 80 | R23: -100 | S23: 90
A24: Midlothian | B24: -260 | C24: -320 | D24: -260 | E24: 110 | F24: 430 | G24: 470 | H24: 240 | I24: 520 | J24: 560 | K24: 580 | L24: 1020 | M24: 990 | N24: 1010 | O24: 1270 | P24: 1090 | Q24: 940 | R24: 630 | S24: 1390
A25: Moray | B25: 980 | C25: 690 | D25: 460 | E25: 530 | F25: 330 | G25: 400 | H25: -10 | I25: -160 | J25: 330 | K25: 600 | L25: 470 | M25: 410 | N25: 550 | O25: 0 | P25: 50 | Q25: 300 | R25: 20 | S25: 700
A26: Na h-Eileanan Siar | B26: 250 | C26: 270 | D26: 130 | E26: 70 | F26: 20 | G26: 70 | H26: 170 | I26: 20 | J26: 10 | K26: -20 | L26: -90 | M26: -10 | N26: -70 | O26: 160 | P26: 20 | Q26: 50 | R26: -40 | S26: 320
A27: North Ayrshire | B27: 210 | C27: 100 | D27: -20 | E27: 430 | F27: 330 | G27: -120 | H27: -170 | I27: 140 | J27: -400 | K27: -310 | L27: -140 | M27: 60 | N27: 70 | O27: 350 | P27: 50 | Q27: 90 | R27: 140 | S27: 800
A28: North Lanarkshire | B28: 230 | C28: 330 | D28: 300 | E28: 850 | F28: 530 | G28: 90 | H28: -420 | I28: -60 | J28: -270 | K28: -390 | L28: -90 | M28: 140 | N28: 980 | O28: 730 | P28: 550 | Q28: 1220 | R28: 440 | S28: 1080
A29: Orkney Islands | B29: 260 | C29: 140 | D29: 200 | E29: 140 | F29: 100 | G29: 90 | H29: 160 | I29: 100 | J29: 110 | K29: 80 | L29: 70 | M29: 100 | N29: 220 | O29: 200 | P29: 250 | Q29: 150 | R29: 170 | S29: 220
A30: Perth and Kinross | B30: 1670 | C30: 2060 | D30: 2020 | E30: 2440 | F30: 2400 | G30: 1800 | H30: 1860 | I30: 1830 | J30: 980 | K30: 380 | L30: 1410 | M30: 1260 | N30: 1060 | O30: 900 | P30: 660 | Q30: 1030 | R30: 720 | S30: 2530
A31: Renfrewshire | B31: -270 | C31: -290 | D31: -340 | E31: 270 | F31: 400 | G31: 160 | H31: 440 | I31: 590 | J31: -400 | K31: -340 | L31: 370 | M31: 590 | N31: 1610 | O31: 1160 | P31: 1340 | Q31: 1520 | R31: 850 | S31: 1230
A32: Scottish Borders | B32: 1390 | C32: 1000 | D32: 840 | E32: 1490 | F32: 1300 | G32: 420 | H32: 290 | I32: 490 | J32: 50 | K32: 310 | L32: 280 | M32: 440 | N32: 690 | O32: 820 | P32: 680 | Q32: 590 | R32: 270 | S32: 1270
A33: Shetland Islands | B33: 70 | C33: 90 | D33: -110 | E33: 50 | F33: 30 | G33: 200 | H33: 160 | I33: 60 | J33: -70 | K33: -90 | L33: -10 | M33: -40 | N33: -20 | O33: -130 | P33: -80 | Q33: -90 | R33: -30 | S33: 120
A34: South Ayrshire | B34: 680 | C34: 430 | D34: 370 | E34: 580 | F34: 400 | G34: 170 | H34: 440 | I34: 600 | J34: 360 | K34: 410 | L34: 100 | M34: 310 | N34: 550 | O34: 690 | P34: 500 | Q34: 560 | R34: 350 | S34: 1190
A35: South Lanarkshire | B35: 2130 | C35: 1080 | D35: 1330 | E35: 1650 | F35: 740 | G35: 640 | H35: 810 | I35: 590 | J35: 410 | K35: 580 | L35: 510 | M35: 1030 | N35: 1100 | O35: 1280 | P35: 1300 | Q35: 1840 | R35: 1170 | S35: 2660
A36: Stirling | B36: -10 | C36: 660 | D36: 700 | E36: 480 | F36: 240 | G36: 310 | H36: 1010 | I36: 1020 | J36: 770 | K36: 250 | L36: 470 | M36: 1410 | N36: 1010 | O36: 340 | P36: 510 | Q36: 80 | R36: 130 | S36: -230
A37: West Dunbartonshire | B37: -370 | C37: -330 | D37: -110 | E37: -30 | F37: -210 | G37: -60 | H37: -290 | I37: -170 | J37: -280 | K37: -420 | L37: -100 | M37: 80 | N37: 290 | O37: -100 | P37: -210 | Q37: -60 | R37: -210 | S37: -130
A38: West Lothian | B38: 1210 | C38: 840 | D38: 1320 | E38: 1460 | F38: 1000 | G38: 230 | H38: 200 | I38: 220 | J38: 150 | K38: -390 | L38: 440 | M38: 890 | N38: 1130 | O38: 790 | P38: 580 | Q38: 710 | R38: 890 | S38: 1800
A40: NHS Board Areas | B40: 2003-04 | C40: 2004-05 | D40: 2005-06 | E40: 2006-07 | F40: 2007-08 | G40: 2008-09 | H40: 2009-10 | I40: 2010-11 | J40: 2011-12 | K40: 2012-13 | L40: 2013-14 | M40: 2014-15 | N40: 2015-16 | O40: 2016-17 | P40: 2017-18 | Q40: 2018-19 | R40: 2019-20 | S40: 2020-21
A41: Scotland | B41: 18600 | C41: 25300 | D41: 18800 | E41: 33000 | F41: 26400 | G41: 24400 | H41: 26100 | I41: 30200 | J41: 12700 | K41: 10000 | L41: 17600 | M41: 28000 | N41: 31700 | O41: 23900 | P41: 20900 | Q41: 30200 | R41: 16900 | S41: 27800
A42: Ayrshire and Arran | B42: 1260 | C42: 560 | D42: 440 | E42: 1330 | F42: 1280 | G42: 440 | H42: 310 | I42: 760 | J42: -120 | K42: -20 | L42: -120 | M42: 430 | N42: 760 | O42: 1060 | P42: 780 | Q42: 1090 | R42: 540 | S42: 2890
A43: Borders | B43: 1390 | C43: 1000 | D43: 840 | E43: 1490 | F43: 1300 | G43: 420 | H43: 290 | I43: 490 | J43: 50 | K43: 310 | L43: 280 | M43: 440 | N43: 690 | O43: 820 | P43: 680 | Q43: 590 | R43: 270 | S43: 1270
A44: Dumfries and Galloway | B44: 1180 | C44: 1190 | D44: 470 | E44: 710 | F44: 810 | G44: 300 | H44: 120 | I44: 380 | J44: -130 | K44: -10 | L44: 330 | M44: 330 | N44: 390 | O44: 320 | P44: 380 | Q44: 730 | R44: 340 | S44: 1500
A45: Fife | B45: 2350 | C45: 2660 | D45: 1560 | E45: 1890 | F45: 1620 | G45: 1550 | H45: 1810 | I45: 2070 | J45: 620 | K45: 300 | L45: 650 | M45: 1230 | N45: 1610 | O45: 1520 | P45: 1240 | Q45: 2300 | R45: 1440 | S45: 1760
A46: Forth Valley | B46: 2050 | C46: 2870 | D46: 1940 | E46: 2150 | F46: 1300 | G46: 910 | H46: 1390 | I46: 2030 | J46: 870 | K46: 570 | L46: 800 | M46: 2290 | N46: 1960 | O46: 1360 | P46: 900 | Q46: 960 | R46: 460 | S46: 690
A47: Grampian | B47: 3020 | C47: 4580 | D47: 4670 | E47: 6160 | F47: 3860 | G47: 4890 | H47: 4440 | I47: 4300 | J47: 3560 | K47: 3920 | L47: 3920 | M47: 2480 | N47: -770 | O47: -2100 | P47: -1870 | Q47: 730 | R47: 400 | S47: 1430
A48: Greater Glasgow and Clyde | B48: -4560 | C48: -2420 | D48: -2800 | E48: 2710 | F48: 2890 | G48: 4120 | H48: 3860 | I48: 5780 | J48: 620 | K48: 140 | L48: 3850 | M48: 7550 | N48: 11330 | O48: 8110 | P48: 7200 | Q48: 8600 | R48: 5150 | S48: 2740
A49: Highland | B49: 3780 | C49: 3300 | D49: 2250 | E49: 3060 | F49: 2070 | G49: 960 | H49: 1280 | I49: 1200 | J49: -120 | K49: 70 | L49: -40 | M49: 880 | N49: 1430 | O49: 950 | P49: 890 | Q49: 910 | R49: 300 | S49: 4610
A50: Lanarkshire | B50: 1700 | C50: 1020 | D50: 980 | E50: 1770 | F50: 1050 | G50: 330 | H50: -200 | I50: 420 | J50: 140 | K50: 190 | L50: 430 | M50: 1170 | N50: 2080 | O50: 2010 | P50: 1850 | Q50: 3060 | R50: 1610 | S50: 3740
A51: Lothian | B51: 3620 | C51: 6340 | D51: 5400 | E51: 8050 | F51: 6410 | G51: 7270 | H51: 9100 | I51: 9230 | J51: 5470 | K51: 3710 | L51: 5470 | M51: 9100 | N51: 10750 | O51: 7950 | P51: 7440 | Q51: 8830 | R51: 5380 | S51: 3620
A52: Orkney | B52: 260 | C52: 140 | D52: 200 | E52: 140 | F52: 100 | G52: 90 | H52: 160 | I52: 100 | J52: 110 | K52: 80 | L52: 70 | M52: 100 | N52: 220 | O52: 200 | P52: 250 | Q52: 150 | R52: 170 | S52: 220
A53: Shetland | B53: 70 | C53: 90 | D53: -110 | E53: 50 | F53: 30 | G53: 200 | H53: 160 | I53: 60 | J53: -70 | K53: -90 | L53: -10 | M53: -40 | N53: -20 | O53: -130 | P53: -80 | Q53: -90 | R53: -30 | S53: 120
A54: Tayside | B54: 2270 | C54: 3710 | D54: 2870 | E54: 3460 | F54: 3670 | G54: 2870 | H54: 3190 | I54: 3370 | J54: 1730 | K54: 800 | L54: 2040 | M54: 2010 | N54: 1310 | O54: 1630 | P54: 1210 | Q54: 2350 | R54: 910 | S54: 2860
A55: Western Isles | B55: 250 | C55: 270 | D55: 130 | E55: 70 | F55: 20 | G55: 70 | H55: 170 | I55: 20 | J55: 10 | K55: -20 | L55: -90 | M55: -10 | N55: -70 | O55: 160 | P55: 20 | Q55: 50 | R55: -40 | S55: 320

Sheet Total net migration 0-15
A1: Total net migration for ages 0-15
A2: This worksheet contains two tables, presented next to each other vertically with one blank row between the tables.
A3: See notes [1], [2], [3], [4], [5] which are explained in the Notes worksheet.
A4: Return to front page
A5: Council Area | B5: 2003-04 | C5: 2004-05 | D5: 2005-06 | E5: 2006-07 | F5: 2007-08 | G5: 2008-09 | H5: 2009-10 | I5: 2010-11 | J5: 2011-12 | K5: 2012-13 | L5: 2013-14 | M5: 2014-15 | N5: 2015-16 | O5: 2016-17 | P5: 2017-18 | Q5: 2018-19 | R5: 2019-20 | S5: 2020-21
A6: Scotland | B6: 3430 | C6: 4434 | D6: 2416 | E6: 5380 | F6: 4287 | G6: 3522 | H6: 2883 | I6: 3490 | J6: 1637 | K6: 1877 | L6: 3092 | M6: 4093 | N6: 5201 | O6: 3775 | P6: 3298 | Q6: 5145 | R6: 2614 | S6: 5166
A7: Aberdeen City | B7: -347 | C7: 212 | D7: -6 | E7: 333 | F7: 180 | G7: 42 | H7: 162 | I7: 307 | J7: 40 | K7: -296 | L7: -303 | M7: -337 | N7: -318 | O7: -362 | P7: -258 | Q7: -10 | R7: 33 | S7: 17
A8: Aberdeenshire | B8: 991 | C8: 831 | D8: 828 | E8: 692 | F8: 569 | G8: 579 | H8: 496 | I8: 453 | J8: 557 | K8: 745 | L8: 835 | M8: 463 | N8: 120 | O8: 171 | P8: 205 | Q8: 301 | R8: 242 | S8: 619
A9: Angus | B9: 337 | C9: 348 | D9: 276 | E9: 166 | F9: 170 | G9: 116 | H9: 165 | I9: 93 | J9: 33 | K9: 67 | L9: 181 | M9: 194 | N9: 59 | O9: 115 | P9: 145 | Q9: 160 | R9: 105 | S9: 130
A10: Argyll and Bute | B10: 150 | C10: 129 | D10: 41 | E10: 123 | F10: -28 | G10: 56 | H10: 110 | I10: 135 | J10: -37 | K10: 99 | L10: 55 | M10: 26 | N10: 131 | O10: 117 | P10: 47 | Q10: 59 | R10: -42 | S10: 188
A11: City of Edinburgh | B11: -782 | C11: -65 | D11: -280 | E11: -86 | F11: -124 | G11: 208 | H11: 200 | I11: 239 | J11: -63 | K11: -151 | L11: -364 | M11: -258 | N11: 226 | O11: -338 | P11: -376 | Q11: -88 | R11: -307 | S11: -517
A12: Clackmannanshire | B12: 97 | C12: 156 | D12: 97 | E12: 224 | F12: 139 | G12: -21 | H12: 10 | I12: 1 | J12: -102 | K12: 45 | L12: -24 | M12: 8 | N12: 70 | O12: 46 | P12: -13 | Q12: 60 | R12: 79 | S12: 81
A13: Dumfries and Galloway | B13: 258 | C13: 276 | D13: 100 | E13: 195 | F13: 165 | G13: 170 | H13: 4 | I13: 113 | J13: -17 | K13: 9 | L13: 169 | M13: 74 | N13: 164 | O13: 124 | P13: 113 | Q13: 190 | R13: 153 | S13: 323
A14: Dundee City | B14: -294 | C14: 45 | D14: -142 | E14: -16 | F14: 65 | G14: -11 | H14: -111 | I14: -91 | J14: -131 | K14: -37 | L14: -79 | M14: -145 | N14: -62 | O14: -82 | P14: -111 | Q14: -49 | R14: -115 | S14: -104
A15: East Ayrshire | B15: 204 | C15: 59 | D15: 37 | E15: 80 | F15: 165 | G15: 63 | H15: 33 | I15: 25 | J15: 33 | K15: -4 | L15: 16 | M15: 71 | N15: 101 | O15: -11 | P15: 36 | Q15: 29 | R15: -19 | S15: 144
A16: East Dunbartonshire | B16: 260 | C16: 225 | D16: 266 | E16: 206 | F16: 238 | G16: 220 | H16: 270 | I16: 234 | J16: 407 | K16: 251 | L16: 496 | M16: 513 | N16: 538 | O16: 485 | P16: 375 | Q16: 414 | R16: 422 | S16: 427
A17: East Lothian | B17: 170 | C17: 143 | D17: 229 | E17: 346 | F17: 233 | G17: 232 | H17: 131 | I17: 191 | J17: 213 | K17: 154 | L17: 249 | M17: 222 | N17: 169 | O17: 195 | P17: 419 | Q17: 360 | R17: 230 | S17: 359
A18: East Renfrewshire | B18: 201 | C18: 274 | D18: 244 | E18: 180 | F18: 255 | G18: 281 | H18: 325 | I18: 418 | J18: 315 | K18: 584 | L18: 635 | M18: 567 | N18: 626 | O18: 659 | P18: 606 | Q18: 511 | R18: 575 | S18: 589
A19: Falkirk | B19: 271 | C19: 201 | D19: 90 | E19: 108 | F19: 59 | G19: 10 | H19: 50 | I19: 92 | J19: -31 | K19: 70 | L19: 82 | M19: 129 | N19: 166 | O19: 72 | P19: -28 | Q19: 88 | R19: 36 | S19: 54
A20: Fife | B20: 453 | C20: 429 | D20: 196 | E20: 368 | F20: 278 | G20: 282 | H20: 256 | I20: 330 | J20: 62 | K20: 169 | L20: 101 | M20: 279 | N20: 338 | O20: 295 | P20: 335 | Q20: 487 | R20: 334 | S20: 461
A21: Glasgow City | B21: -1535 | C21: -1394 | D21: -1413 | E21: -550 | F21: -648 | G21: -406 | H21: -871 | I21: -488 | J21: -1069 | K21: -923 | L21: -1001 | M21: -698 | N21: -351 | O21: -533 | P21: -533 | Q21: -563 | R21: -1001 | S21: -1022
A22: Highland | B22: 743 | C22: 596 | D22: 418 | E22: 499 | F22: 451 | G22: 271 | H22: 242 | I22: 170 | J22: -28 | K22: 166 | L22: 111 | M22: 339 | N22: 312 | O22: 100 | P22: 253 | Q22: 231 | R22: 82 | S22: 397
A23: Inverclyde | B23: -69 | C23: -4 | D23: -74 | E23: -49 | F23: -7 | G23: -3 | H23: -16 | I23: -34 | J23: -24 | K23: 36 | L23: -3 | M23: 6 | N23: 53 | O23: -3 | P23: 10 | Q23: 97 | R23: 28 | S23: 64
A24: Midlothian | B24: -55 | C24: -33 | D24: -66 | E24: 32 | F24: 121 | G24: 161 | H24: 62 | I24: 174 | J24: 192 | K24: 147 | L24: 275 | M24: 250 | N24: 210 | O24: 259 | P24: 181 | Q24: 215 | R24: 122 | S24: 198
A25: Moray | B25: 150 | C25: 39 | D25: -25 | E25: 86 | F25: 77 | G25: 142 | H25: -4 | I25: -76 | J25: 180 | K25: 163 | L25: 162 | M25: 126 | N25: 170 | O25: 74 | P25: -1 | Q25: 182 | R25: 61 | S25: 198
A26: Na h-Eileanan Siar | B26: 87 | C26: 104 | D26: 41 | E26: 11 | F26: 40 | G26: 48 | H26: 45 | I26: 9 | J26: 26 | K26: -11 | L26: 0 | M26: 22 | N26: 8 | O26: 86 | P26: 9 | Q26: 25 | R26: -15 | S26: 25
A27: North Ayrshire | B27: 137 | C27: 49 | D27: 45 | E27: 103 | F27: 127 | G27: 58 | H27: 1 | I27: 64 | J27: 63 | K27: -13 | L27: 91 | M27: 101 | N27: 131 | O27: 119 | P27: 83 | Q27: 107 | R27: 73 | S27: 65
A28: North Lanarkshire | B28: 18 | C28: 137 | D28: 21 | E28: 377 | F28: 218 | G28: 79 | H28: -46 | I28: 39 | J28: 79 | K28: 109 | L28: 81 | M28: 107 | N28: 367 | O28: 151 | P28: 258 | Q28: 351 | R28: 260 | S28: 208
A29: Orkney Islands | B29: 96 | C29: 63 | D29: 32 | E29: 40 | F29: 45 | G29: 41 | H29: 37 | I29: 5 | J29: 40 | K29: 35 | L29: 44 | M29: 35 | N29: 74 | O29: 46 | P29: 43 | Q29: 73 | R29: 20 | S29: 54
A30: Perth and Kinross | B30: 526 | C30: 373 | D30: 369 | E30: 436 | F30: 391 | G30: 341 | H30: 417 | I30: 390 | J30: 306 | K30: 244 | L30: 424 | M30: 500 | N30: 335 | O30: 430 | P30: 320 | Q30: 398 | R30: 256 | S30: 507
A31: Renfrewshire | B31: -14 | C31: 105 | D31: -1 | E31: 131 | F31: 114 | G31: -51 | H31: 41 | I31: 108 | J31: -66 | K31: -25 | L31: 52 | M31: 98 | N31: 294 | O31: 245 | P31: 216 | Q31: 197 | R31: 130 | S31: -3
A32: Scottish Borders | B32: 332 | C32: 339 | D32: 179 | E32: 322 | F32: 305 | G32: 117 | H32: 119 | I32: 141 | J32: 58 | K32: 101 | L32: 172 | M32: 130 | N32: 230 | O32: 234 | P32: 198 | Q32: 179 | R32: 138 | S32: 308
A33: Shetland Islands | B33: 63 | C33: 95 | D33: -48 | E33: 23 | F33: 16 | G33: 45 | H33: 46 | I33: -15 | J33: -27 | K33: -43 | L33: 4 | M33: -7 | N33: 14 | O33: 3 | P33: 7 | Q33: 43 | R33: 21 | S33: 36
A34: South Ayrshire | B34: 90 | C34: 217 | D34: 177 | E34: 220 | F34: 218 | G34: 28 | H34: 148 | I34: 159 | J34: 104 | K34: 128 | L34: 86 | M34: 183 | N34: 145 | O34: 180 | P34: 92 | Q34: 161 | R34: 116 | S34: 227
A35: South Lanarkshire | B35: 473 | C35: 307 | D35: 391 | E35: 430 | F35: 199 | G35: 263 | H35: 219 | I35: 91 | J35: 250 | K35: 97 | L35: 146 | M35: 388 | N35: 243 | O35: 390 | P35: 223 | Q35: 465 | R35: 234 | S35: 517
A36: Stirling | B36: 341 | C36: 208 | D36: 234 | E36: 118 | F36: 156 | G36: 90 | H36: 324 | I36: 220 | J36: 276 | K36: 116 | L36: 230 | M36: 357 | N36: 277 | O36: 227 | P36: 283 | Q36: 203 | R36: 137 | S36: 197
A37: West Dunbartonshire | B37: -151 | C37: -141 | D37: -58 | E37: 13 | F37: -17 | G37: 44 | H37: -93 | I37: -63 | J37: -39 | K37: -118 | L37: -27 | M37: 60 | N37: 63 | O37: -1 | P37: -62 | Q37: -24 | R37: -37 | S37: -9
A38: West Lothian | B38: 229 | C38: 111 | D38: 218 | E38: 219 | F38: 117 | G38: 27 | H38: 111 | I38: 56 | J38: 37 | K38: -37 | L38: 196 | M38: 290 | N38: 298 | O38: 282 | P38: 223 | Q38: 293 | R38: 263 | S38: 428
A40: NHS Board Areas | B40: 2003-04 | C40: 2004-05 | D40: 2005-06 | E40: 2006-07 | F40: 2007-08 | G40: 2008-09 | H40: 2009-10 | I40: 2010-11 | J40: 2011-12 | K40: 2012-13 | L40: 2013-14 | M40: 2014-15 | N40: 2015-16 | O40: 2016-17 | P40: 2017-18 | Q40: 2018-19 | R40: 2019-20 | S40: 2020-21
A41: Scotland | B41: 3430 | C41: 4434 | D41: 2416 | E41: 5380 | F41: 4287 | G41: 3522 | H41: 2883 | I41: 3490 | J41: 1637 | K41: 1877 | L41: 3092 | M41: 4093 | N41: 5201 | O41: 3775 | P41: 3298 | Q41: 5145 | R41: 2614 | S41: 5166
A42: Ayrshire and Arran | B42: 431 | C42: 325 | D42: 259 | E42: 403 | F42: 510 | G42: 149 | H42: 182 | I42: 248 | J42: 200 | K42: 111 | L42: 193 | M42: 355 | N42: 377 | O42: 288 | P42: =SUM(P15,P27,P34) -> 211 | Q42: 297 | R42: 170 | S42: 436
A43: Borders | B43: 332 | C43: 339 | D43: 179 | E43: 322 | F43: 305 | G43: 117 | H43: 119 | I43: 141 | J43: 58 | K43: 101 | L43: 172 | M43: 130 | N43: 230 | O43: 234 | P43: =P32 -> 198 | Q43: 179 | R43: 138 | S43: 308
A44: Dumfries and Galloway | B44: 258 | C44: 276 | D44: 100 | E44: 195 | F44: 165 | G44: 170 | H44: 4 | I44: 113 | J44: -17 | K44: 9 | L44: 169 | M44: 74 | N44: 164 | O44: 124 | P44: =P13 -> 113 | Q44: 190 | R44: 153 | S44: 323
A45: Fife | B45: 453 | C45: 429 | D45: 196 | E45: 369 | F45: 277 | G45: 281 | H45: 257 | I45: 330 | J45: 62 | K45: 169 | L45: 101 | M45: 279 | N45: 338 | O45: 295 | P45: =P20 -> 335 | Q45: 487 | R45: 334 | S45: 461
A46: Forth Valley | B46: 709 | C46: 565 | D46: 421 | E46: 450 | F46: 354 | G46: 79 | H46: 384 | I46: 313 | J46: 143 | K46: 231 | L46: 288 | M46: 494 | N46: 513 | O46: 345 | P46: =SUM(P36,P19,P12) -> 242 | Q46: 351 | R46: 252 | S46: 332
A47: Grampian | B47: 794 | C47: 1082 | D47: 797 | E47: 1111 | F47: 826 | G47: 763 | H47: 654 | I47: 684 | J47: 777 | K47: 612 | L47: 694 | M47: 252 | N47: -28 | O47: -117 | P47: =SUM(P7,P8,P25) -> -54 | Q47: 473 | R47: 336 | S47: 834
A48: Greater Glasgow and Clyde | B48: -1291 | C48: -789 | D48: -887 | E48: 69 | F48: -103 | G48: 138 | H48: -231 | I48: 186 | J48: -476 | K48: -195 | L48: 152 | M48: 546 | N48: 1223 | O48: 852 | P48: =SUM(P37,P31,P23,P21,P18,P16) -> 612 | Q48: 632 | R48: 117 | S48: 46
A49: Highland | B49: 893 | C49: 725 | D49: 459 | E49: 622 | F49: 423 | G49: 327 | H49: 352 | I49: 305 | J49: -65 | K49: 265 | L49: 166 | M49: 365 | N49: 443 | O49: 217 | P49: =SUM(P22,P10) -> 300 | Q49: 290 | R49: 40 | S49: 585
A50: Lanarkshire | B50: 474 | C50: 298 | D50: 263 | E50: 669 | F50: 455 | G50: 289 | H50: 60 | I50: 119 | J50: 329 | K50: 206 | L50: 227 | M50: 495 | N50: 610 | O50: 541 | P50: =SUM(P28,P35) -> 481 | Q50: 816 | R50: 494 | S50: 725
A51: Lothian | B51: -438 | C51: 156 | D51: 101 | E51: 511 | F51: 347 | G51: 628 | H51: 504 | I51: 660 | J51: 379 | K51: 113 | L51: 356 | M51: 504 | N51: 903 | O51: 398 | P51: =SUM(P11,P17,P24,P38) -> 447 | Q51: 780 | R51: 308 | S51: 468
A52: Orkney | B52: 96 | C52: 63 | D52: 32 | E52: 40 | F52: 45 | G52: 41 | H52: 37 | I52: 5 | J52: 40 | K52: 35 | L52: 44 | M52: 35 | N52: 74 | O52: 46 | P52: =P29 -> 43 | Q52: 73 | R52: 20 | S52: 54
A53: Shetland | B53: 63 | C53: 95 | D53: -48 | E53: 23 | F53: 16 | G53: 45 | H53: 46 | I53: -15 | J53: -27 | K53: -43 | L53: 4 | M53: -7 | N53: 14 | O53: 3 | P53: =P33 -> 7 | Q53: 43 | R53: 21 | S53: 36
A54: Tayside | B54: 569 | C54: 766 | D54: 503 | E54: 585 | F54: 627 | G54: 447 | H54: 470 | I54: 392 | J54: 208 | K54: 274 | L54: 526 | M54: 549 | N54: 332 | O54: 463 | P54: =SUM(P30,P14,P9) -> 354 | Q54: 509 | R54: 246 | S54: 533
A55: Western Isles | B55: 87 | C55: 104 | D55: 41 | E55: 11 | F55: 40 | G55: 48 | H55: 45 | I55: 9 | J55: 26 | K55: -11 | L55: 0 | M55: 22 | N55: 8 | O55: 86 | P55: =P26 -> 9 | Q55: 25 | R55: -15 | S55: 25

Sheet Total net migration 16-64
A1: Total net migration for ages 16-64
A2: This worksheet contains two tables, presented next to each other vertically with one blank row between the tables.
A3: See notes [1], [2], [3], [4], [5] which are explained in the Notes worksheet.
A4: Return to front page
A5: Council Area | B5: 2003-04 | C5: 2004-05 | D5: 2005-06 | E5: 2006-07 | F5: 2007-08 | G5: 2008-09 | H5: 2009-10 | I5: 2010-11 | J5: 2011-12 | K5: 2012-13 | L5: 2013-14 | M5: 2014-15 | N5: 2015-16 | O5: 2016-17 | P5: 2017-18 | Q5: 2018-19 | R5: 2019-20 | S5: 2020-21
A6: Scotland | B6: 13595 | C6: 19931 | D6: 16044 | E6: 26935 | F6: 21574 | G6: 20601 | H6: 22931 | I6: 26224 | J6: 11462 | K6: 8267 | L6: 14470 | M6: 23858 | N6: 26475 | O6: 19788 | P6: 17048 | Q6: 24399 | R6: 13928 | S6: 21236
A7: Aberdeen City | B7: -708 | C7: 963 | D7: 1306 | E7: 2776 | F7: 1641 | G7: 3043 | H7: 2709 | I7: 2859 | J7: 1987 | K7: 2079 | L7: 1928 | M7: 1625 | N7: -531 | O7: -1024 | P7: -958 | Q7: 854 | R7: 464 | S7: -1536
A8: Aberdeenshire | B8: 1815 | C8: 1667 | D8: 1962 | E8: 1758 | F8: 1177 | G8: 884 | H8: 1193 | I8: 975 | J8: 924 | K8: 1039 | L8: 1374 | M8: 719 | N8: -358 | O8: -846 | P8: -813 | Q8: -702 | R8: -348 | S8: 1369
A9: Angus | B9: 796 | C9: 594 | D9: 576 | E9: 494 | F9: 342 | G9: -13 | H9: 174 | I9: -35 | J9: 137 | K9: -36 | L9: 394 | M9: 307 | N9: 18 | O9: -34 | P9: -14 | Q9: 197 | R9: 101 | S9: 711
A10: Argyll and Bute | B10: 718 | C10: 307 | D10: 136 | E10: 225 | F10: 12 | G10: -28 | H10: 224 | I10: 181 | J10: -128 | K10: -76 | L10: -269 | M10: -198 | N10: 278 | O10: 103 | P10: 3 | Q10: -48 | R10: 42 | S10: 983
A11: City of Edinburgh | B11: 3398 | C11: 5731 | D11: 3946 | E11: 5148 | F11: 3653 | G11: 5710 | H11: 7905 | I11: 7825 | J11: 4018 | K11: 3149 | L11: 3621 | M11: 6593 | N11: 7365 | O11: 5466 | P11: 4974 | Q11: 6064 | R11: 3265 | S11: -779
A12: Clackmannanshire | B12: 413 | C12: 408 | D12: 223 | E12: 503 | F12: 288 | G12: 82 | H12: -76 | I12: -18 | J12: -198 | K12: -119 | L12: -73 | M12: 51 | N12: -53 | O12: 89 | P12: -40 | Q12: 92 | R12: 29 | S12: 212
A13: Dumfries and Galloway | B13: 723 | C13: 726 | D13: 318 | E13: 404 | F13: 523 | G13: 111 | H13: 91 | I13: 230 | J13: -75 | K13: 19 | L13: 105 | M13: 206 | N13: 229 | O13: 192 | P13: 182 | Q13: 462 | R13: 121 | S13: 1093
A14: Dundee City | B14: -357 | C14: 634 | D14: 113 | E14: 320 | F14: 608 | G14: 1036 | H14: 1133 | I14: 1603 | J14: 730 | K14: 395 | L14: 154 | M14: 410 | N14: 244 | O14: 726 | P14: 494 | Q14: 921 | R14: 71 | S14: -514
A15: East Ayrshire | B15: 181 | C15: -27 | D15: 14 | E15: 276 | F15: 388 | G15: 326 | H15: -17 | I15: 15 | J15: -93 | K15: -132 | L15: -76 | M15: 10 | N15: 17 | O15: 32 | P15: 115 | Q15: 352 | R15: 20 | S15: 662
A16: East Dunbartonshire | B16: -613 | C16: -644 | D16: -613 | E16: -435 | F16: -362 | G16: -218 | H16: -294 | I16: -312 | J16: -157 | K16: -177 | L16: 339 | M16: 60 | N16: 170 | O16: 215 | P16: 10 | Q16: 21 | R16: 214 | S16: 83
A17: East Lothian | B17: 179 | C17: 267 | D17: 561 | E17: 1167 | F17: 1318 | G17: 421 | H17: 397 | I17: 199 | J17: 511 | K17: 313 | L17: 374 | M17: 606 | N17: 667 | O17: 468 | P17: 609 | Q17: 760 | R17: 594 | S17: 1244
A18: East Renfrewshire | B18: -348 | C18: -326 | D18: -494 | E18: -118 | F18: -327 | G18: -280 | H18: 11 | I18: -117 | J18: -100 | K18: -24 | L18: 230 | M18: -74 | N18: 159 | O18: 241 | P18: -41 | Q18: -97 | R18: 139 | S18: 133
A19: Falkirk | B19: 1168 | C19: 1392 | D19: 792 | E19: 820 | F19: 532 | G19: 477 | H19: 315 | I19: 889 | J19: 346 | K19: 226 | L19: 318 | M19: 571 | N19: 744 | O19: 781 | P19: 369 | Q19: 606 | R19: 170 | S19: 548
A20: Fife | B20: 1734 | C20: 1997 | D20: 1292 | E20: 1394 | F20: 1248 | G20: 1146 | H20: 1453 | I20: 1618 | J20: 474 | K20: 121 | L20: 363 | M20: 901 | N20: 1182 | O20: 1176 | P20: 836 | Q20: 1633 | R20: 939 | S20: 1123
A21: Glasgow City | B21: -1170 | C21: 531 | D21: 19 | E21: 3295 | F21: 3976 | G21: 4706 | H21: 4271 | I21: 6127 | J21: 2536 | K21: 1679 | L21: 3303 | M21: 6790 | N21: 8515 | O21: 6086 | P21: 6034 | Q21: 6907 | R21: 4413 | S21: 1746
A22: Highland | B22: 1818 | C22: 2040 | D22: 1506 | E22: 2010 | F22: 1495 | G22: 667 | H22: 736 | I22: 667 | J22: 187 | K22: -30 | L22: 172 | M22: 819 | N22: 1016 | O22: 856 | P22: 777 | Q22: 747 | R22: 291 | S22: 2807
A23: Inverclyde | B23: -485 | C23: -145 | D23: -289 | E23: -259 | F23: -160 | G23: -334 | H23: -220 | I23: -265 | J23: -305 | K23: -195 | L23: -236 | M23: -148 | N23: -153 | O23: -36 | P23: -210 | Q23: -49 | R23: -125 | S23: 3
A24: Midlothian | B24: -173 | C24: -273 | D24: -206 | E24: 99 | F24: 270 | G24: 291 | H24: 133 | I24: 302 | J24: 343 | K24: 443 | L24: 753 | M24: 689 | N24: 783 | O24: 994 | P24: 865 | Q24: 704 | R24: 531 | S24: 1199
A25: Moray | B25: 697 | C25: 549 | D25: 455 | E25: 347 | F25: 155 | G25: 251 | H25: -51 | I25: -114 | J25: 103 | K25: 402 | L25: 198 | M25: 249 | N25: 343 | O25: -105 | P25: 16 | Q25: 93 | R25: -120 | S25: 481
A26: Na h-Eileanan Siar | B26: 126 | C26: 125 | D26: 60 | E26: 45 | F26: -59 | G26: 2 | H26: 86 | I26: 12 | J26: -26 | K26: -20 | L26: -90 | M26: -18 | N26: -65 | O26: 53 | P26: 16 | Q26: 29 | R26: -16 | S26: 272
A27: North Ayrshire | B27: -72 | C27: -22 | D27: -124 | E27: 242 | F27: 120 | G27: -252 | H27: -218 | I27: 11 | J27: -476 | K27: -333 | L27: -271 | M27: -41 | N27: 21 | O27: 147 | P27: -62 | Q27: -28 | R27: 28 | S27: 666
A28: North Lanarkshire | B28: 184 | C28: 151 | D28: 268 | E28: 589 | F28: 379 | G28: 7 | H28: -358 | I28: -81 | J28: -279 | K28: -407 | L28: -138 | M28: -29 | N28: 726 | O28: 592 | P28: 324 | Q28: 962 | R28: 236 | S28: 916
A29: Orkney Islands | B29: 135 | C29: 67 | D29: 142 | E29: 80 | F29: 30 | G29: 36 | H29: 98 | I29: 85 | J29: 70 | K29: 39 | L29: 14 | M29: 63 | N29: 127 | O29: 121 | P29: 184 | Q29: 82 | R29: 110 | S29: 166
A30: Perth and Kinross | B30: 910 | C30: 1488 | D30: 1520 | E30: 1865 | F30: 1895 | G30: 1396 | H30: 1363 | I30: 1255 | J30: 644 | K30: 81 | L30: 945 | M30: 649 | N30: 631 | O30: 364 | P30: 270 | Q30: 566 | R30: 401 | S30: 1812
A31: Renfrewshire | B31: -192 | C31: -401 | D31: -312 | E31: 127 | F31: 241 | G31: 189 | H31: 364 | I31: 408 | J31: -323 | K31: -321 | L31: 254 | M31: 459 | N31: 1233 | O31: 894 | P31: 1015 | Q31: 1242 | R31: 641 | S31: 1151
A32: Scottish Borders | B32: 849 | C32: 605 | D32: 649 | E32: 1031 | F32: 950 | G32: 189 | H32: 146 | I32: 370 | J32: 13 | K32: 175 | L32: 173 | M32: 282 | N32: 500 | O32: 566 | P32: 461 | Q32: 394 | R32: 151 | S32: 895
A33: Shetland Islands | B33: -11 | C33: -11 | D33: -69 | E33: 15 | F33: 4 | G33: 135 | H33: 114 | I33: 64 | J33: -59 | K33: -23 | L33: -1 | M33: 4 | N33: -30 | O33: -133 | P33: -72 | Q33: -125 | R33: -34 | S33: 90
A34: South Ayrshire | B34: 376 | C34: 78 | D34: 99 | E34: 287 | F34: 141 | G34: 73 | H34: 267 | I34: 324 | J34: 155 | K34: 148 | L34: -86 | M34: 28 | N34: 239 | O34: 372 | P34: 255 | Q34: 288 | R34: 204 | S34: 757
A35: South Lanarkshire | B35: 1272 | C35: 562 | D35: 763 | E35: 1014 | F35: 401 | G35: 269 | H35: 470 | I35: 335 | J35: 49 | K35: 304 | L35: 318 | M35: 616 | N35: 744 | O35: 897 | P35: 954 | Q35: 1262 | R35: 902 | S35: 2184
A36: Stirling | B36: -407 | C36: 441 | D36: 443 | E36: 317 | F36: 52 | G36: 198 | H36: 684 | I36: 817 | J36: 530 | K36: 226 | L36: 235 | M36: 1092 | N36: 743 | O36: 130 | P36: 265 | Q36: -132 | R36: 4 | S36: -458
A37: West Dunbartonshire | B37: -196 | C37: -165 | D37: -35 | E37: -21 | F37: -137 | G37: -83 | H37: -208 | I37: -123 | J37: -164 | K37: -257 | L37: -51 | M37: 30 | N37: 213 | O37: -70 | P37: -112 | Q37: -50 | R37: -125 | S37: -84
A38: West Lothian | B38: 835 | C38: 622 | D38: 1023 | E38: 1120 | F38: 780 | G38: 164 | H38: 36 | I38: 118 | J38: 88 | K38: -421 | L38: 196 | M38: 537 | N38: 758 | O38: 475 | P38: 342 | Q38: 392 | R38: 615 | S38: 1301
A40: NHS Board Areas | B40: 2003-04 | C40: 2004-05 | D40: 2005-06 | E40: 2006-07 | F40: 2007-08 | G40: 2008-09 | H40: 2009-10 | I40: 2010-11 | J40: 2011-12 | K40: 2012-13 | L40: 2013-14 | M40: 2014-15 | N40: 2015-16 | O40: 2016-17 | P40: 2017-18 | Q40: 2018-19 | R40: 2019-20 | S40: 2020-21
A41: Scotland | B41: 13595 | C41: 19931 | D41: 16044 | E41: 26935 | F41: 21574 | G41: 20601 | H41: 22931 | I41: 26224 | J41: 11462 | K41: 8267 | L41: 14470 | M41: 23858 | N41: 26475 | O41: 19788 | P41: 17048 | Q41: 24399 | R41: 13928 | S41: 21236
A42: Ayrshire and Arran | B42: 485 | C42: 29 | D42: -11 | E42: 805 | F42: 649 | G42: 147 | H42: 32 | I42: 350 | J42: -414 | K42: -317 | L42: -433 | M42: -3 | N42: 277 | O42: 551 | P42: =SUM(P15,P27,P34) -> 308 | Q42: 612 | R42: 252 | S42: 2085
A43: Borders | B43: 849 | C43: 605 | D43: 649 | E43: 1031 | F43: 950 | G43: 189 | H43: 146 | I43: 370 | J43: 13 | K43: 175 | L43: 173 | M43: 282 | N43: 500 | O43: 566 | P43: =P32 -> 461 | Q43: 394 | R43: 151 | S43: 895
A44: Dumfries and Galloway | B44: 723 | C44: 726 | D44: 318 | E44: 404 | F44: 523 | G44: 111 | H44: 91 | I44: 230 | J44: -75 | K44: 19 | L44: 105 | M44: 206 | N44: 229 | O44: 192 | P44: =P13 -> 182 | Q44: 462 | R44: 121 | S44: 1093
A45: Fife | B45: 1734 | C45: 1997 | D45: 1293 | E45: 1391 | F45: 1242 | G45: 1145 | H45: 1455 | I45: 1614 | J45: 474 | K45: 121 | L45: 363 | M45: 901 | N45: 1182 | O45: 1176 | P45: =P20 -> 836 | Q45: 1633 | R45: 939 | S45: 1123
A46: Forth Valley | B46: 1174 | C46: 2241 | D46: 1458 | E46: 1640 | F46: 872 | G46: 757 | H46: 923 | I46: 1688 | J46: 678 | K46: 333 | L46: 480 | M46: 1714 | N46: 1434 | O46: 1000 | P46: =SUM(P36,P19,P12) -> 594 | Q46: 566 | R46: 203 | S46: 302
A47: Grampian | B47: 1804 | C47: 3179 | D47: 3723 | E47: 4881 | F47: 2973 | G47: 4178 | H47: 3851 | I47: 3720 | J47: 3014 | K47: 3520 | L47: 3500 | M47: 2593 | N47: -546 | O47: -1975 | P47: =SUM(P7,P8,P25) -> -1755 | Q47: 245 | R47: -4 | S47: 314
A48: Greater Glasgow and Clyde | B48: -2385 | C48: -877 | D48: -1172 | E48: 3247 | F48: 3555 | G48: 4397 | H48: 4428 | I48: 5781 | J48: 1487 | K48: 705 | L48: 3839 | M48: 7117 | N48: 10137 | O48: 7330 | P48: =SUM(P37,P31,P23,P21,P18,P16) -> 6696 | Q48: 7974 | R48: 5157 | S48: 3032
A49: Highland | B49: 2536 | C49: 2347 | D49: 1642 | E49: 2235 | F49: 1507 | G49: 639 | H49: 960 | I49: 848 | J49: 59 | K49: -106 | L49: -97 | M49: 621 | N49: 1294 | O49: 959 | P49: =SUM(P22,P10) -> 780 | Q49: 699 | R49: 333 | S49: 3790
A50: Lanarkshire | B50: 837 | C50: 440 | D50: 479 | E50: 945 | F50: 456 | G50: -141 | H50: -392 | I50: 191 | J50: -230 | K50: -103 | L50: 180 | M50: 587 | N50: 1470 | O50: 1489 | P50: =SUM(P28,P35) -> 1278 | Q50: 2224 | R50: 1138 | S50: 3100
A51: Lothian | B51: 4239 | C51: 6347 | D51: 5324 | E51: 7534 | F51: 6021 | G51: 6586 | H51: 8471 | I51: 8444 | J51: 4960 | K51: 3484 | L51: 4944 | M51: 8425 | N51: 9573 | O51: 7403 | P51: =SUM(P11,P17,P24,P38) -> 6790 | Q51: 7920 | R51: 5005 | S51: 2965
A52: Orkney | B52: 135 | C52: 67 | D52: 142 | E52: 80 | F52: 30 | G52: 36 | H52: 98 | I52: 85 | J52: 70 | K52: 39 | L52: 14 | M52: 63 | N52: 127 | O52: 121 | P52: =P29 -> 184 | Q52: 82 | R52: 110 | S52: 166
A53: Shetland | B53: -11 | C53: -11 | D53: -69 | E53: 15 | F53: 4 | G53: 135 | H53: 114 | I53: 64 | J53: -59 | K53: -23 | L53: -1 | M53: 4 | N53: -30 | O53: -133 | P53: =P33 -> -72 | Q53: -125 | R53: -34 | S53: 90
A54: Tayside | B54: 1349 | C54: 2716 | D54: 2208 | E54: 2682 | F54: 2851 | G54: 2420 | H54: 2668 | I54: 2827 | J54: 1511 | K54: 440 | L54: 1493 | M54: 1366 | N54: 893 | O54: 1056 | P54: =SUM(P30,P14,P9) -> 750 | Q54: 1684 | R54: 573 | S54: 2009
A55: Western Isles | B55: 126 | C55: 125 | D55: 60 | E55: 45 | F55: -59 | G55: 2 | H55: 86 | I55: 12 | J55: -26 | K55: -20 | L55: -90 | M55: -18 | N55: -65 | O55: 53 | P55: =P26 -> 16 | Q55: 29 | R55: -16 | S55: 272

Sheet Total net migration 65+
A1: Total net migration for ages 65+
A2: This worksheet contains two tables, presented next to each other vertically with one blank row between the tables.
A3: See notes [1], [2], [3], [4], [5] which are explained in the Notes worksheet.
A4: Return to front page
A5: Council Area | B5: 2003-04 | C5: 2004-05 | D5: 2005-06 | E5: 2006-07 | F5: 2007-08 | G5: 2008-09 | H5: 2009-10 | I5: 2010-11 | J5: 2011-12 | K5: 2012-13 | L5: 2013-14 | M5: 2014-15 | N5: 2015-16 | O5: 2016-17 | P5: 2017-18 | Q5: 2018-19 | R5: 2019-20 | S5: 2020-21
A6: Scotland | B6: 1597 | C6: 942 | D6: 362 | E6: 734 | F6: 548 | G6: 299 | H6: 261 | I6: 495 | J6: -361 | K6: -182 | L6: 23 | M6: 17 | N6: 17 | O6: 292 | P6: 554 | Q6: 702 | R6: 340 | S6: 1372
A7: Aberdeen City | B7: -136 | C7: -65 | D7: -157 | E7: -156 | F7: -175 | G7: -111 | H7: -117 | I7: -88 | J7: -180 | K7: -119 | L7: -213 | M7: -203 | N7: -120 | O7: -30 | P7: -102 | Q7: -34 | R7: 5 | S7: 12
A8: Aberdeenshire | B8: 424 | C8: 282 | D8: 277 | E8: 233 | F8: 135 | G8: 44 | H8: 4 | I8: -44 | J8: -95 | K8: -120 | L8: -168 | M8: -196 | N8: -116 | O8: -13 | P8: 8 | Q8: 18 | R8: -21 | S8: 248
A9: Angus | B9: 209 | C9: 131 | D9: 102 | E9: 96 | F9: 141 | G9: 45 | H9: 16 | I9: 57 | J9: 88 | K9: 82 | L9: 70 | M9: 36 | N9: -9 | O9: 63 | P9: 67 | Q9: 136 | R9: 71 | S9: 102
A10: Argyll and Bute | B10: 58 | C10: 1 | D10: 23 | E10: 30 | F10: -23 | G10: -55 | H10: -43 | I10: -12 | J10: -68 | K10: -46 | L10: -61 | M10: -61 | N10: -175 | O10: -83 | P10: -131 | Q10: -77 | R10: -93 | S10: 44
A11: City of Edinburgh | B11: -382 | C11: -349 | D11: -254 | E11: -143 | F11: -173 | G11: -57 | H11: -36 | I11: -20 | J11: 11 | K11: 0 | L11: 39 | M11: -74 | N11: 68 | O11: -40 | P11: 23 | Q11: -70 | R11: -68 | S11: -83
A12: Clackmannanshire | B12: 41 | C12: 8 | D12: -23 | E12: 14 | F12: -30 | G12: -22 | H12: -9 | I12: 9 | J12: 44 | K12: 15 | L12: 15 | M12: 83 | N12: -5 | O12: -14 | P12: 22 | Q12: 0 | R12: -4 | S12: 7
A13: Dumfries and Galloway | B13: 202 | C13: 189 | D13: 51 | E13: 113 | F13: 122 | G13: 23 | H13: 24 | I13: 34 | J13: -36 | K13: -34 | L13: 60 | M13: 50 | N13: 1 | O13: 6 | P13: 88 | Q13: 76 | R13: 61 | S13: 85
A14: Dundee City | B14: -89 | C14: -107 | D14: -80 | E14: -39 | F14: -65 | G14: -106 | H14: -41 | I14: -85 | J14: -107 | K14: -49 | L14: -87 | M14: -56 | N14: -5 | O14: -56 | P14: -31 | Q14: -48 | R14: -38 | S14: 4
A15: East Ayrshire | B15: -18 | C15: 4 | D15: 40 | E15: -31 | F15: -4 | G15: -6 | H15: 14 | I15: -10 | J15: -16 | K15: 16 | L15: -30 | M15: -19 | N15: 33 | O15: -3 | P15: 79 | Q15: 51 | R15: 46 | S15: 95
A16: East Dunbartonshire | B16: -104 | C16: -63 | D16: -102 | E16: -60 | F16: -56 | G16: -81 | H16: -47 | I16: -27 | J16: 10 | K16: 18 | L16: 74 | M16: -24 | N16: -2 | O16: -12 | P16: -15 | Q16: -11 | R16: -28 | S16: -24
A17: East Lothian | B17: 81 | C17: 87 | D17: 135 | E17: 46 | F17: 84 | G17: 52 | H17: 67 | I17: 55 | J17: 63 | K17: 54 | L17: 89 | M17: 133 | N17: 124 | O17: 137 | P17: 123 | Q17: 153 | R17: 148 | S17: 217
A18: East Renfrewshire | B18: 50 | C18: 35 | D18: 37 | E18: -17 | F18: 0 | G18: 71 | H18: 33 | I18: -31 | J18: -26 | K18: -21 | L18: 25 | M18: 134 | N18: 34 | O18: 58 | P18: -44 | Q18: -43 | R18: 18 | S18: -36
A19: Falkirk | B19: 71 | C19: 49 | D19: 59 | E19: 7 | F19: 72 | G19: 78 | H19: 93 | I19: 40 | J19: 41 | K19: 79 | L19: 15 | M19: 34 | N19: 30 | O19: 48 | P19: 87 | Q19: 36 | R19: 22 | S19: 12
A20: Fife | B20: 161 | C20: 231 | D20: 72 | E20: 131 | F20: 101 | G20: 122 | H20: 97 | I20: 128 | J20: 87 | K20: 14 | L20: 186 | M20: 48 | N20: 88 | O20: 53 | P20: 73 | Q20: 183 | R20: 162 | S20: 180
A21: Glasgow City | B21: -713 | C21: -695 | D21: -594 | E21: -442 | F21: -399 | G21: -311 | H21: -350 | I21: -269 | J21: -321 | K21: -317 | L21: -255 | M21: -252 | N21: -201 | O21: -163 | P21: -145 | Q21: -77 | R21: -152 | S21: -335
A22: Highland | B22: 289 | C22: 226 | D22: 130 | E22: 168 | F22: 165 | G22: 52 | H22: 12 | I22: 61 | J22: -41 | K22: -43 | L22: -44 | M22: -43 | N22: -132 | O22: -143 | P22: -62 | Q22: 2 | R22: 21 | S22: 186
A23: Inverclyde | B23: -45 | C23: 19 | D23: 10 | E23: -10 | F23: -36 | G23: -22 | H23: 10 | I23: 10 | J23: 24 | K23: -1 | L23: -31 | M23: 6 | N23: 44 | O23: 49 | P23: 22 | Q23: 34 | R23: 1 | S23: 24
A24: Midlothian | B24: -35 | C24: -15 | D24: 11 | E24: -22 | F24: 36 | G24: 15 | H24: 42 | I24: 46 | J24: 24 | K24: -14 | L24: -8 | M24: 48 | N24: 15 | O24: 18 | P24: 41 | Q24: 21 | R24: -25 | S24: -10
A25: Moray | B25: 133 | C25: 105 | D25: 28 | E25: 92 | F25: 98 | G25: 11 | H25: 46 | I25: 28 | J25: 44 | K25: 31 | L25: 107 | M25: 35 | N25: 40 | O25: 34 | P25: 36 | Q25: 23 | R25: 79 | S25: 18
A26: Na h-Eileanan Siar | B26: 33 | C26: 45 | D26: 28 | E26: 17 | F26: 42 | G26: 21 | H26: 38 | I26: 2 | J26: 13 | K26: 12 | L26: 2 | M26: -9 | N26: -10 | O26: 16 | P26: -6 | Q26: -4 | R26: -8 | S26: 27
A27: North Ayrshire | B27: 141 | C27: 68 | D27: 58 | E27: 83 | F27: 86 | G27: 77 | H27: 52 | I27: 61 | J27: 12 | K27: 38 | L27: 43 | M27: 0 | N27: -87 | O27: 86 | P27: 33 | Q27: 15 | R27: 41 | S27: 67
A28: North Lanarkshire | B28: 26 | C28: 42 | D28: 13 | E28: -117 | F28: -63 | G28: 2 | H28: -18 | I28: -16 | J28: -71 | K28: -87 | L28: -29 | M28: 62 | N28: -111 | O28: -9 | P28: -33 | Q28: -94 | R28: -60 | S28: -45
A29: Orkney Islands | B29: 30 | C29: 5 | D29: 26 | E29: 23 | F29: 20 | G29: 11 | H29: 28 | I29: 9 | J29: -4 | K29: 6 | L29: 9 | M29: 2 | N29: 22 | O29: 37 | P29: 26 | Q29: -10 | R29: 37 | S29: -2
A30: Perth and Kinross | B30: 229 | C30: 202 | D30: 134 | E30: 139 | F30: 114 | G30: 63 | H30: 81 | I30: 181 | J30: 30 | K30: 52 | L30: 38 | M30: 114 | N30: 96 | O30: 104 | P30: 67 | Q30: 69 | R30: 60 | S30: 211
A31: Renfrewshire | B31: -62 | C31: 10 | D31: -31 | E31: 11 | F31: 43 | G31: 18 | H31: 38 | I31: 73 | J31: -6 | K31: 3 | L31: 66 | M31: 34 | N31: 87 | O31: 23 | P31: 110 | Q31: 78 | R31: 75 | S31: 77
A32: Scottish Borders | B32: 204 | C32: 59 | D32: 7 | E32: 139 | F32: 47 | G32: 115 | H32: 21 | I32: -23 | J32: -26 | K32: 32 | L32: -65 | M32: 23 | N32: -40 | O32: 18 | P32: 23 | Q32: 13 | R32: -19 | S32: 65
A33: Shetland Islands | B33: 20 | C33: 4 | D33: 5 | E33: 8 | F33: 6 | G33: 23 | H33: -5 | I33: 10 | J33: 18 | K33: -23 | L33: -8 | M33: -33 | N33: 1 | O33: -3 | P33: -10 | Q33: -6 | R33: -18 | S33: -3
A34: South Ayrshire | B34: 218 | C34: 130 | D34: 90 | E34: 71 | F34: 41 | G34: 72 | H34: 28 | I34: 113 | J34: 98 | K34: 129 | L34: 103 | M34: 100 | N34: 162 | O34: 138 | P34: 148 | Q34: 114 | R34: 34 | S34: 209
A35: South Lanarkshire | B35: 382 | C35: 210 | D35: 180 | E35: 207 | F35: 135 | G35: 108 | H35: 119 | I35: 161 | J35: 109 | K35: 178 | L35: 47 | M35: 30 | N35: 110 | O35: -9 | P35: 122 | Q35: 109 | R35: 38 | S35: -38
A36: Stirling | B36: 56 | C36: 9 | D36: 24 | E36: 42 | F36: 36 | G36: 22 | H36: -2 | I36: -16 | J36: -32 | K36: -89 | L36: 2 | M36: -37 | N36: -8 | O36: -22 | P36: -43 | Q36: 11 | R36: -10 | S36: 33
A37: West Dunbartonshire | B37: -27 | C37: -26 | D37: -15 | E37: -24 | F37: -51 | G37: -17 | H37: 10 | I37: 13 | J37: -77 | K37: -49 | L37: -20 | M37: -11 | N37: 12 | O37: -25 | P37: -38 | Q37: 13 | R37: -43 | S37: -41
A38: West Lothian | B38: 150 | C38: 111 | D38: 78 | E38: 125 | F38: 99 | G38: 42 | H38: 56 | I38: 45 | J38: 29 | K38: 71 | L38: 52 | M38: 63 | N38: 71 | O38: 29 | P38: 16 | Q38: 21 | R38: 8 | S38: 66
A40: NHS Health Boards | B40: 2003-04 | C40: 2004-05 | D40: 2005-06 | E40: 2006-07 | F40: 2007-08 | G40: 2008-09 | H40: 2009-10 | I40: 2010-11 | J40: 2011-12 | K40: 2012-13 | L40: 2013-14 | M40: 2014-15 | N40: 2015-16 | O40: 2016-17 | P40: 2017-18 | Q40: 2018-19 | R40: 2019-20 | S40: 2020-21
A41: Scotland | B41: 1597 | C41: 942 | D41: 362 | E41: 734 | F41: 548 | G41: 299 | H41: 261 | I41: 495 | J41: -361 | K41: -182 | L41: 23 | M41: 17 | N41: 17 | O41: 292 | P41: 554 | Q41: 702 | R41: 340 | S41: 1372
A42: Ayrshire and Arran | B42: 341 | C42: 202 | D42: 188 | E42: 123 | F42: 123 | G42: 143 | H42: 94 | I42: 164 | J42: 94 | K42: 183 | L42: 116 | M42: 81 | N42: 108 | O42: 221 | P42: =SUM(P15,P27,P34) -> 260 | Q42: 180 | R42: 121 | S42: 371
A43: Borders | B43: 204 | C43: 59 | D43: 7 | E43: 139 | F43: 47 | G43: 115 | H43: 21 | I43: -23 | J43: -26 | K43: 32 | L43: -65 | M43: 23 | N43: -40 | O43: 18 | P43: =P32 -> 23 | Q43: 13 | R43: -19 | S43: 65
A44: Dumfries and Galloway | B44: 202 | C44: 189 | D44: 51 | E44: 113 | F44: 122 | G44: 23 | H44: 24 | I44: 34 | J44: -36 | K44: -34 | L44: 60 | M44: 50 | N44: 1 | O44: 6 | P44: =P13 -> 88 | Q44: 76 | R44: 61 | S44: 85
A45: Fife | B45: 161 | C45: 231 | D45: 74 | E45: 131 | F45: 101 | G45: 122 | H45: 97 | I45: 127 | J45: 87 | K45: 14 | L45: 186 | M45: 48 | N45: 88 | O45: 53 | P45: =P20 -> 73 | Q45: 183 | R45: 162 | S45: 180
A46: Forth Valley | B46: 168 | C46: 66 | D46: 60 | E46: 63 | F46: 78 | G46: 78 | H46: 82 | I46: 33 | J46: 53 | K46: 5 | L46: 32 | M46: 80 | N46: 17 | O46: 12 | P46: =SUM(P36,P19,P12) -> 66 | Q46: 47 | R46: 8 | S46: 52
A47: Grampian | B47: 421 | C47: 322 | D47: 148 | E47: 169 | F47: 58 | G47: -56 | H47: -67 | I47: -104 | J47: -231 | K47: -208 | L47: -274 | M47: -364 | N47: -196 | O47: -9 | P47: =SUM(P7,P8,P25) -> -58 | Q47: 7 | R47: 63 | S47: 278
A48: Greater Glasgow and Clyde | B48: -883 | C48: -753 | D48: -737 | E48: -611 | F48: -567 | G48: -411 | H48: -335 | I48: -192 | J48: -396 | K48: -367 | L48: -141 | M48: -113 | N48: -26 | O48: -70 | P48: =SUM(P37,P31,P23,P21,P18,P16) -> -110 | Q48: -6 | R48: -129 | S48: -335
A49: Highland | B49: 347 | C49: 227 | D49: 153 | E49: 198 | F49: 142 | G49: -3 | H49: -31 | I49: 49 | J49: -109 | K49: -89 | L49: -105 | M49: -104 | N49: -307 | O49: -226 | P49: =SUM(P22,P10) -> -193 | Q49: -75 | R49: -72 | S49: 230
A50: Lanarkshire | B50: 390 | C50: 285 | D50: 235 | E50: 159 | F50: 140 | G50: 179 | H50: 130 | I50: 106 | J50: 38 | K50: 91 | L50: 18 | M50: 92 | N50: -1 | O50: -18 | P50: =SUM(P28,P35) -> 89 | Q50: 15 | R50: -22 | S50: -83
A51: Lothian | B51: -186 | C51: -166 | D51: -30 | E51: 6 | F51: 46 | G51: 52 | H51: 129 | I51: 126 | J51: 127 | K51: 111 | L51: 172 | M51: 170 | N51: 278 | O51: 144 | P51: =SUM(P11,P17,P24,P38) -> 203 | Q51: 125 | R51: 63 | S51: 190
A52: Orkney | B52: 30 | C52: 5 | D52: 26 | E52: 23 | F52: 20 | G52: 11 | H52: 28 | I52: 9 | J52: -4 | K52: 6 | L52: 9 | M52: 2 | N52: 22 | O52: 37 | P52: =P29 -> 26 | Q52: -10 | R52: 37 | S52: -2
A53: Shetland | B53: 20 | C53: 4 | D53: 5 | E53: 8 | F53: 6 | G53: 23 | H53: -5 | I53: 10 | J53: 18 | K53: -23 | L53: -8 | M53: -33 | N53: 1 | O53: -3 | P53: =P33 -> -10 | Q53: -6 | R53: -18 | S53: -3
A54: Tayside | B54: 349 | C54: 226 | D54: 154 | E54: 196 | F54: 190 | G54: 2 | H54: 56 | I54: 154 | J54: 11 | K54: 85 | L54: 21 | M54: 94 | N54: 82 | O54: 111 | P54: =SUM(P30,P14,P9) -> 103 | Q54: 157 | R54: 93 | S54: 317
A55: Western Isles | B55: 33 | C55: 45 | D55: 28 | E55: 17 | F55: 42 | G55: 21 | H55: 38 | I55: 2 | J55: 13 | K55: 12 | L55: 2 | M55: -9 | N55: -10 | O55: 16 | P55: =P26 -> -6 | Q55: -4 | R55: -8 | S55: 27

Sheet Total in-migration
A1: Total in-migration
A2: This worksheet contains two tables, presented next to each other vertically with one blank row between the tables.
A3: See notes [1], [2], [3], [4], [5], [6] which are explained in the Notes worksheet.
A4: Return to front page
A5: Council Area | B5: 2003-04 | C5: 2004-05 | D5: 2005-06 | E5: 2006-07 | F5: 2007-08 | G5: 2008-09 | H5: 2009-10 | I5: 2010-11 | J5: 2011-12 | K5: 2012-13 | L5: 2013-14 | M5: 2014-15 | N5: 2015-16 | O5: 2016-17 | P5: 2017-18 | Q5: 2018-19 | R5: 2019-20 | S5: 2020-21
A6: Scotland | B6: 90400 | C6: 99100 | D6: 94600 | E6: 96600 | F6: 98500 | G6: 90500 | H6: 92400 | I6: 87900 | J6: 81000 | K6: 75900 | L6: 82400 | M6: 85000 | N6: 86700 | O6: 80500 | P6: 80600 | Q6: 87400 | R6: 81000 | S6: 97200
A7: Aberdeen City | B7: 10650 | C7: 12400 | D7: 12750 | E7: 13510 | F7: 13630 | G7: 14160 | H7: 13970 | I7: 13580 | J7: 13650 | K7: 14040 | L7: 14210 | M7: 14060 | N7: 12310 | O7: 11330 | P7: 10680 | Q7: 11910 | R7: 11110 | S7: 11770
A8: Aberdeenshire | B8: 10270 | C8: 10290 | D8: 10290 | E8: 9930 | F8: 9780 | G8: 8830 | H8: 8980 | I8: 8840 | J8: 9060 | K8: 9550 | L8: 10340 | M8: 9490 | N8: 8160 | O8: 7220 | P8: 7130 | Q8: 7250 | R8: 6350 | S8: 9510
A9: Angus | B9: 4760 | C9: 4560 | D9: 4440 | E9: 4180 | F9: 4280 | G9: 3390 | H9: 3660 | I9: 3600 | J9: 3930 | K9: 3950 | L9: 4230 | M9: 4310 | N9: 3910 | O9: 3790 | P9: 3890 | Q9: 4020 | R9: 3360 | S9: 4640
A10: Argyll and Bute | B10: 4900 | C10: 4760 | D10: 4440 | E10: 4310 | F10: 4080 | G10: 3860 | H10: 3950 | I10: 3740 | J10: 3820 | K10: 3930 | L10: 3790 | M10: 3910 | N10: 4110 | O10: 4180 | P10: 4130 | Q10: 3940 | R10: 3430 | S10: 5280
A11: City of Edinburgh | B11: 28530 | C11: 31870 | D11: 30270 | E11: 29700 | F11: 29670 | G11: 29510 | H11: 31280 | I11: 29900 | J11: 28840 | K11: 27830 | L11: 29440 | M11: 31440 | N11: 32390 | O11: 30210 | P11: 30720 | Q11: 32520 | R11: 30120 | S11: 34080
A12: Clackmannanshire | B12: 2080 | C12: 2130 | D12: 2010 | E12: 2270 | F12: 2130 | G12: 1680 | H12: 1580 | I12: 1530 | J12: 1480 | K12: 1600 | L12: 1730 | M12: 1860 | N12: 1760 | O12: 1880 | P12: 1730 | Q12: 1730 | R12: 1540 | S12: 2110
A13: Dumfries and Galloway | B13: 5280 | C13: 5480 | D13: 4740 | E13: 4670 | F13: 4930 | G13: 4190 | H13: 3950 | I13: 4000 | J13: 3840 | K13: 3980 | L13: 4050 | M13: 3930 | N13: 3880 | O13: 4010 | P13: 4020 | Q13: 4220 | R13: 3550 | S13: 5310
A14: Dundee City | B14: 5830 | C14: 6850 | D14: 6480 | E14: 6670 | F14: 7300 | G14: 6860 | H14: 7130 | I14: 7390 | J14: 6950 | K14: 7070 | L14: 6860 | M14: 7020 | N14: 6870 | O14: 6970 | P14: 6920 | Q14: 7320 | R14: 6370 | S14: 6990
A15: East Ayrshire | B15: 3660 | C15: 3450 | D15: 3400 | E15: 3670 | F15: 3790 | G15: 3370 | H15: 3080 | I15: 3110 | J15: 3080 | K15: 3110 | L15: 3250 | M15: 3350 | N15: 3390 | O15: 3350 | P15: 3410 | Q15: 3520 | R15: 2770 | S15: 4020
A16: East Dunbartonshire | B16: 3620 | C16: 3670 | D16: 3490 | E16: 3490 | F16: 3430 | G16: 3230 | H16: 3070 | I16: 3050 | J16: 3430 | K16: 3510 | L16: 4050 | M16: 4200 | N16: 4200 | O16: 4050 | P16: 3980 | Q16: 3870 | R16: 3440 | S16: 4500
A17: East Lothian | B17: 3680 | C17: 3650 | D17: 3940 | E17: 4400 | F17: 4810 | G17: 3650 | H17: 3720 | I17: 3650 | J17: 4020 | K17: 3780 | L17: 4140 | M17: 4340 | N17: 4010 | O17: 4160 | P17: 4500 | Q17: 4560 | R17: 4210 | S17: 5590
A18: East Renfrewshire | B18: 3400 | C18: 3410 | D18: 3330 | E18: 3290 | F18: 3290 | G18: 2950 | H18: 3100 | I18: 3140 | J18: 3290 | K18: 3670 | L18: 3820 | M18: 3940 | N18: 4080 | O18: 4020 | P18: 3790 | Q18: 3580 | R18: 3480 | S18: 4440
A19: Falkirk | B19: 4720 | C19: 5160 | D19: 4540 | E19: 4580 | F19: 4310 | G19: 3770 | H19: 3560 | I19: 4200 | J19: 3840 | K19: 4080 | L19: 4170 | M19: 4480 | N19: 4550 | O19: 4640 | P19: 4290 | Q19: 4490 | R19: 3610 | S19: 4520
A20: Fife | B20: 12570 | C20: 13210 | D20: 12150 | E20: 11940 | F20: 12080 | G20: 11200 | H20: 11340 | I20: 11170 | J20: 10740 | K20: 10460 | L20: 10890 | M20: 11290 | N20: 11400 | O20: 11170 | P20: 11160 | Q20: 11860 | R20: 10390 | S20: 13320
A21: Glasgow City | B21: 26610 | C21: 28420 | D21: 27500 | E21: 29030 | F21: 31110 | G21: 29920 | H21: 29100 | I21: 29320 | J21: 28360 | K21: 28010 | L21: 30310 | M21: 33300 | N21: 34970 | O21: 33180 | P21: 34080 | Q21: 35620 | R21: 32000 | S21: 36400
A22: Highland | B22: 9790 | C22: 10160 | D22: 9580 | E22: 9630 | F22: 9620 | G22: 8050 | H22: 7860 | I22: 7510 | J22: 7150 | K22: 7080 | L22: 7240 | M22: 7720 | N22: 7640 | O22: 7300 | P22: 7470 | Q22: 7430 | R22: 6190 | S22: 10110
A23: Inverclyde | B23: 1750 | C23: 1960 | D23: 1660 | E23: 1620 | F23: 1660 | G23: 1330 | H23: 1400 | I23: 1260 | J23: 1330 | K23: 1400 | L23: 1380 | M23: 1460 | N23: 1530 | O23: 1520 | P23: 1470 | Q23: 1610 | R23: 1250 | S23: 1780
A24: Midlothian | B24: 2610 | C24: 2560 | D24: 2560 | E24: 2950 | F24: 2990 | G24: 2780 | H24: 2630 | I24: 2720 | J24: 2850 | K24: 2990 | L24: 3530 | M24: 3650 | N24: 3630 | O24: 3780 | P24: 3790 | Q24: 3770 | R24: 3230 | S24: 4490
A25: Moray | B25: 4060 | C25: 3940 | D25: 3860 | E25: 3450 | F25: 3480 | G25: 3170 | H25: 3080 | I25: 3040 | J25: 3410 | K25: 3530 | L25: 3480 | M25: 3680 | N25: 3560 | O25: 3140 | P25: 3070 | Q25: 3180 | R25: 2720 | S25: 3790
A26: Na h-Eileanan Siar | B26: 1230 | C26: 1220 | D26: 1090 | E26: 1030 | F26: 1030 | G26: 970 | H26: 970 | I26: 910 | J26: 870 | K26: 860 | L26: 820 | M26: 880 | N26: 840 | O26: 990 | P26: 860 | Q26: 850 | R26: 720 | S26: 1110
A27: North Ayrshire | B27: 4450 | C27: 4330 | D27: 4130 | E27: 4340 | F27: 4190 | G27: 3540 | H27: 3480 | I27: 3530 | J27: 3500 | K27: 3500 | L27: 3550 | M27: 3730 | N27: 3740 | O27: 3810 | P27: 3580 | Q27: 3610 | R27: 3210 | S27: 4340
A28: North Lanarkshire | B28: 7880 | C28: 7890 | D28: 7840 | E28: 8240 | F28: 8010 | G28: 7120 | H28: 6230 | I28: 6540 | J28: 6710 | K28: 6640 | L28: 6920 | M28: 7580 | N28: 8060 | O28: 7690 | P28: 7810 | Q28: 8380 | R28: 6590 | S28: 8900
A29: Orkney Islands | B29: 900 | C29: 800 | D29: 780 | E29: 740 | F29: 750 | G29: 710 | H29: 810 | I29: 670 | J29: 740 | K29: 760 | L29: 750 | M29: 710 | N29: 860 | O29: 780 | P29: 820 | Q29: 810 | R29: 700 | S29: 940
A30: Perth and Kinross | B30: 6920 | C30: 7390 | D30: 7300 | E30: 7530 | F30: 7850 | G30: 6980 | H30: 6980 | I30: 6460 | J30: 6390 | K30: 5980 | L30: 6760 | M30: 6510 | N30: 6330 | O30: 6170 | P30: 6000 | Q30: 6370 | R30: 5290 | S30: 7930
A31: Renfrewshire | B31: 4840 | C31: 5030 | D31: 4830 | E31: 5250 | F31: 5070 | G31: 4690 | H31: 4870 | I31: 4780 | J31: 4340 | K31: 4410 | L31: 5030 | M31: 5410 | N31: 6160 | O31: 5850 | P31: 6160 | Q31: 6200 | R31: 5250 | S31: 6910
A32: Scottish Borders | B32: 5420 | C32: 4960 | D32: 4760 | E32: 5150 | F32: 5300 | G32: 4310 | H32: 4140 | I32: 4090 | J32: 3990 | K32: 3970 | L32: 4200 | M32: 4130 | N32: 4390 | O32: 4440 | P32: 4530 | Q32: 4260 | R32: 3590 | S32: 5360
A33: Shetland Islands | B33: 820 | C33: 820 | D33: 720 | E33: 780 | F33: 750 | G33: 810 | H33: 760 | I33: 710 | J33: 670 | K33: 650 | L33: 670 | M33: 710 | N33: 680 | O33: 540 | P33: 580 | Q33: 600 | R33: 560 | S33: 800
A34: South Ayrshire | B34: 4040 | C34: 4000 | D34: 3740 | E34: 3920 | F34: 3830 | G34: 3510 | H34: 3510 | I34: 3480 | J34: 3600 | K34: 3730 | L34: 3430 | M34: 3750 | N34: 3790 | O34: 3870 | P34: 3700 | Q34: 3800 | R34: 3180 | S34: 4370
A35: South Lanarkshire | B35: 10040 | C35: 9250 | D35: 9270 | E35: 9270 | F35: 8790 | G35: 8060 | H35: 7910 | I35: 7620 | J35: 8170 | K35: 8210 | L35: 8290 | M35: 9170 | N35: 9170 | O35: 9130 | P35: 9310 | Q35: 9890 | R35: 8180 | S35: 11370
A36: Stirling | B36: 4760 | C36: 5530 | D36: 5290 | E36: 5150 | F36: 4990 | G36: 4750 | H36: 5190 | I36: 5160 | J36: 5210 | K36: 5030 | L36: 5130 | M36: 5940 | N36: 5550 | O36: 5080 | P36: 5200 | Q36: 5080 | R36: 4530 | S36: 5380
A37: West Dunbartonshire | B37: 2440 | C37: 2350 | D37: 2440 | E37: 2460 | F37: 2430 | G37: 2250 | H37: 2080 | I37: 2090 | J37: 2140 | K37: 2170 | L37: 2260 | M37: 2550 | N37: 2560 | O37: 2330 | P37: 2400 | Q37: 2400 | R37: 1970 | S37: 2460
A38: West Lothian | B38: 6210 | C38: 5980 | D38: 6200 | E38: 6710 | F38: 6350 | G38: 5060 | H38: 4830 | I38: 4820 | J38: 4910 | K38: 4590 | L38: 5230 | M38: 5720 | N38: 5660 | O38: 5330 | P38: 5280 | Q38: 5610 | R38: 5050 | S38: 6940
A40: NHS Board Areas | B40: 2003-04 | C40: 2004-05 | D40: 2005-06 | E40: 2006-07 | F40: 2007-08 | G40: 2008-09 | H40: 2009-10 | I40: 2010-11 | J40: 2011-12 | K40: 2012-13 | L40: 2013-14 | M40: 2014-15 | N40: 2015-16 | O40: 2016-17 | P40: 2017-18 | Q40: 2018-19 | R40: 2019-20 | S40: 2020-21
A41: Scotland | B41: 90400 | C41: 99100 | D41: 94600 | E41: 96600 | F41: 98500 | G41: 90500 | H41: 92400 | I41: 87900 | J41: 81000 | K41: 75900 | L41: 82400 | M41: 85000 | N41: 86700 | O41: 80500 | P41: 80600 | Q41: 87400 | R41: 81000 | S41: 97200
A42: Ayrshire and Arran | B42: 9500 | C42: 9190 | D42: 8670 | E42: 9100 | F42: 9060 | G42: 7960 | H42: 7720 | I42: 7760 | J42: 7690 | K42: 7820 | L42: 7780 | M42: 8020 | N42: 8170 | O42: 8300 | P42: 8070 | Q42: 8250 | R42: 6840 | S42: 10090
A43: Borders | B43: 5420 | C43: 4960 | D43: 4760 | E43: 5150 | F43: 5300 | G43: 4310 | H43: 4140 | I43: 4090 | J43: 3990 | K43: 3970 | L43: 4200 | M43: 4130 | N43: 4390 | O43: 4440 | P43: 4530 | Q43: 4260 | R43: 3590 | S43: 5360
A44: Dumfries and Galloway | B44: 5280 | C44: 5480 | D44: 4740 | E44: 4670 | F44: 4930 | G44: 4190 | H44: 3950 | I44: 4000 | J44: 3840 | K44: 3980 | L44: 4050 | M44: 3930 | N44: 3880 | O44: 4010 | P44: 4020 | Q44: 4220 | R44: 3550 | S44: 5310
A45: Fife | B45: 12570 | C45: 13210 | D45: 12150 | E45: 11940 | F45: 12080 | G45: 11190 | H45: 11340 | I45: 11170 | J45: 10740 | K45: 10460 | L45: 10890 | M45: 11290 | N45: 11400 | O45: 11170 | P45: 11160 | Q45: 11860 | R45: 10390 | S45: 13320
A46: Forth Valley | B46: 9970 | C46: 11260 | D46: 10250 | E46: 10260 | F46: 9830 | G46: 8840 | H46: 8930 | I46: 9430 | J46: 9110 | K46: 9190 | L46: 9450 | M46: 10570 | N46: 10250 | O46: 9950 | P46: 9570 | Q46: 9750 | R46: 8230 | S46: 10370
A47: Grampian | B47: 18090 | C47: 19970 | D47: 20190 | E47: 20240 | F47: 19920 | G47: 19890 | H47: 19460 | I47: 18790 | J47: 19260 | K47: 19500 | L47: 20220 | M47: 19200 | N47: 16800 | O47: 15210 | P47: 14410 | Q47: 15870 | R47: 14630 | S47: 18090
A48: Greater Glasgow and Clyde | B48: 35520 | C48: 37780 | D48: 36530 | E48: 38260 | F48: 40070 | G48: 38430 | H48: 38150 | I48: 37790 | J48: 32120 | K48: 31620 | L48: 34840 | M48: 37640 | N48: 40460 | O48: 38200 | P48: 38760 | Q48: 40580 | R48: 36300 | S48: 42260
A49: Highland | B49: 14340 | C49: 14620 | D49: 13680 | E49: 13620 | F49: 13350 | G49: 11600 | H49: 11490 | I49: 10950 | J49: 10650 | K49: 10660 | L49: 10690 | M49: 11310 | N49: 11430 | O49: 11160 | P49: 11290 | Q49: 11030 | R49: 9370 | S49: 14930
A50: Lanarkshire | B50: 13000 | C50: 12550 | D50: 12520 | E50: 12640 | F50: 12420 | G50: 11180 | H50: 10330 | I50: 10450 | J50: 12720 | K50: 12520 | L50: 12930 | M50: 14150 | N50: 14710 | O50: 14420 | P50: 14700 | Q50: 15710 | R50: 12660 | S50: 17450
A51: Lothian | B51: 32280 | C51: 35920 | D51: 34810 | E51: 34660 | F51: 35300 | G51: 33840 | H51: 35430 | I51: 33810 | J51: 33360 | K51: 31520 | L51: 33970 | M51: 35910 | N51: 37060 | O51: 34830 | P51: 35420 | Q51: 37460 | R51: 34320 | S51: 40570
A52: Orkney | B52: 900 | C52: 800 | D52: 780 | E52: 740 | F52: 750 | G52: 710 | H52: 810 | I52: 670 | J52: 740 | K52: 760 | L52: 750 | M52: 710 | N52: 860 | O52: 780 | P52: 820 | Q52: 810 | R52: 700 | S52: 940
A53: Shetland | B53: 820 | C53: 820 | D53: 720 | E53: 780 | F53: 750 | G53: 810 | H53: 760 | I53: 710 | J53: 670 | K53: 650 | L53: 670 | M53: 710 | N53: 680 | O53: 540 | P53: 580 | Q53: 600 | R53: 560 | S53: 800
A54: Tayside | B54: 13650 | C54: 15420 | D54: 14660 | E54: 14790 | F54: 15730 | G54: 14380 | H54: 14800 | I54: 14390 | J54: 14010 | K54: 13470 | L54: 14430 | M54: 14310 | N54: 13810 | O54: 13710 | P54: 13330 | Q54: 14260 | R54: 11960 | S54: 16050
A55: Western Isles | B55: 1230 | C55: 1220 | D55: 1090 | E55: 1030 | F55: 1030 | G55: 970 | H55: 970 | I55: 910 | J55: 870 | K55: 860 | L55: 820 | M55: 880 | N55: 840 | O55: 990 | P55: 860 | Q55: 850 | R55: 720 | S55: 1110

Sheet Total out-migration
A1: Total out-migration
A2: This worksheet contains two tables, presented next to each other vertically with one blank row between the tables.
A3: See notes [1], [2], [3], [4], [5], [6] which are explained in the Notes worksheet.
A4: Return to front page
A5: Council Area | B5: 2003-04 | C5: 2004-05 | D5: 2005-06 | E5: 2006-07 | F5: 2007-08 | G5: 2008-09 | H5: 2009-10 | I5: 2010-11 | J5: 2011-12 | K5: 2012-13 | L5: 2013-14 | M5: 2014-15 | N5: 2015-16 | O5: 2016-17 | P5: 2017-18 | Q5: 2018-19 | R5: 2019-20 | S5: 2020-21
A6: Scotland | B6: 71800 | C6: 73800 | D6: 75800 | E6: 63600 | F6: 72100 | G6: 66100 | H6: 66300 | I6: 57700 | J6: 68300 | K6: 65900 | L6: 64900 | M6: 57000 | N6: 55000 | O6: 56600 | P6: 59700 | Q6: 57100 | R6: 64100 | S6: 69400
A7: Aberdeen City | B7: 11850 | C7: 11290 | D7: 11600 | E7: 10560 | F7: 11980 | G7: 11190 | H7: 11220 | I7: 10500 | J7: 11810 | K7: 12380 | L7: 12790 | M7: 12980 | N7: 13270 | O7: 12750 | P7: 12000 | Q7: 11100 | R7: 10610 | S7: 13280
A8: Aberdeenshire | B8: 7040 | C8: 7510 | D8: 7220 | E8: 7250 | F8: 7900 | G8: 7320 | H8: 7290 | I8: 7450 | J8: 7680 | K8: 7890 | L8: 8300 | M8: 8500 | N8: 8510 | O8: 7910 | P8: 7730 | Q8: 7630 | R8: 6480 | S8: 7280
A9: Angus | B9: 3420 | C9: 3490 | D9: 3490 | E9: 3420 | F9: 3630 | G9: 3240 | H9: 3310 | I9: 3490 | J9: 3670 | K9: 3830 | L9: 3590 | M9: 3770 | N9: 3840 | O9: 3640 | P9: 3690 | Q9: 3520 | R9: 3080 | S9: 3700
A10: Argyll and Bute | B10: 3970 | C10: 4320 | D10: 4240 | E10: 3930 | F10: 4120 | G10: 3890 | H10: 3660 | I10: 3430 | J10: 4050 | K10: 3950 | L10: 4060 | M10: 4150 | N10: 3880 | O10: 4040 | P10: 4210 | Q10: 4000 | R10: 3530 | S10: 4070
A11: City of Edinburgh | B11: 26290 | C11: 26550 | D11: 26860 | E11: 24780 | F11: 26320 | G11: 23650 | H11: 23210 | I11: 21860 | J11: 24870 | K11: 24840 | L11: 26140 | M11: 25180 | N11: 24730 | O11: 25120 | P11: 26100 | Q11: 26620 | R11: 27230 | S11: 35460
A12: Clackmannanshire | B12: 1530 | C12: 1560 | D12: 1710 | E12: 1530 | F12: 1740 | G12: 1640 | H12: 1660 | I12: 1530 | J12: 1740 | K12: 1660 | L12: 1820 | M12: 1720 | N12: 1750 | O12: 1750 | P12: 1760 | Q12: 1580 | R12: 1440 | S12: 1810
A13: Dumfries and Galloway | B13: 4100 | C13: 4290 | D13: 4270 | E13: 3960 | F13: 4120 | G13: 3880 | H13: 3830 | I13: 3630 | J13: 3960 | K13: 3990 | L13: 3710 | M13: 3600 | N13: 3490 | O13: 3680 | P13: 3630 | Q13: 3490 | R13: 3220 | S13: 3810
A14: Dundee City | B14: 6570 | C14: 6280 | D14: 6590 | E14: 6410 | F14: 6690 | G14: 5940 | H14: 6150 | I14: 5960 | J14: 6460 | K14: 6760 | L14: 6870 | M14: 6810 | N14: 6700 | O14: 6380 | P14: 6570 | Q14: 6500 | R14: 6460 | S14: 7600
A15: East Ayrshire | B15: 3290 | C15: 3410 | D15: 3310 | E15: 3350 | F15: 3240 | G15: 2990 | H15: 3050 | I15: 3080 | J15: 3160 | K15: 3230 | L15: 3340 | M15: 3290 | N15: 3240 | O15: 3330 | P15: 3180 | Q15: 3090 | R15: 2730 | S15: 3120
A16: East Dunbartonshire | B16: 4080 | C16: 4160 | D16: 3940 | E16: 3780 | F16: 3610 | G16: 3310 | H16: 3140 | I16: 3160 | J16: 3170 | K16: 3420 | L16: 3140 | M16: 3650 | N16: 3490 | O16: 3360 | P16: 3610 | Q16: 3440 | R16: 2830 | S16: 4010
A17: East Lothian | B17: 3250 | C17: 3150 | D17: 3020 | E17: 2840 | F17: 3180 | G17: 2940 | H17: 3130 | I17: 3210 | J17: 3230 | K17: 3250 | L17: 3420 | M17: 3380 | N17: 3050 | O17: 3360 | P17: 3350 | Q17: 3290 | R17: 3240 | S17: 3770
A18: East Renfrewshire | B18: 3500 | C18: 3430 | D18: 3540 | E18: 3240 | F18: 3360 | G18: 2870 | H18: 2730 | I18: 2870 | J18: 3100 | K18: 3130 | L18: 2930 | M18: 3320 | N18: 3260 | O18: 3060 | P18: 3270 | Q18: 3210 | R18: 2750 | S18: 3750
A19: Falkirk | B19: 3210 | C19: 3520 | D19: 3600 | E19: 3640 | F19: 3650 | G19: 3210 | H19: 3110 | I19: 3180 | J19: 3490 | K19: 3700 | L19: 3760 | M19: 3740 | N19: 3610 | O19: 3740 | P19: 3860 | Q19: 3760 | R19: 3380 | S19: 3910
A20: Fife | B20: 10230 | C20: 10550 | D20: 10590 | E20: 10050 | F20: 10460 | G20: 9650 | H20: 9530 | I20: 9100 | J20: 10120 | K20: 10160 | L20: 10240 | M20: 10060 | N20: 9800 | O20: 9640 | P20: 9920 | Q20: 9560 | R20: 8960 | S20: 11560
A21: Glasgow City | B21: 30030 | C21: 29980 | D21: 29490 | E21: 26730 | F21: 28180 | G21: 25930 | H21: 26050 | I21: 23950 | J21: 27220 | K21: 27570 | L21: 28270 | M21: 27460 | N21: 27000 | O21: 27790 | P21: 28720 | Q21: 29350 | R21: 28740 | S21: 36010
A22: Highland | B22: 6940 | C22: 7300 | D22: 7530 | E22: 6960 | F22: 7510 | G22: 7060 | H22: 6870 | I22: 6610 | J22: 7030 | K22: 6990 | L22: 7000 | M22: 6610 | N22: 6440 | O22: 6490 | P22: 6500 | Q22: 6450 | R22: 5790 | S22: 6720
A23: Inverclyde | B23: 2350 | C23: 2090 | D23: 2010 | E23: 1940 | F23: 1860 | G23: 1690 | H23: 1620 | I23: 1550 | J23: 1630 | K23: 1560 | L23: 1650 | M23: 1590 | N23: 1590 | O23: 1510 | P23: 1650 | Q23: 1520 | R23: 1350 | S23: 1690
A24: Midlothian | B24: 2870 | C24: 2880 | D24: 2820 | E24: 2840 | F24: 2560 | G24: 2320 | H24: 2400 | I24: 2200 | J24: 2290 | K24: 2410 | L24: 2510 | M24: 2660 | N24: 2620 | O24: 2510 | P24: 2700 | Q24: 2830 | R24: 2600 | S24: 3100
A25: Moray | B25: 3080 | C25: 3250 | D25: 3400 | E25: 2930 | F25: 3150 | G25: 2770 | H25: 3090 | I25: 3200 | J25: 3090 | K25: 2930 | L25: 3010 | M25: 3270 | N25: 3010 | O25: 3140 | P25: 3020 | Q25: 2880 | R25: 2700 | S25: 3090
A26: Na h-Eileanan Siar | B26: 990 | C26: 950 | D26: 960 | E26: 960 | F26: 1010 | G26: 900 | H26: 810 | I26: 890 | J26: 850 | K26: 880 | L26: 910 | M26: 890 | N26: 900 | O26: 830 | P26: 840 | Q26: 800 | R26: 750 | S26: 780
A27: North Ayrshire | B27: 4240 | C27: 4240 | D27: 4150 | E27: 3910 | F27: 3860 | G27: 3660 | H27: 3640 | I27: 3390 | J27: 3900 | K27: 3800 | L27: 3690 | M27: 3670 | N27: 3680 | O27: 3450 | P27: 3530 | Q27: 3520 | R27: 3060 | S27: 3540
A28: North Lanarkshire | B28: 7650 | C28: 7560 | D28: 7540 | E28: 7390 | F28: 7470 | G28: 7040 | H28: 6650 | I28: 6600 | J28: 6980 | K28: 7030 | L28: 7010 | M28: 7440 | N28: 7080 | O28: 6960 | P28: 7260 | Q28: 7160 | R28: 6160 | S28: 7820
A29: Orkney Islands | B29: 640 | C29: 670 | D29: 580 | E29: 600 | F29: 650 | G29: 620 | H29: 640 | I29: 570 | J29: 630 | K29: 680 | L29: 680 | M29: 610 | N29: 640 | O29: 580 | P29: 570 | Q29: 660 | R29: 530 | S29: 720
A30: Perth and Kinross | B30: 5250 | C30: 5320 | D30: 5280 | E30: 5090 | F30: 5450 | G30: 5180 | H30: 5120 | I30: 4630 | J30: 5410 | K30: 5600 | L30: 5350 | M30: 5250 | N30: 5270 | O30: 5270 | P30: 5340 | Q30: 5340 | R30: 4570 | S30: 5400
A31: Renfrewshire | B31: 5110 | C31: 5310 | D31: 5170 | E31: 4980 | F31: 4670 | G31: 4530 | H31: 4430 | I31: 4190 | J31: 4740 | K31: 4750 | L31: 4660 | M31: 4820 | N31: 4550 | O31: 4690 | P31: 4820 | Q31: 4690 | R31: 4410 | S31: 5690
A32: Scottish Borders | B32: 4030 | C32: 3960 | D32: 3930 | E32: 3660 | F32: 4000 | G32: 3890 | H32: 3860 | I32: 3600 | J32: 3950 | K32: 3670 | L32: 3920 | M32: 3700 | N32: 3700 | O32: 3620 | P32: 3850 | Q32: 3680 | R32: 3320 | S32: 4100
A33: Shetland Islands | B33: 740 | C33: 740 | D33: 840 | E33: 740 | F33: 720 | G33: 610 | H33: 600 | I33: 650 | J33: 730 | K33: 740 | L33: 680 | M33: 740 | N33: 690 | O33: 670 | P33: 650 | Q33: 690 | R33: 590 | S33: 670
A34: South Ayrshire | B34: 3360 | C34: 3580 | D34: 3380 | E34: 3340 | F34: 3430 | G34: 3330 | H34: 3070 | I34: 2890 | J34: 3240 | K34: 3320 | L34: 3330 | M34: 3440 | N34: 3240 | O34: 3180 | P34: 3210 | Q34: 3240 | R34: 2830 | S34: 3180
A35: South Lanarkshire | B35: 7910 | C35: 8180 | D35: 7940 | E35: 7620 | F35: 8050 | G35: 7420 | H35: 7100 | I35: 7040 | J35: 7760 | K35: 7630 | L35: 7780 | M35: 8140 | N35: 8070 | O35: 7850 | P35: 8010 | Q35: 8060 | R35: 7000 | S35: 8700
A36: Stirling | B36: 4770 | C36: 4870 | D36: 4590 | E36: 4670 | F36: 4750 | G36: 4440 | H36: 4180 | I36: 4140 | J36: 4430 | K36: 4780 | L36: 4670 | M36: 4530 | N36: 4530 | O36: 4740 | P36: 4690 | Q36: 4990 | R36: 4400 | S36: 5610
A37: West Dunbartonshire | B37: 2820 | C37: 2690 | D37: 2550 | E37: 2490 | F37: 2640 | G37: 2300 | H37: 2370 | I37: 2260 | J37: 2420 | K37: 2590 | L37: 2350 | M37: 2470 | N37: 2270 | O37: 2420 | P37: 2610 | Q37: 2460 | R37: 2180 | S37: 2600
A38: West Lothian | B38: 5000 | C38: 5130 | D38: 4880 | E38: 5250 | F38: 5350 | G38: 4830 | H38: 4630 | I38: 4600 | J38: 4750 | K38: 4970 | L38: 4790 | M38: 4830 | N38: 4540 | O38: 4540 | P38: 4700 | Q38: 4900 | R38: 4160 | S38: 5140
A40: NHS Board Areas | B40: 2003-04 | C40: 2004-05 | D40: 2005-06 | E40: 2006-07 | F40: 2007-08 | G40: 2008-09 | H40: 2009-10 | I40: 2010-11 | J40: 2011-12 | K40: 2012-13 | L40: 2013-14 | M40: 2014-15 | N40: 2015-16 | O40: 2016-17 | P40: 2017-18 | Q40: 2018-19 | R40: 2019-20 | S40: 2020-21
A41: Scotland | B41: 71800 | C41: 73800 | D41: 75800 | E41: 63600 | F41: 72100 | G41: 66100 | H41: 66300 | I41: 57700 | J41: 68300 | K41: 65900 | L41: 64900 | M41: 57000 | N41: 55000 | O41: 56600 | P41: 59700 | Q41: 57100 | R41: 64100 | S41: 69400
A42: Ayrshire and Arran | B42: 8240 | C42: 8640 | D42: 8240 | E42: 7770 | F42: 7780 | G42: 7520 | H42: 7410 | I42: 7000 | J42: 7810 | K42: 7840 | L42: 7900 | M42: 7590 | N42: 7410 | O42: 7240 | P42: 7290 | Q42: 7160 | R42: 6300 | S42: 7190
A43: Borders | B43: 4030 | C43: 3960 | D43: 3930 | E43: 3660 | F43: 4000 | G43: 3890 | H43: 3860 | I43: 3600 | J43: 3950 | K43: 3670 | L43: 3920 | M43: 3700 | N43: 3700 | O43: 3620 | P43: 3850 | Q43: 3680 | R43: 3320 | S43: 4100
A44: Dumfries and Galloway | B44: 4100 | C44: 4290 | D44: 4270 | E44: 3960 | F44: 4120 | G44: 3880 | H44: 3830 | I44: 3630 | J44: 3960 | K44: 3990 | L44: 3710 | M44: 3600 | N44: 3490 | O44: 3680 | P44: 3630 | Q44: 3490 | R44: 3220 | S44: 3810
A45: Fife | B45: 10230 | C45: 10550 | D45: 10590 | E45: 10040 | F45: 10460 | G45: 9640 | H45: 9530 | I45: 9100 | J45: 10120 | K45: 10160 | L45: 10240 | M45: 10060 | N45: 9800 | O45: 9640 | P45: 9920 | Q45: 9560 | R45: 8960 | S45: 11560
A46: Forth Valley | B46: 7920 | C46: 8390 | D46: 8310 | E46: 8100 | F46: 8530 | G46: 7920 | H46: 7540 | I46: 7400 | J46: 8240 | K46: 8620 | L46: 8650 | M46: 8280 | N46: 8290 | O46: 8590 | P46: 8660 | Q46: 8790 | R46: 7770 | S46: 9680
A47: Grampian | B47: 15070 | C47: 15380 | D47: 15520 | E47: 14080 | F47: 16060 | G47: 15010 | H47: 15020 | I47: 14490 | J47: 15700 | K47: 15580 | L47: 16300 | M47: 16720 | N47: 17570 | O47: 17310 | P47: 16270 | Q47: 15140 | R47: 14240 | S47: 16660
A48: Greater Glasgow and Clyde | B48: 40080 | C48: 40190 | D48: 39330 | E48: 35560 | F48: 37180 | G48: 34310 | H48: 34290 | I48: 32010 | J48: 31500 | K48: 31480 | L48: 30990 | M48: 30090 | N48: 29120 | O48: 30090 | P48: 31560 | Q48: 31980 | R48: 31150 | S48: 39520
A49: Highland | B49: 10560 | C49: 11320 | D49: 11420 | E49: 10560 | F49: 11280 | G49: 10630 | H49: 10210 | I49: 9740 | J49: 10760 | K49: 10590 | L49: 10720 | M49: 10430 | N49: 10000 | O49: 10210 | P49: 10400 | Q49: 10110 | R49: 9070 | S49: 10320
A50: Lanarkshire | B50: 11300 | C50: 11530 | D50: 11540 | E50: 10860 | F50: 11370 | G50: 10850 | H50: 10530 | I50: 10030 | J50: 12580 | K50: 12330 | L50: 12510 | M50: 12980 | N50: 12630 | O50: 12410 | P50: 12860 | Q50: 12650 | R50: 11050 | S50: 13700
A51: Lothian | B51: 28660 | C51: 29580 | D51: 29420 | E51: 26600 | F51: 28890 | G51: 26580 | H51: 26330 | I51: 24580 | J51: 27890 | K51: 27810 | L51: 28490 | M51: 26810 | N51: 26310 | O51: 26890 | P51: 27980 | Q51: 28640 | R51: 28950 | S51: 36950
A52: Orkney | B52: 640 | C52: 670 | D52: 580 | E52: 600 | F52: 650 | G52: 620 | H52: 640 | I52: 570 | J52: 630 | K52: 680 | L52: 680 | M52: 610 | N52: 640 | O52: 580 | P52: 570 | Q52: 660 | R52: 530 | S52: 720
A53: Shetland | B53: 740 | C53: 740 | D53: 840 | E53: 740 | F53: 720 | G53: 610 | H53: 600 | I53: 650 | J53: 730 | K53: 740 | L53: 680 | M53: 740 | N53: 690 | O53: 670 | P53: 650 | Q53: 690 | R53: 590 | S53: 670
A54: Tayside | B54: 11380 | C54: 11710 | D54: 11790 | E54: 11330 | F54: 12060 | G54: 11510 | H54: 11600 | I54: 11010 | J54: 12280 | K54: 12670 | L54: 12390 | M54: 12310 | N54: 12510 | O54: 12080 | P54: 12130 | Q54: 11910 | R54: 11050 | S54: 13190
A55: Western Isles | B55: 990 | C55: 950 | D55: 960 | E55: 960 | F55: 1010 | G55: 900 | H55: 810 | I55: 890 | J55: 850 | K55: 880 | L55: 910 | M55: 890 | N55: 900 | O55: 830 | P55: 840 | Q55: 800 | R55: 750 | S55: 780

Sheet Within Scotland net migration
A1: Within Scotland net migration
A2: This worksheet contains two tables, presented next to each other vertically with one blank row between the tables.
A3: See notes [2], [3], [4], [6], [7] which are explained in the Notes worksheet. Some shorthand is used in this table, [z] = Not applicable.
A4: Return to front page
A5: Council Area | B5: 2003-04 | C5: 2004-05 | D5: 2005-06 | E5: 2006-07 | F5: 2007-08 | G5: 2008-09 | H5: 2009-10 | I5: 2010-11 | J5: 2011-12 | K5: 2012-13 | L5: 2013-14 | M5: 2014-15 | N5: 2015-16 | O5: 2016-17 | P5: 2017-18 | Q5: 2018-19 | R5: 2019-20 | S5: 2020-21
A6: Scotland | B6: [z] | C6: [z] | D6: [z] | E6: [z] | F6: [z] | G6: [z] | H6: [z] | I6: [z] | J6: [z] | K6: [z] | L6: [z] | M6: [z] | N6: [z] | O6: [z] | P6: [z] | Q6: [z] | R6: [z] | S6: [z]
A7: Aberdeen City | B7: -1680 | C7: -1090 | D7: -1140 | E7: -1120 | F7: -1660 | G7: -980 | H7: -1310 | I7: -1060 | J7: -360 | K7: -200 | L7: -1140 | M7: -2220 | N7: -2660 | O7: -2220 | P7: -1850 | Q7: -910 | R7: -810 | S7: -2830
A8: Aberdeenshire | B8: 1240 | C8: 870 | D8: 1340 | E8: 1100 | F8: 880 | G8: 690 | H8: 1080 | I8: 790 | J8: 1080 | K8: 1180 | L8: 1640 | M8: 950 | N8: -70 | O8: -490 | P8: -310 | Q8: -540 | R8: 10 | S8: 1310
A9: Angus | B9: 1000 | C9: 510 | D9: 690 | E9: 390 | F9: 380 | G9: -20 | H9: 120 | I9: -30 | J9: 200 | K9: 160 | L9: 430 | M9: 440 | N9: 70 | O9: 90 | P9: 210 | Q9: 340 | R9: 210 | S9: 490
A10: Argyll and Bute | B10: 200 | C10: -30 | D10: -240 | E10: -230 | F10: -210 | G10: -290 | H10: -150 | I10: -120 | J10: -330 | K10: -200 | L10: -440 | M10: -440 | N10: -280 | O10: -430 | P10: -560 | Q10: -540 | R10: -290 | S10: 350
A11: City of Edinburgh | B11: -2860 | C11: -1550 | D11: -2610 | E11: -1950 | F11: -1980 | G11: -770 | H11: -360 | I11: -390 | J11: -250 | K11: -610 | L11: -1710 | M11: -1930 | N11: -1480 | O11: -2380 | P11: -2490 | Q11: -2830 | R11: -3090 | S11: -7260
A12: Clackmannanshire | B12: 340 | C12: 290 | D12: 140 | E12: 390 | F12: 290 | G12: 10 | H12: -110 | I12: -10 | J12: -250 | K12: -90 | L12: -60 | M12: 70 | N12: -110 | O12: 90 | P12: -60 | Q12: 50 | R12: 10 | S12: 210
A13: Dumfries and Galloway | B13: -60 | C13: -120 | D13: -260 | E13: -60 | F13: 50 | G13: -80 | H13: -100 | I13: -90 | J13: -170 | K13: -190 | L13: -110 | M13: -100 | N13: -180 | O13: -250 | P13: -230 | Q13: -60 | R13: -70 | S13: 330
A14: Dundee City | B14: -690 | C14: -350 | D14: -650 | E14: -530 | F14: -390 | G14: -100 | H14: -280 | I14: -10 | J14: -130 | K14: -250 | L14: -310 | M14: -520 | N14: -610 | O14: -60 | P14: -460 | Q14: -310 | R14: -590 | S14: -1240
A15: East Ayrshire | B15: 280 | C15: -30 | D15: 170 | E15: 250 | F15: 360 | G15: 400 | H15: 70 | I15: 10 | J15: -70 | K15: -40 | L15: 40 | M15: -20 | N15: 60 | O15: -60 | P15: 200 | Q15: 280 | R15: 80 | S15: 650
A16: East Dunbartonshire | B16: -160 | C16: -260 | D16: -130 | E16: -170 | F16: -100 | G16: -10 | H16: 160 | I16: 20 | J16: 370 | K16: 290 | L16: 1060 | M16: 610 | N16: 590 | O16: 650 | P16: 490 | Q16: 460 | R16: 580 | S16: 540
A17: East Lothian | B17: 360 | C17: 480 | D17: 880 | E17: 1090 | F17: 990 | G17: 420 | H17: 350 | I17: 210 | J17: 470 | K17: 500 | L17: 560 | M17: 680 | N17: 500 | O17: 550 | P17: 870 | Q17: 960 | R17: 760 | S17: 1350
A18: East Renfrewshire | B18: 190 | C18: 130 | D18: 70 | E18: 250 | F18: 160 | G18: 120 | H18: 380 | I18: 280 | J18: 470 | K18: 700 | L18: 940 | M18: 710 | N18: 730 | O18: 910 | P18: 630 | Q18: 350 | R18: 750 | S18: 690
A19: Falkirk | B19: 1050 | C19: 1160 | D19: 770 | E19: 580 | F19: 440 | G19: 430 | H19: 280 | I19: 610 | J19: 370 | K19: 400 | L19: 170 | M19: 390 | N19: 590 | O19: 630 | P19: 330 | Q19: 560 | R19: 240 | S19: 310
A20: Fife | B20: 1300 | C20: 940 | D20: 640 | E20: 270 | F20: 730 | G20: 250 | H20: 530 | I20: 450 | J20: 200 | K20: -120 | L20: -90 | M20: -70 | N20: 120 | O20: 200 | P20: 450 | Q20: 1030 | R20: 770 | S20: 1310
A21: Glasgow City | B21: -4550 | C21: -3300 | D21: -2650 | E21: -2760 | F21: -2170 | G21: -1520 | H21: -1860 | I21: -1230 | J21: -2100 | K21: -1800 | L21: -2680 | M21: -2420 | N21: -1820 | O21: -1830 | P21: -1620 | Q21: -3130 | R21: -2620 | S21: -6470
A22: Highland | B22: 20 | C22: 90 | D22: 130 | E22: 60 | F22: 430 | G22: 80 | H22: -70 | I22: -170 | J22: -90 | K22: -430 | L22: -410 | M22: -30 | N22: -40 | O22: -210 | P22: -60 | Q22: -230 | R22: -140 | S22: 1310
A23: Inverclyde | B23: -300 | C23: -260 | D23: -310 | E23: -270 | F23: -200 | G23: -310 | H23: -170 | I23: -250 | J23: -200 | K23: -150 | L23: -290 | M23: -250 | N23: -140 | O23: -50 | P23: -200 | Q23: -30 | R23: -100 | S23: -20
A24: Midlothian | B24: -240 | C24: -230 | D24: -220 | E24: 0 | F24: 330 | G24: 490 | H24: 250 | I24: 380 | J24: 510 | K24: 570 | L24: 950 | M24: 1030 | N24: 860 | O24: 1120 | P24: 1050 | Q24: 900 | R24: 610 | S24: 1140
A25: Moray | B25: 190 | C25: -70 | D25: 10 | E25: -170 | F25: -60 | G25: 50 | H25: -100 | I25: 60 | J25: -120 | K25: 130 | L25: 180 | M25: 270 | N25: 200 | O25: -60 | P25: -40 | Q25: -130 | R25: -190 | S25: 80
A26: Na h-Eileanan Siar | B26: -40 | C26: 40 | D26: -50 | E26: -50 | F26: -80 | G26: -30 | H26: 30 | I26: -30 | J26: -30 | K26: -70 | L26: -60 | M26: -50 | N26: -120 | O26: 0 | P26: -80 | Q26: -50 | R26: -40 | S26: 170
A27: North Ayrshire | B27: 250 | C27: 210 | D27: 150 | E27: 350 | F27: 140 | G27: -170 | H27: -150 | I27: 20 | J27: -180 | K27: -200 | L27: -210 | M27: -70 | N27: -110 | O27: 110 | P27: -50 | Q27: 0 | R27: 90 | S27: 560
A28: North Lanarkshire | B28: 410 | C28: 330 | D28: 340 | E28: 270 | F28: 220 | G28: 60 | H28: -250 | I28: -200 | J28: -110 | K28: -180 | L28: -180 | M28: -150 | N28: 550 | O28: 570 | P28: 480 | Q28: 970 | R28: 510 | S28: 560
A29: Orkney Islands | B29: -50 | C29: -20 | D29: 80 | E29: -20 | F29: -50 | G29: -60 | H29: 20 | I29: 10 | J29: 40 | K29: 20 | L29: -40 | M29: -40 | N29: -20 | O29: 40 | P29: 30 | Q29: 10 | R29: 30 | S29: 0
A30: Perth and Kinross | B30: 530 | C30: 380 | D30: 600 | E30: 470 | F30: 490 | G30: 370 | H30: 460 | I30: 340 | J30: 310 | K30: 180 | L30: 610 | M30: 470 | N30: 400 | O30: 260 | P30: 220 | Q30: 250 | R30: 510 | S30: 1560
A31: Renfrewshire | B31: -310 | C31: -400 | D31: -210 | E31: -220 | F31: 150 | G31: 130 | H31: 130 | I31: 170 | J31: -270 | K31: -140 | L31: 380 | M31: 200 | N31: 910 | O31: 670 | P31: 1150 | Q31: 1020 | R31: 800 | S31: 810
A32: Scottish Borders | B32: 390 | C32: 330 | D32: 270 | E32: 550 | F32: 360 | G32: 160 | H32: 140 | I32: 130 | J32: -80 | K32: -10 | L32: 70 | M32: 90 | N32: 360 | O32: 340 | P32: 390 | Q32: 200 | R32: 220 | S32: 610
A33: Shetland Islands | B33: -90 | C33: -100 | D33: -80 | E33: -100 | F33: -100 | G33: 10 | H33: -40 | I33: 10 | J33: -100 | K33: -90 | L33: -30 | M33: -100 | N33: -160 | O33: -120 | P33: -130 | Q33: -180 | R33: -60 | S33: 0
A34: South Ayrshire | B34: 520 | C34: 180 | D34: 260 | E34: 290 | F34: 220 | G34: 130 | H34: 140 | I34: 230 | J34: 300 | K34: 330 | L34: 100 | M34: 110 | N34: 250 | O34: 410 | P34: 280 | Q34: 330 | R34: 270 | S34: 750
A35: South Lanarkshire | B35: 2020 | C35: 1030 | D35: 1240 | E35: 1300 | F35: 700 | G35: 750 | H35: 910 | I35: 480 | J35: 660 | K35: 950 | L35: 540 | M35: 1230 | N35: 770 | O35: 1200 | P35: 1310 | Q35: 1420 | R35: 1200 | S35: 2250
A36: Stirling | B36: -400 | C36: 400 | D36: 220 | E36: -360 | F36: -330 | G36: -150 | H36: 310 | I36: -110 | J36: 210 | K36: 110 | L36: 60 | M36: 410 | N36: 210 | O36: 40 | P36: 0 | Q36: -400 | R36: -160 | S36: -460
A37: West Dunbartonshire | B37: -200 | C37: -150 | D37: 30 | E37: -110 | F37: -150 | G37: 10 | H37: -260 | I37: -190 | J37: -250 | K37: -370 | L37: -130 | M37: 90 | N37: 120 | O37: -210 | P37: -150 | Q37: -130 | R37: -130 | S37: -80
A38: West Lothian | B38: 1330 | C38: 580 | D38: 520 | E38: 500 | F38: 170 | G38: -40 | H38: -170 | I38: -320 | J38: -100 | K38: -370 | L38: 160 | M38: 630 | N38: 510 | O38: 510 | P38: 230 | Q38: 330 | R38: 630 | S38: 1050
A40: NHS Board Areas | B40: 2003-04 | C40: 2004-05 | D40: 2005-06 | E40: 2006-07 | F40: 2007-08 | G40: 2008-09 | H40: 2009-10 | I40: 2010-11 | J40: 2011-12 | K40: 2012-13 | L40: 2013-14 | M40: 2014-15 | N40: 2015-16 | O40: 2016-17 | P40: 2017-18 | Q40: 2018-19 | R40: 2019-20 | S40: 2020-21
A41: Scotland | B41: [z] | C41: [z] | D41: [z] | E41: [z] | F41: [z] | G41: [z] | H41: [z] | I41: [z] | J41: [z] | K41: [z] | L41: [z] | M41: [z] | N41: [z] | O41: [z] | P41: [z] | Q41: [z] | R41: [z] | S41: [z]
A42: Ayrshire and Arran | B42: 1050 | C42: 360 | D42: 580 | E42: 890 | F42: 720 | G42: 350 | H42: 60 | I42: 260 | J42: 50 | K42: 100 | L42: -70 | M42: 20 | N42: 200 | O42: 450 | P42: 430 | Q42: 600 | R42: 440 | S42: 1970
A43: Borders | B43: 390 | C43: 330 | D43: 270 | E43: 550 | F43: 360 | G43: 160 | H43: 140 | I43: 130 | J43: -80 | K43: -10 | L43: 70 | M43: 90 | N43: 360 | O43: 340 | P43: 390 | Q43: 200 | R43: 220 | S43: 610
A44: Dumfries and Galloway | B44: -60 | C44: -120 | D44: -260 | E44: -60 | F44: 50 | G44: -80 | H44: -100 | I44: -90 | J44: -170 | K44: -190 | L44: -110 | M44: -100 | N44: -180 | O44: -250 | P44: -230 | Q44: -60 | R44: -70 | S44: 330
A45: Fife | B45: 1300 | C45: 940 | D45: 640 | E45: 260 | F45: 730 | G45: 250 | H45: 530 | I45: 440 | J45: 200 | K45: -120 | L45: -90 | M45: -70 | N45: 120 | O45: 200 | P45: 450 | Q45: 1030 | R45: 770 | S45: 1310
A46: Forth Valley | B46: 990 | C46: 1850 | D46: 1140 | E46: 620 | F46: 400 | G46: 290 | H46: 490 | I46: 490 | J46: 330 | K46: 420 | L46: 180 | M46: 870 | N46: 690 | O46: 760 | P46: 270 | Q46: 210 | R46: 80 | S46: 60
A47: Grampian | B47: -250 | C47: -290 | D47: 210 | E47: -190 | F47: -840 | G47: -240 | H47: -330 | I47: -200 | J47: 600 | K47: 1120 | L47: 690 | M47: -1000 | N47: -2540 | O47: -2770 | P47: -2200 | Q47: -1570 | R47: -990 | S47: -1450
A48: Greater Glasgow and Clyde | B48: -4570 | C48: -3800 | D48: -2550 | E48: -2560 | F48: -2080 | G48: -1100 | H48: -1030 | I48: -1050 | J48: -1980 | K48: -1480 | L48: -720 | M48: -1060 | N48: 380 | O48: 140 | P48: 290 | Q48: -1470 | R48: -700 | S48: -4550
A49: Highland | B49: 230 | C49: 60 | D49: -110 | E49: -170 | F49: 220 | G49: -210 | H49: -220 | I49: -290 | J49: -420 | K49: -620 | L49: -850 | M49: -470 | N49: -320 | O49: -640 | P49: -620 | Q49: -770 | R49: -420 | S49: 1670
A50: Lanarkshire | B50: 1670 | C50: 920 | D50: 930 | E50: 850 | F50: 680 | G50: 320 | H50: 80 | I50: 130 | J50: 560 | K50: 770 | L50: 360 | M50: 1080 | N50: 1320 | O50: 1770 | P50: 1780 | Q50: 2390 | R50: 1710 | S50: 2810
A51: Lothian | B51: -1410 | C51: -710 | D51: -1440 | E51: -360 | F51: -490 | G51: 110 | H51: 80 | I51: -130 | J51: 630 | K51: 80 | L51: -50 | M51: 420 | N51: 390 | O51: -200 | P51: -340 | Q51: -640 | R51: -1100 | S51: -3720
A52: Orkney | B52: -50 | C52: -20 | D52: 80 | E52: -20 | F52: -50 | G52: -60 | H52: 20 | I52: 10 | J52: 40 | K52: 20 | L52: -40 | M52: -40 | N52: -20 | O52: 40 | P52: 30 | Q52: 10 | R52: 30 | S52: 0
A53: Shetland | B53: -90 | C53: -100 | D53: -80 | E53: -100 | F53: -100 | G53: 10 | H53: -40 | I53: 10 | J53: -100 | K53: -90 | L53: -30 | M53: -100 | N53: -160 | O53: -120 | P53: -130 | Q53: -180 | R53: -60 | S53: 0
A54: Tayside | B54: 840 | C54: 540 | D54: 640 | E54: 340 | F54: 480 | G54: 240 | H54: 300 | I54: 300 | J54: 380 | K54: 90 | L54: 730 | M54: 390 | N54: -140 | O54: 290 | P54: -30 | Q54: 280 | R54: 130 | S54: 800
A55: Western Isles | B55: -40 | C55: 40 | D55: -50 | E55: -50 | F55: -80 | G55: -30 | H55: 30 | I55: -30 | J55: -30 | K55: -70 | L55: -60 | M55: -50 | N55: -120 | O55: 0 | P55: -80 | Q55: -50 | R55: -40 | S55: 170

Sheet Within Scotland in-migration
A1: Within Scotland in-migration
A2: This worksheet contains two tables, presented next to each other vertically with one blank row between the tables.
A3: See notes [2], [3], [4], [6], [7] which are explained in the Notes worksheet. Some shorthand is used in this table, [z] = Not applicable.
A4: Return to front page
A5: Council Area | B5: 2003-04 | C5: 2004-05 | D5: 2005-06 | E5: 2006-07 | F5: 2007-08 | G5: 2008-09 | H5: 2009-10 | I5: 2010-11 | J5: 2011-12 | K5: 2012-13 | L5: 2013-14 | M5: 2014-15 | N5: 2015-16 | O5: 2016-17 | P5: 2017-18 | Q5: 2018-19 | R5: 2019-20 | S5: 2020-21
A6: Scotland | B6: [z] | C6: [z] | D6: [z] | E6: [z] | F6: [z] | G6: [z] | H6: [z] | I6: [z] | J6: [z] | K6: [z] | L6: [z] | M6: [z] | N6: [z] | O6: [z] | P6: [z] | Q6: [z] | R6: [z] | S6: [z]
A7: Aberdeen City | B7: 5540 | C7: 5830 | D7: 5800 | E7: 5630 | F7: 5630 | G7: 5740 | H7: 5520 | I7: 5960 | J7: 6710 | K7: 7420 | L7: 7040 | M7: 6810 | N7: 6180 | O7: 6070 | P7: 5930 | Q7: 6280 | R7: 5420 | S7: 5810
A8: Aberdeenshire | B8: 5990 | C8: 5920 | D8: 6060 | E8: 5940 | F8: 6010 | G8: 5530 | H8: 5790 | I8: 5790 | J8: 6200 | K8: 6670 | L8: 7230 | M8: 6870 | N8: 5940 | O8: 5260 | P8: 5300 | Q8: 5160 | R8: 4500 | S8: 6750
A9: Angus | B9: 3410 | C9: 3080 | D9: 3070 | E9: 2930 | F9: 2930 | G9: 2290 | H9: 2490 | I9: 2570 | J9: 2810 | K9: 2930 | L9: 3130 | M9: 3280 | N9: 2940 | O9: 2880 | P9: 3050 | Q9: 3060 | R9: 2520 | S9: 3390
A10: Argyll and Bute | B10: 2620 | C10: 2440 | D10: 2250 | E10: 2200 | F10: 2210 | G10: 2090 | H10: 2140 | I10: 2050 | J10: 2210 | K10: 2310 | L10: 2170 | M10: 2270 | N10: 2390 | O10: 2370 | P10: 2190 | Q10: 2150 | R10: 1870 | S10: 3100
A11: City of Edinburgh | B11: 10810 | C11: 11330 | D11: 10340 | E11: 11200 | F11: 10740 | G11: 10800 | H11: 10790 | I11: 10810 | J11: 11510 | K11: 11500 | L11: 11530 | M11: 12290 | N11: 12290 | O11: 11610 | P11: 11530 | Q11: 11700 | R11: 9640 | S11: 11690
A12: Clackmannanshire | B12: 1450 | C12: 1430 | D12: 1330 | E12: 1570 | F12: 1510 | G12: 1190 | H12: 1120 | I12: 1130 | J12: 1030 | K12: 1180 | L12: 1280 | M12: 1460 | N12: 1310 | O12: 1440 | P12: 1310 | Q12: 1360 | R12: 1160 | S12: 1660
A13: Dumfries and Galloway | B13: 1780 | C13: 1840 | D13: 1660 | E13: 1730 | F13: 1790 | G13: 1710 | H13: 1620 | I13: 1650 | J13: 1720 | K13: 1730 | L13: 1730 | M13: 1730 | N13: 1680 | O13: 1640 | P13: 1640 | Q13: 1710 | R13: 1380 | S13: 2170
A14: Dundee City | B14: 3520 | C14: 3570 | D14: 3500 | E14: 3600 | F14: 3780 | G14: 3600 | H14: 3510 | I14: 3770 | J14: 3900 | K14: 4170 | L14: 4200 | M14: 4250 | N14: 4170 | O14: 4410 | P14: 4240 | Q14: 4450 | R14: 3660 | S14: 4080
A15: East Ayrshire | B15: 2570 | C15: 2390 | D15: 2470 | E15: 2720 | F15: 2690 | G15: 2540 | H15: 2270 | I15: 2300 | J15: 2270 | K15: 2370 | L15: 2490 | M15: 2610 | N15: 2670 | O15: 2590 | P15: 2690 | Q15: 2720 | R15: 2100 | S15: 3050
A16: East Dunbartonshire | B16: 2940 | C16: 2890 | D16: 2810 | E16: 2870 | F16: 2830 | G16: 2590 | H16: 2530 | I16: 2460 | J16: 2860 | K16: 2980 | L16: 3490 | M16: 3620 | N16: 3540 | O16: 3450 | P16: 3370 | Q16: 3270 | R16: 2880 | S16: 3740
A17: East Lothian | B17: 2700 | C17: 2730 | D17: 2920 | E17: 3190 | F17: 3250 | G17: 2510 | H17: 2570 | I17: 2530 | J17: 2750 | K17: 2820 | L17: 3060 | M17: 3230 | N17: 2870 | O17: 3030 | P17: 3380 | Q17: 3340 | R17: 3100 | S17: 4160
A18: East Renfrewshire | B18: 2870 | C18: 2780 | D18: 2770 | E18: 2850 | F18: 2830 | G18: 2440 | H18: 2540 | I18: 2580 | J18: 2830 | K18: 3160 | L18: 3290 | M18: 3420 | N18: 3480 | O18: 3450 | P18: 3300 | Q18: 3060 | R18: 2980 | S18: 3650
A19: Falkirk | B19: 3260 | C19: 3510 | D19: 3150 | E19: 3160 | F19: 3000 | G19: 2660 | H19: 2500 | I19: 2990 | J19: 2860 | K19: 3170 | L19: 3060 | M19: 3370 | N19: 3470 | O19: 3530 | P19: 3310 | Q19: 3550 | R19: 2780 | S19: 3450
A20: Fife | B20: 6970 | C20: 6840 | D20: 6380 | E20: 6100 | F20: 6400 | G20: 5680 | H20: 5750 | I20: 5850 | J20: 5930 | K20: 5730 | L20: 6040 | M20: 6390 | N20: 6480 | O20: 6440 | P20: 6560 | Q20: 6970 | R20: 5660 | S20: 7940
A21: Glasgow City | B21: 13110 | C21: 13790 | D21: 13810 | E21: 13910 | F21: 14580 | G21: 13900 | H21: 13340 | I21: 13660 | J21: 14160 | K21: 15000 | L21: 14980 | M21: 16290 | N21: 16770 | O21: 16650 | P21: 16920 | Q21: 16230 | R21: 13920 | S21: 17200
A22: Highland | B22: 4290 | C22: 4470 | D22: 4450 | E22: 4160 | F22: 4530 | G22: 4130 | H22: 3910 | I22: 3970 | J22: 3990 | K22: 3970 | L22: 4060 | M22: 4330 | N22: 4180 | O22: 4020 | P22: 4090 | Q22: 3990 | R22: 3300 | S22: 5560
A23: Inverclyde | B23: 1040 | C23: 1070 | D23: 980 | E23: 1040 | F23: 1050 | G23: 850 | H23: 900 | I23: 870 | J23: 890 | K23: 980 | L23: 940 | M23: 1000 | N23: 1090 | O23: 1120 | P23: 1040 | Q23: 1160 | R23: 910 | S23: 1310
A24: Midlothian | B24: 2060 | C24: 1980 | D24: 1950 | E24: 2330 | F24: 2340 | G24: 2190 | H24: 2020 | I24: 2160 | J24: 2280 | K24: 2460 | L24: 2870 | M24: 3070 | N24: 3020 | O24: 3190 | P24: 3190 | Q24: 3140 | R24: 2660 | S24: 3620
A25: Moray | B25: 1860 | C25: 1710 | D25: 1710 | E25: 1550 | F25: 1640 | G25: 1680 | H25: 1550 | I25: 1710 | J25: 1630 | K25: 1820 | L25: 1900 | M25: 2090 | N25: 2060 | O25: 1800 | P25: 1740 | Q25: 1710 | R25: 1430 | S25: 2020
A26: Na h-Eileanan Siar | B26: 650 | C26: 680 | D26: 610 | E26: 590 | F26: 620 | G26: 600 | H26: 600 | I26: 580 | J26: 550 | K26: 500 | L26: 560 | M26: 600 | N26: 530 | O26: 590 | P26: 540 | Q26: 550 | R26: 490 | S26: 720
A27: North Ayrshire | B27: 3120 | C27: 3070 | D27: 2880 | E27: 3110 | F27: 2900 | G27: 2490 | H27: 2430 | I27: 2460 | J27: 2570 | K27: 2570 | L27: 2540 | M27: 2820 | N27: 2750 | O27: 2800 | P27: 2660 | Q27: 2680 | R27: 2330 | S27: 3300
A28: North Lanarkshire | B28: 5830 | C28: 5710 | D28: 5670 | E28: 5790 | F28: 5580 | G28: 5040 | H28: 4440 | I28: 4740 | J28: 5020 | K28: 5110 | L28: 5180 | M28: 5780 | N28: 6160 | O28: 6020 | P28: 6160 | Q28: 6710 | R28: 5160 | S28: 6910
A29: Orkney Islands | B29: 380 | C29: 380 | D29: 420 | E29: 360 | F29: 370 | G29: 350 | H29: 430 | I29: 350 | J29: 410 | K29: 430 | L29: 380 | M29: 390 | N29: 420 | O29: 410 | P29: 400 | Q29: 430 | R29: 340 | S29: 460
A30: Perth and Kinross | B30: 4050 | C30: 3810 | D30: 3940 | E30: 3750 | F30: 3910 | G30: 3450 | H30: 3470 | I30: 3450 | J30: 3680 | K30: 3900 | L30: 4140 | M30: 4210 | N30: 4240 | O30: 4100 | P30: 4110 | Q30: 4230 | R30: 3580 | S30: 5270
A31: Renfrewshire | B31: 3270 | C31: 3430 | D31: 3270 | E31: 3490 | F31: 3540 | G31: 3300 | H31: 3270 | I31: 3330 | J31: 3220 | K31: 3330 | L31: 3900 | M31: 4080 | N31: 4510 | O31: 4400 | P31: 4820 | Q31: 4700 | R31: 3930 | S31: 5180
A32: Scottish Borders | B32: 2610 | C32: 2570 | D32: 2350 | E32: 2590 | F32: 2500 | G32: 2280 | H32: 2240 | I32: 2210 | J32: 2110 | K32: 2150 | L32: 2320 | M32: 2290 | N32: 2500 | O32: 2580 | P32: 2590 | Q32: 2370 | R32: 2030 | S32: 3010
A33: Shetland Islands | B33: 370 | C33: 380 | D33: 390 | E33: 370 | F33: 330 | G33: 380 | H33: 300 | I33: 380 | J33: 320 | K33: 350 | L33: 360 | M33: 390 | N33: 320 | O33: 290 | P33: 300 | Q33: 300 | R33: 300 | S33: 420
A34: South Ayrshire | B34: 2710 | C34: 2530 | D34: 2440 | E34: 2600 | F34: 2510 | G34: 2330 | H34: 2230 | I34: 2310 | J34: 2520 | K34: 2680 | L34: 2480 | M34: 2680 | N34: 2690 | O34: 2800 | P34: 2740 | Q34: 2740 | R34: 2270 | S34: 3110
A35: South Lanarkshire | B35: 7380 | C35: 6610 | D35: 6780 | E35: 6810 | F35: 6530 | G35: 5990 | H35: 5870 | I35: 5670 | J35: 6300 | K35: 6550 | L35: 6410 | M35: 7460 | N35: 7080 | O35: 7230 | P35: 7480 | Q35: 7810 | R35: 6420 | S35: 8990
A36: Stirling | B36: 2690 | C36: 3660 | D36: 3240 | E36: 2980 | F36: 2880 | G36: 2800 | H36: 3070 | I36: 2840 | J36: 3150 | K36: 3340 | L36: 3320 | M36: 3790 | N36: 3600 | O36: 3420 | P36: 3460 | Q36: 3270 | R36: 2830 | S36: 3490
A37: West Dunbartonshire | B37: 1810 | C37: 1730 | D37: 1830 | E37: 1780 | F37: 1870 | G37: 1730 | H37: 1520 | I37: 1530 | J37: 1650 | K37: 1650 | L37: 1760 | M37: 2080 | N37: 1990 | O37: 1830 | P37: 1980 | Q37: 1920 | R37: 1600 | S37: 1970
A38: West Lothian | B38: 4690 | C38: 4220 | D38: 3990 | E38: 4310 | F38: 3910 | G38: 3270 | H38: 3080 | I38: 3070 | J38: 3260 | K38: 3210 | L38: 3700 | M38: 4310 | N38: 4100 | O38: 4000 | P38: 3880 | Q38: 4200 | R38: 3740 | S38: 5080
A40: NHS Board Areas | B40: 2003-04 | C40: 2004-05 | D40: 2005-06 | E40: 2006-07 | F40: 2007-08 | G40: 2008-09 | H40: 2009-10 | I40: 2010-11 | J40: 2011-12 | K40: 2012-13 | L40: 2013-14 | M40: 2014-15 | N40: 2015-16 | O40: 2016-17 | P40: 2017-18 | Q40: 2018-19 | R40: 2019-20 | S40: 2020-21
A41: Scotland | B41: [z] | C41: [z] | D41: [z] | E41: [z] | F41: [z] | G41: [z] | H41: [z] | I41: [z] | J41: [z] | K41: [z] | L41: [z] | M41: [z] | N41: [z] | O41: [z] | P41: [z] | Q41: [z] | R41: [z] | S41: [z]
A42: Ayrshire and Arran | B42: 5730 | C42: 5400 | D42: 5180 | E42: 5610 | F42: 5340 | G42: 4890 | H42: 4570 | I42: 4710 | J42: 4860 | K42: 5110 | L42: 5050 | M42: 5300 | N42: 5370 | O42: 5470 | P42: 5450 | Q42: 5460 | R42: 4390 | S42: 6810
A43: Borders | B43: 2610 | C43: 2570 | D43: 2350 | E43: 2590 | F43: 2500 | G43: 2280 | H43: 2240 | I43: 2210 | J43: 2110 | K43: 2150 | L43: 2320 | M43: 2290 | N43: 2500 | O43: 2580 | P43: 2590 | Q43: 2370 | R43: 2030 | S43: 3010
A44: Dumfries and Galloway | B44: 1780 | C44: 1840 | D44: 1660 | E44: 1730 | F44: 1790 | G44: 1710 | H44: 1620 | I44: 1650 | J44: 1720 | K44: 1730 | L44: 1730 | M44: 1730 | N44: 1680 | O44: 1640 | P44: 1640 | Q44: 1710 | R44: 1380 | S44: 2170
A45: Fife | B45: 6970 | C45: 6840 | D45: 6380 | E45: 6100 | F45: 6400 | G45: 5670 | H45: 5750 | I45: 5850 | J45: 5930 | K45: 5730 | L45: 6040 | M45: 6390 | N45: 6480 | O45: 6440 | P45: 6560 | Q45: 6970 | R45: 5660 | S45: 7940
A46: Forth Valley | B46: 5810 | C46: 7030 | D46: 6140 | E46: 5980 | F46: 5790 | G46: 5280 | H46: 5280 | I46: 5510 | J46: 5610 | K46: 6170 | L46: 6060 | M46: 6920 | N46: 6780 | O46: 6750 | P46: 6420 | Q46: 6630 | R46: 5330 | S46: 6960
A47: Grampian | B47: 6500 | C47: 6790 | D47: 6850 | E47: 6460 | F47: 6320 | G47: 6680 | H47: 6280 | I47: 6790 | J47: 7670 | K47: 8280 | L47: 8370 | M47: 7740 | N47: 6940 | O47: 6660 | P47: 6480 | Q47: 6690 | R47: 5800 | S47: 7600
A48: Greater Glasgow and Clyde | B48: 17450 | C48: 18100 | D48: 18310 | E48: 18610 | F48: 19390 | G48: 18510 | H48: 18200 | I48: 18150 | J48: 14820 | K48: 15560 | L48: 16350 | M48: 17270 | N48: 18360 | O48: 18140 | P48: 18320 | Q48: 17630 | R48: 15130 | S48: 18810
A49: Highland | B49: 6560 | C49: 6610 | D49: 6360 | E49: 6040 | F49: 6390 | G49: 5920 | H49: 5730 | I49: 5710 | J49: 5880 | K49: 5940 | L49: 5880 | M49: 6280 | N49: 6250 | O49: 6070 | P49: 5970 | Q49: 5800 | R49: 4930 | S49: 8190
A50: Lanarkshire | B50: 8730 | C50: 8230 | D50: 8290 | E50: 8180 | F50: 8130 | G50: 7400 | H50: 6920 | I50: 7130 | J50: 9170 | K50: 9330 | L50: 9310 | M50: 10640 | N50: 10720 | O50: 10840 | P50: 11230 | Q50: 11950 | R50: 9470 | S50: 13080
A51: Lothian | B51: 11520 | C51: 12130 | D51: 11040 | E51: 11920 | F51: 11720 | G51: 11610 | H51: 11430 | I51: 11300 | J51: 12550 | K51: 12320 | L51: 12790 | M51: 13660 | N51: 13640 | O51: 13190 | P51: 13100 | Q51: 13370 | R51: 10850 | S51: 14010
A52: Orkney | B52: 380 | C52: 380 | D52: 420 | E52: 360 | F52: 370 | G52: 350 | H52: 430 | I52: 350 | J52: 410 | K52: 430 | L52: 380 | M52: 390 | N52: 420 | O52: 410 | P52: 400 | Q52: 430 | R52: 340 | S52: 460
A53: Shetland | B53: 370 | C53: 380 | D53: 390 | E53: 370 | F53: 330 | G53: 380 | H53: 300 | I53: 380 | J53: 320 | K53: 350 | L53: 360 | M53: 390 | N53: 320 | O53: 290 | P53: 300 | Q53: 300 | R53: 300 | S53: 420
A54: Tayside | B54: 7120 | C54: 7080 | D54: 6940 | E54: 6690 | F54: 6920 | G54: 6490 | H54: 6490 | I54: 6720 | J54: 7130 | K54: 7480 | L54: 8060 | M54: 8220 | N54: 8050 | O54: 8170 | P54: 7930 | Q54: 8290 | R54: 6710 | S54: 9250
A55: Western Isles | B55: 650 | C55: 680 | D55: 610 | E55: 590 | F55: 620 | G55: 600 | H55: 600 | I55: 580 | J55: 550 | K55: 500 | L55: 560 | M55: 600 | N55: 530 | O55: 590 | P55: 540 | Q55: 550 | R55: 490 | S55: 720

Sheet Within Scotland out-migration
A1: Within Scotland out-migration
A2: This worksheet contains two tables, presented next to each other vertically with one blank row between the tables.
A3: See notes [2], [3], [4], [6], [7] which are explained in the Notes worksheet. Some shorthand is used in this table, [z] = Not applicable.
A4: Return to front page
A5: Council Area | B5: 2003-04 | C5: 2004-05 | D5: 2005-06 | E5: 2006-07 | F5: 2007-08 | G5: 2008-09 | H5: 2009-10 | I5: 2010-11 | J5: 2011-12 | K5: 2012-13 | L5: 2013-14 | M5: 2014-15 | N5: 2015-16 | O5: 2016-17 | P5: 2017-18 | Q5: 2018-19 | R5: 2019-20 | S5: 2020-21
A6: Scotland | B6: [z] | C6: [z] | D6: [z] | E6: [z] | F6: [z] | G6: [z] | H6: [z] | I6: [z] | J6: [z] | K6: [z] | L6: [z] | M6: [z] | N6: [z] | O6: [z] | P6: [z] | Q6: [z] | R6: [z] | S6: [z]
A7: Aberdeen City | B7: 7220 | C7: 6910 | D7: 6930 | E7: 6750 | F7: 7290 | G7: 6720 | H7: 6830 | I7: 7010 | J7: 7070 | K7: 7610 | L7: 8180 | M7: 9030 | N7: 8840 | O7: 8300 | P7: 7780 | Q7: 7190 | R7: 6220 | S7: 8640
A8: Aberdeenshire | B8: 4750 | C8: 5050 | D8: 4720 | E8: 4840 | F8: 5140 | G8: 4840 | H8: 4710 | I8: 5000 | J8: 5120 | K8: 5480 | L8: 5590 | M8: 5920 | N8: 6000 | O8: 5750 | P8: 5610 | Q8: 5700 | R8: 4490 | S8: 5440
A9: Angus | B9: 2420 | C9: 2570 | D9: 2380 | E9: 2540 | F9: 2550 | G9: 2310 | H9: 2370 | I9: 2600 | J9: 2620 | K9: 2770 | L9: 2710 | M9: 2840 | N9: 2880 | O9: 2790 | P9: 2840 | Q9: 2730 | R9: 2310 | S9: 2910
A10: Argyll and Bute | B10: 2420 | C10: 2470 | D10: 2490 | E10: 2430 | F10: 2420 | G10: 2380 | H10: 2290 | I10: 2170 | J10: 2540 | K10: 2510 | L10: 2610 | M10: 2720 | N10: 2670 | O10: 2800 | P10: 2750 | Q10: 2690 | R10: 2160 | S10: 2740
A11: City of Edinburgh | B11: 13670 | C11: 12880 | D11: 12950 | E11: 13160 | F11: 12720 | G11: 11570 | H11: 11160 | I11: 11210 | J11: 11760 | K11: 12110 | L11: 13240 | M11: 14210 | N11: 13770 | O11: 13990 | P11: 14020 | Q11: 14530 | R11: 12730 | S11: 18950
A12: Clackmannanshire | B12: 1110 | C12: 1130 | D12: 1180 | E12: 1180 | F12: 1220 | G12: 1190 | H12: 1230 | I12: 1140 | J12: 1280 | K12: 1270 | L12: 1340 | M12: 1390 | N12: 1420 | O12: 1350 | P12: 1370 | Q12: 1310 | R12: 1150 | S12: 1450
A13: Dumfries and Galloway | B13: 1840 | C13: 1950 | D13: 1920 | E13: 1780 | F13: 1740 | G13: 1800 | H13: 1720 | I13: 1740 | J13: 1890 | K13: 1930 | L13: 1840 | M13: 1840 | N13: 1860 | O13: 1890 | P13: 1870 | Q13: 1770 | R13: 1440 | S13: 1850
A14: Dundee City | B14: 4210 | C14: 3920 | D14: 4150 | E14: 4130 | F14: 4170 | G14: 3700 | H14: 3790 | I14: 3780 | J14: 4030 | K14: 4420 | L14: 4510 | M14: 4770 | N14: 4780 | O14: 4470 | P14: 4700 | Q14: 4750 | R14: 4250 | S14: 5330
A15: East Ayrshire | B15: 2290 | C15: 2420 | D15: 2290 | E15: 2480 | F15: 2330 | G15: 2140 | H15: 2190 | I15: 2290 | J15: 2330 | K15: 2400 | L15: 2440 | M15: 2620 | N15: 2610 | O15: 2650 | P15: 2480 | Q15: 2440 | R15: 2030 | S15: 2390
A16: East Dunbartonshire | B16: 3090 | C16: 3150 | D16: 2940 | E16: 3040 | F16: 2930 | G16: 2610 | H16: 2360 | I16: 2440 | J16: 2490 | K16: 2700 | L16: 2430 | M16: 3010 | N16: 2950 | O16: 2790 | P16: 2880 | Q16: 2820 | R16: 2300 | S16: 3200
A17: East Lothian | B17: 2340 | C17: 2250 | D17: 2040 | E17: 2090 | F17: 2260 | G17: 2090 | H17: 2220 | I17: 2320 | J17: 2270 | K17: 2320 | L17: 2500 | M17: 2550 | N17: 2370 | O17: 2480 | P17: 2510 | Q17: 2380 | R17: 2340 | S17: 2810
A18: East Renfrewshire | B18: 2670 | C18: 2650 | D18: 2690 | E18: 2600 | F18: 2670 | G18: 2320 | H18: 2160 | I18: 2300 | J18: 2360 | K18: 2460 | L18: 2350 | M18: 2710 | N18: 2760 | O18: 2540 | P18: 2670 | Q18: 2710 | R18: 2230 | S18: 2960
A19: Falkirk | B19: 2210 | C19: 2350 | D19: 2380 | E19: 2580 | F19: 2560 | G19: 2230 | H19: 2220 | I19: 2380 | J19: 2490 | K19: 2770 | L19: 2880 | M19: 2980 | N19: 2880 | O19: 2900 | P19: 2980 | Q19: 2990 | R19: 2550 | S19: 3140
A20: Fife | B20: 5660 | C20: 5900 | D20: 5740 | E20: 5840 | F20: 5670 | G20: 5420 | H20: 5220 | I20: 5400 | J20: 5730 | K20: 5850 | L20: 6120 | M20: 6460 | N20: 6360 | O20: 6250 | P20: 6120 | Q20: 5940 | R20: 4890 | S20: 6630
A21: Glasgow City | B21: 17660 | C21: 17090 | D21: 16460 | E21: 16670 | F21: 16750 | G21: 15420 | H21: 15200 | I21: 14890 | J21: 16260 | K21: 16800 | L21: 17660 | M21: 18710 | N21: 18590 | O21: 18480 | P21: 18540 | Q21: 19360 | R21: 16540 | S21: 23670
A22: Highland | B22: 4270 | C22: 4380 | D22: 4310 | E22: 4100 | F22: 4100 | G22: 4060 | H22: 3980 | I22: 4130 | J22: 4080 | K22: 4400 | L22: 4470 | M22: 4360 | N22: 4220 | O22: 4230 | P22: 4160 | Q22: 4220 | R22: 3440 | S22: 4250
A23: Inverclyde | B23: 1340 | C23: 1330 | D23: 1290 | E23: 1310 | F23: 1250 | G23: 1160 | H23: 1060 | I23: 1120 | J23: 1090 | K23: 1140 | L23: 1230 | M23: 1260 | N23: 1230 | O23: 1170 | P23: 1240 | Q23: 1190 | R23: 1010 | S23: 1330
A24: Midlothian | B24: 2290 | C24: 2210 | D24: 2160 | E24: 2330 | F24: 2010 | G24: 1710 | H24: 1770 | I24: 1780 | J24: 1770 | K24: 1900 | L24: 1920 | M24: 2040 | N24: 2160 | O24: 2070 | P24: 2140 | Q24: 2240 | R24: 2050 | S24: 2480
A25: Moray | B25: 1670 | C25: 1780 | D25: 1700 | E25: 1720 | F25: 1710 | G25: 1630 | H25: 1650 | I25: 1650 | J25: 1740 | K25: 1690 | L25: 1720 | M25: 1820 | N25: 1860 | O25: 1860 | P25: 1780 | Q25: 1840 | R25: 1630 | S25: 1950
A26: Na h-Eileanan Siar | B26: 690 | C26: 640 | D26: 660 | E26: 640 | F26: 700 | G26: 630 | H26: 570 | I26: 610 | J26: 580 | K26: 570 | L26: 620 | M26: 650 | N26: 650 | O26: 590 | P26: 620 | Q26: 600 | R26: 530 | S26: 550
A27: North Ayrshire | B27: 2870 | C27: 2860 | D27: 2730 | E27: 2760 | F27: 2760 | G27: 2660 | H27: 2580 | I27: 2440 | J27: 2750 | K27: 2770 | L27: 2750 | M27: 2890 | N27: 2860 | O27: 2690 | P27: 2710 | Q27: 2690 | R27: 2250 | S27: 2740
A28: North Lanarkshire | B28: 5420 | C28: 5370 | D28: 5320 | E28: 5520 | F28: 5360 | G28: 4980 | H28: 4690 | I28: 4940 | J28: 5130 | K28: 5290 | L28: 5370 | M28: 5930 | N28: 5610 | O28: 5460 | P28: 5690 | Q28: 5740 | R28: 4650 | S28: 6340
A29: Orkney Islands | B29: 430 | C29: 400 | D29: 340 | E29: 380 | F29: 420 | G29: 420 | H29: 420 | I29: 340 | J29: 370 | K29: 410 | L29: 420 | M29: 420 | N29: 440 | O29: 370 | P29: 370 | Q29: 420 | R29: 320 | S29: 450
A30: Perth and Kinross | B30: 3520 | C30: 3430 | D30: 3340 | E30: 3280 | F30: 3410 | G30: 3080 | H30: 3010 | I30: 3110 | J30: 3370 | K30: 3730 | L30: 3530 | M30: 3740 | N30: 3840 | O30: 3840 | P30: 3890 | Q30: 3980 | R30: 3070 | S30: 3710
A31: Renfrewshire | B31: 3580 | C31: 3830 | D31: 3480 | E31: 3710 | F31: 3380 | G31: 3180 | H31: 3140 | I31: 3160 | J31: 3490 | K31: 3470 | L31: 3510 | M31: 3870 | N31: 3600 | O31: 3730 | P31: 3670 | Q31: 3680 | R31: 3130 | S31: 4370
A32: Scottish Borders | B32: 2220 | C32: 2250 | D32: 2080 | E32: 2040 | F32: 2140 | G32: 2120 | H32: 2090 | I32: 2070 | J32: 2190 | K32: 2160 | L32: 2250 | M32: 2200 | N32: 2140 | O32: 2250 | P32: 2200 | Q32: 2170 | R32: 1810 | S32: 2410
A33: Shetland Islands | B33: 450 | C33: 480 | D33: 480 | E33: 470 | F33: 430 | G33: 380 | H33: 340 | I33: 370 | J33: 430 | K33: 440 | L33: 390 | M33: 490 | N33: 470 | O33: 420 | P33: 440 | Q33: 480 | R33: 350 | S33: 420
A34: South Ayrshire | B34: 2190 | C34: 2350 | D34: 2180 | E34: 2310 | F34: 2290 | G34: 2200 | H34: 2080 | I34: 2080 | J34: 2220 | K34: 2350 | L34: 2380 | M34: 2570 | N34: 2440 | O34: 2390 | P34: 2460 | Q34: 2410 | R34: 2000 | S34: 2360
A35: South Lanarkshire | B35: 5360 | C35: 5580 | D35: 5540 | E35: 5510 | F35: 5830 | G35: 5240 | H35: 4960 | I35: 5190 | J35: 5640 | K35: 5600 | L35: 5880 | M35: 6230 | N35: 6300 | O35: 6020 | P35: 6180 | Q35: 6390 | R35: 5210 | S35: 6750
A36: Stirling | B36: 3100 | C36: 3260 | D36: 3020 | E36: 3340 | F36: 3220 | G36: 2950 | H36: 2760 | I36: 2950 | J36: 2940 | K36: 3230 | L36: 3250 | M36: 3380 | N36: 3390 | O36: 3390 | P36: 3450 | Q36: 3680 | R36: 2990 | S36: 3950
A37: West Dunbartonshire | B37: 2010 | C37: 1880 | D37: 1810 | E37: 1890 | F37: 2020 | G37: 1710 | H37: 1780 | I37: 1720 | J37: 1910 | K37: 2020 | L37: 1890 | M37: 1990 | N37: 1870 | O37: 2040 | P37: 2130 | Q37: 2040 | R37: 1730 | S37: 2050
A38: West Lothian | B38: 3370 | C38: 3640 | D38: 3470 | E38: 3810 | F38: 3740 | G38: 3300 | H38: 3240 | I38: 3390 | J38: 3360 | K38: 3580 | L38: 3540 | M38: 3680 | N38: 3580 | O38: 3490 | P38: 3660 | Q38: 3860 | R38: 3110 | S38: 4030
A40: NHS Board Areas | B40: 2003-04 | C40: 2004-05 | D40: 2005-06 | E40: 2006-07 | F40: 2007-08 | G40: 2008-09 | H40: 2009-10 | I40: 2010-11 | J40: 2011-12 | K40: 2012-13 | L40: 2013-14 | M40: 2014-15 | N40: 2015-16 | O40: 2016-17 | P40: 2017-18 | Q40: 2018-19 | R40: 2019-20 | S40: 2020-21
A41: Scotland | B41: [z] | C41: [z] | D41: [z] | E41: [z] | F41: [z] | G41: [z] | H41: [z] | I41: [z] | J41: [z] | K41: [z] | L41: [z] | M41: [z] | N41: [z] | O41: [z] | P41: [z] | Q41: [z] | R41: [z] | S41: [z]
A42: Ayrshire and Arran | B42: 4690 | C42: 5040 | D42: 4600 | E42: 4720 | F42: 4620 | G42: 4540 | H42: 4510 | I42: 4450 | J42: 4820 | K42: 5010 | L42: 5120 | M42: 5280 | N42: 5160 | O42: 5010 | P42: 5020 | Q42: 4860 | R42: 3950 | S42: 4850
A43: Borders | B43: 2220 | C43: 2250 | D43: 2080 | E43: 2040 | F43: 2140 | G43: 2120 | H43: 2090 | I43: 2070 | J43: 2190 | K43: 2160 | L43: 2250 | M43: 2200 | N43: 2140 | O43: 2250 | P43: 2200 | Q43: 2170 | R43: 1810 | S43: 2410
A44: Dumfries and Galloway | B44: 1840 | C44: 1950 | D44: 1920 | E44: 1780 | F44: 1740 | G44: 1800 | H44: 1720 | I44: 1740 | J44: 1890 | K44: 1930 | L44: 1840 | M44: 1840 | N44: 1860 | O44: 1890 | P44: 1870 | Q44: 1770 | R44: 1440 | S44: 1850
A45: Fife | B45: 5660 | C45: 5900 | D45: 5740 | E45: 5840 | F45: 5670 | G45: 5420 | H45: 5220 | I45: 5410 | J45: 5730 | K45: 5850 | L45: 6120 | M45: 6460 | N45: 6360 | O45: 6250 | P45: 6120 | Q45: 5940 | R45: 4890 | S45: 6630
A46: Forth Valley | B46: 4820 | C46: 5180 | D46: 5000 | E46: 5370 | F46: 5390 | G46: 4990 | H46: 4800 | I46: 5010 | J46: 5290 | K46: 5750 | L46: 5880 | M46: 6040 | N46: 6100 | O46: 5990 | P46: 6150 | Q46: 6430 | R46: 5240 | S46: 6900
A47: Grampian | B47: 6750 | C47: 7080 | D47: 6640 | E47: 6650 | F47: 7160 | G47: 6920 | H47: 6610 | I47: 6990 | J47: 7070 | K47: 7170 | L47: 7680 | M47: 8740 | N47: 9480 | O47: 9430 | P47: 8680 | Q47: 8260 | R47: 6790 | S47: 9050
A48: Greater Glasgow and Clyde | B48: 22010 | C48: 21900 | D48: 20860 | E48: 21170 | F48: 21470 | G48: 19620 | H48: 19230 | I48: 19200 | J48: 16810 | K48: 17040 | L48: 17070 | M48: 18330 | N48: 17970 | O48: 18000 | P48: 18030 | Q48: 19100 | R48: 15830 | S48: 23360
A49: Highland | B49: 6330 | C49: 6550 | D49: 6470 | E49: 6210 | F49: 6170 | G49: 6120 | H49: 5950 | I49: 6000 | J49: 6300 | K49: 6560 | L49: 6740 | M49: 6750 | N49: 6570 | O49: 6710 | P49: 6590 | Q49: 6570 | R49: 5350 | S49: 6520
A50: Lanarkshire | B50: 7070 | C50: 7310 | D50: 7360 | E50: 7340 | F50: 7450 | G50: 7080 | H50: 6840 | I50: 6990 | J50: 8610 | K50: 8570 | L50: 8960 | M50: 9560 | N50: 9390 | O50: 9080 | P50: 9450 | Q50: 9560 | R50: 7760 | S50: 10270
A51: Lothian | B51: 12930 | C51: 12840 | D51: 12470 | E51: 12270 | F51: 12200 | G51: 11500 | H51: 11350 | I51: 11420 | J51: 11910 | K51: 12250 | L51: 12840 | M51: 13240 | N51: 13260 | O51: 13390 | P51: 13440 | Q51: 14000 | R51: 11950 | S51: 17730
A52: Orkney | B52: 430 | C52: 400 | D52: 340 | E52: 380 | F52: 420 | G52: 420 | H52: 420 | I52: 340 | J52: 370 | K52: 410 | L52: 420 | M52: 420 | N52: 440 | O52: 370 | P52: 370 | Q52: 420 | R52: 320 | S52: 450
A53: Shetland | B53: 450 | C53: 480 | D53: 480 | E53: 470 | F53: 430 | G53: 380 | H53: 340 | I53: 370 | J53: 430 | K53: 440 | L53: 390 | M53: 490 | N53: 470 | O53: 420 | P53: 440 | Q53: 480 | R53: 350 | S53: 420
A54: Tayside | B54: 6280 | C54: 6540 | D54: 6300 | E54: 6350 | F54: 6440 | G54: 6240 | H54: 6190 | I54: 6420 | J54: 6750 | K54: 7390 | L54: 7330 | M54: 7830 | N54: 8190 | O54: 7880 | P54: 7960 | Q54: 8000 | R54: 6580 | S54: 8440
A55: Western Isles | B55: 690 | C55: 640 | D55: 660 | E55: 640 | F55: 700 | G55: 630 | H55: 570 | I55: 610 | J55: 580 | K55: 570 | L55: 620 | M55: 650 | N55: 650 | O55: 590 | P55: 620 | Q55: 600 | R55: 530 | S55: 550

Sheet Rest of UK net migration
A1: Rest of UK net migration
A2: This worksheet contains two tables, presented next to each other vertically with one blank row between the tables.
A3: See notes [2], [3], [4], [6] which are explained in the Notes worksheet.
A4: Return to front page
A5: Council Area | B5: 2003-04 | C5: 2004-05 | D5: 2005-06 | E5: 2006-07 | F5: 2007-08 | G5: 2008-09 | H5: 2009-10 | I5: 2010-11 | J5: 2011-12 | K5: 2012-13 | L5: 2013-14 | M5: 2014-15 | N5: 2015-16 | O5: 2016-17 | P5: 2017-18 | Q5: 2018-19 | R5: 2019-20 | S5: 2020-21
A6: Scotland | B6: 15500 | C6: 12500 | D6: 8900 | E6: 8800 | F6: 11500 | G6: 4100 | H6: 3300 | I6: 2900 | J6: 3000 | K6: 7900 | L6: 9600 | M6: 8400 | N6: 8800 | O6: 10500 | P6: 10000 | Q6: 10000 | R6: 9000 | S6: 8900
A7: Aberdeen City | B7: -390 | C7: 50 | D7: 140 | E7: 320 | F7: 270 | G7: 280 | H7: 320 | I7: 0 | J7: 100 | K7: 560 | L7: 590 | M7: 120 | N7: -780 | O7: -690 | P7: -650 | Q7: -310 | R7: 0 | S7: -640
A8: Aberdeenshire | B8: 1870 | C8: 1290 | D8: 1070 | E8: 750 | F8: 600 | G8: 220 | H8: -100 | I8: -130 | J8: 100 | K8: 370 | L8: 280 | M8: -220 | N8: -600 | O8: -410 | P8: -250 | Q8: -50 | R8: -40 | S8: 660
A9: Angus | B9: 450 | C9: 440 | D9: 130 | E9: 160 | F9: 170 | G9: 30 | H9: 20 | I9: -90 | J9: 50 | K9: 40 | L9: 190 | M9: 110 | N9: -70 | O9: 10 | P9: 40 | Q9: 90 | R9: 160 | S9: 290
A10: Argyll and Bute | B10: 830 | C10: 570 | D10: 550 | E10: 470 | F10: 400 | G10: 310 | H10: 350 | I10: 370 | J10: 270 | K10: 380 | L10: 400 | M10: 300 | N10: 480 | O10: 610 | P10: 610 | Q10: 560 | R10: 470 | S10: 900
A11: City of Edinburgh | B11: 2050 | C11: 1650 | D11: 1920 | E11: 750 | F11: 1350 | G11: 360 | H11: 1130 | I11: 360 | J11: 160 | K11: 1660 | L11: 1730 | M11: 2140 | N11: 2350 | O11: 2960 | P11: 2810 | Q11: 2030 | R11: 1730 | S11: -310
A12: Clackmannanshire | B12: 260 | C12: 270 | D12: 140 | E12: 190 | F12: 120 | G12: 0 | H12: 30 | I12: -10 | J12: 40 | K12: 60 | L12: 0 | M12: 80 | N12: 60 | O12: -10 | P12: 50 | Q12: 60 | R12: 100 | S12: 50
A13: Dumfries and Galloway | B13: 1490 | C13: 1390 | D13: 850 | E13: 740 | F13: 930 | G13: 560 | H13: 380 | I13: 450 | J13: 320 | K13: 520 | L13: 710 | M13: 510 | N13: 560 | O13: 680 | P13: 800 | Q13: 900 | R13: 730 | S13: 1240
A14: Dundee City | B14: -160 | C14: 200 | D14: -150 | E14: -270 | F14: 50 | G14: -10 | H14: 0 | I14: -140 | J14: 60 | K14: 240 | L14: 40 | M14: 50 | N14: -20 | O14: 250 | P14: 250 | Q14: 200 | R14: 120 | S14: -120
A15: East Ayrshire | B15: 220 | C15: 150 | D15: 110 | E15: 150 | F15: 280 | G15: 120 | H15: 50 | I15: 80 | J15: 120 | K15: 80 | L15: 40 | M15: 170 | N15: 130 | O15: 170 | P15: 130 | Q15: 240 | R15: 160 | S15: 270
A16: East Dunbartonshire | B16: -110 | C16: -180 | D16: -130 | E16: -130 | F16: 40 | G16: -40 | H16: -170 | I16: -50 | J16: -20 | K16: -70 | L16: -50 | M16: 60 | N16: 70 | O16: 50 | P16: 20 | Q16: -10 | R16: 50 | S16: -60
A17: East Lothian | B17: 120 | C17: 10 | D17: 10 | E17: 280 | F17: 390 | G17: 70 | H17: 100 | I17: 70 | J17: 200 | K17: 80 | L17: 120 | M17: 120 | N17: 170 | O17: 150 | P17: 110 | Q17: 90 | R17: 220 | S17: 410
A18: East Renfrewshire | B18: -150 | C18: -70 | D18: -160 | E18: -190 | F18: -130 | G18: -30 | H18: -50 | I18: 20 | J18: -120 | K18: -50 | L18: 10 | M18: 0 | N18: 40 | O18: 60 | P18: -30 | Q18: 0 | R18: 30 | S18: -100
A19: Falkirk | B19: 390 | C19: 240 | D19: 100 | E19: 40 | F19: 110 | G19: 10 | H19: 20 | I19: 130 | J19: 20 | K19: 110 | L19: 230 | M19: 220 | N19: 200 | O19: 170 | P19: 80 | Q19: 130 | R19: 100 | S19: 150
A20: Fife | B20: 960 | C20: 930 | D20: 650 | E20: 610 | F20: 510 | G20: 240 | H20: 20 | I20: 330 | J20: 70 | K20: 480 | L20: 630 | M20: 470 | N20: 440 | O20: 660 | P20: 530 | Q20: 500 | R20: 410 | S20: -280
A21: Glasgow City | B21: 40 | C21: 250 | D21: -400 | E21: 330 | F21: 850 | G21: 60 | H21: -470 | I21: -460 | J21: -290 | K21: 180 | L21: 730 | M21: 1180 | N21: 1850 | O21: 1830 | P21: 1680 | Q21: 1410 | R21: 1000 | S21: 310
A22: Highland | B22: 2820 | C22: 2150 | D22: 1460 | E22: 1640 | F22: 1370 | G22: 730 | H22: 710 | I22: 640 | J22: 380 | K22: 760 | L22: 740 | M22: 810 | N22: 890 | O22: 930 | P22: 1000 | Q22: 1030 | R22: 860 | S22: 1780
A23: Inverclyde | B23: -120 | C23: 0 | D23: -40 | E23: -60 | F23: 50 | G23: -40 | H23: -90 | I23: -20 | J23: -10 | K23: 50 | L23: 80 | M23: 100 | N23: 50 | O23: 60 | P23: 80 | Q23: 60 | R23: 70 | S23: 130
A24: Midlothian | B24: 0 | C24: -70 | D24: -40 | E24: 20 | F24: 90 | G24: -40 | H24: -60 | I24: 70 | J24: 30 | K24: 60 | L24: 110 | M24: -30 | N24: 70 | O24: 110 | P24: -10 | Q24: -40 | R24: 90 | S24: 160
A25: Moray | B25: 870 | C25: 700 | D25: 430 | E25: 460 | F25: 400 | G25: 310 | H25: 40 | I25: -130 | J25: 540 | K25: 620 | L25: 330 | M25: 260 | N25: 280 | O25: 160 | P25: 210 | Q25: 380 | R25: 320 | S25: 630
A26: Na h-Eileanan Siar | B26: 320 | C26: 250 | D26: 190 | E26: 100 | F26: 130 | G26: 120 | H26: 150 | I26: 50 | J26: 80 | K26: 110 | L26: 20 | M26: 40 | N26: 30 | O26: 150 | P26: 120 | Q26: 100 | R26: 60 | S26: 160
A27: North Ayrshire | B27: 100 | C27: 80 | D27: 110 | E27: 120 | F27: 340 | G27: 150 | H27: 80 | I27: 80 | J27: 10 | K27: 130 | L27: 240 | M27: 180 | N27: 210 | O27: 290 | P27: 220 | Q27: 170 | R27: 210 | S27: 280
A28: North Lanarkshire | B28: 150 | C28: 20 | D28: -10 | E28: 10 | F28: 220 | G28: 10 | H28: -150 | I28: 30 | J28: 40 | K28: 140 | L28: 260 | M28: 130 | N28: 170 | O28: 120 | P28: 220 | Q28: 240 | R28: 280 | S28: 240
A29: Orkney Islands | B29: 320 | C29: 180 | D29: 150 | E29: 160 | F29: 170 | G29: 170 | H29: 150 | I29: 70 | J29: 100 | K29: 90 | L29: 120 | M29: 130 | N29: 240 | O29: 160 | P29: 230 | Q29: 140 | R29: 190 | S29: 210
A30: Perth and Kinross | B30: 1030 | C30: 620 | D30: 450 | E30: 580 | F30: 530 | G30: 260 | H30: 240 | I30: 370 | J30: 220 | K30: 210 | L30: 330 | M30: 330 | N30: 240 | O30: 490 | P30: 290 | Q30: 470 | R30: 240 | S30: 610
A31: Renfrewshire | B31: -140 | C31: -50 | D31: -220 | E31: -10 | F31: 110 | G31: -70 | H31: -30 | I31: -40 | J31: -40 | K31: 10 | L31: 0 | M31: 110 | N31: 190 | O31: 210 | P31: 10 | Q31: 180 | R31: 90 | S31: 100
A32: Scottish Borders | B32: 1060 | C32: 570 | D32: 550 | E32: 690 | F32: 850 | G32: 250 | H32: 250 | I32: 290 | J32: 190 | K32: 490 | L32: 390 | M32: 390 | N32: 330 | O32: 470 | P32: 420 | Q32: 430 | R32: 320 | S32: 630
A33: Shetland Islands | B33: 180 | C33: 190 | D33: 10 | E33: 130 | F33: 130 | G33: 120 | H33: 170 | I33: 10 | J33: 30 | K33: 30 | L33: 60 | M33: 30 | N33: 100 | O33: 10 | P33: 70 | Q33: 70 | R33: 70 | S33: 150
A34: South Ayrshire | B34: 360 | C34: 290 | D34: 200 | E34: 220 | F34: 250 | G34: 150 | H34: 330 | I34: 290 | J34: 160 | K34: 270 | L34: 170 | M34: 190 | N34: 260 | O34: 280 | P34: 260 | Q34: 290 | R34: 270 | S34: 470
A35: South Lanarkshire | B35: 480 | C35: 310 | D35: 300 | E35: 280 | F35: 220 | G35: -60 | H35: -50 | I35: 110 | J35: 70 | K35: 60 | L35: 350 | M35: -30 | N35: 190 | O35: 100 | P35: 210 | Q35: 410 | R35: 330 | S35: 380
A36: Stirling | B36: 320 | C36: 110 | D36: 300 | E36: 270 | F36: 320 | G36: 100 | H36: 30 | I36: 150 | J36: 150 | K36: 200 | L36: 450 | M36: 360 | N36: 360 | O36: 300 | P36: 340 | Q36: 190 | R36: 240 | S36: 30
A37: West Dunbartonshire | B37: -70 | C37: -100 | D37: -30 | E37: 10 | F37: 20 | G37: -40 | H37: -90 | I37: 10 | J37: 30 | K37: 40 | L37: 70 | M37: 20 | N37: 80 | O37: 90 | P37: 0 | Q37: 70 | R37: -50 | S37: -50
A38: West Lothian | B38: -20 | C38: 90 | D38: 280 | E38: 70 | F38: 360 | G38: -160 | H38: -40 | I38: -10 | J38: -10 | K38: 0 | L38: 220 | M38: 60 | N38: 240 | O38: 70 | P38: 140 | Q38: 50 | R38: 190 | S38: 250
A40: NHS Board Areas | B40: 2003-04 | C40: 2004-05 | D40: 2005-06 | E40: 2006-07 | F40: 2007-08 | G40: 2008-09 | H40: 2009-10 | I40: 2010-11 | J40: 2011-12 | K40: 2012-13 | L40: 2013-14 | M40: 2014-15 | N40: 2015-16 | O40: 2016-17 | P40: 2017-18 | Q40: 2018-19 | R40: 2019-20 | S40: 2020-21
A41: Scotland | B41: 15500 | C41: 12500 | D41: 8900 | E41: 8800 | F41: 11500 | G41: 4100 | H41: 3300 | I41: 2900 | J41: 3000 | K41: 7900 | L41: 9600 | M41: 8400 | N41: 8800 | O41: 10500 | P41: 10000 | Q41: 10000 | R41: 9000 | S41: 8900
A42: Ayrshire and Arran | B42: 680 | C42: 520 | D42: 420 | E42: 490 | F42: 880 | G42: 420 | H42: 460 | I42: 460 | J42: 290 | K42: 470 | L42: 450 | M42: 530 | N42: 600 | O42: 740 | P42: 610 | Q42: 690 | R42: 630 | S42: 1020
A43: Borders | B43: 1060 | C43: 570 | D43: 550 | E43: 690 | F43: 850 | G43: 250 | H43: 250 | I43: 290 | J43: 190 | K43: 490 | L43: 390 | M43: 390 | N43: 330 | O43: 470 | P43: 420 | Q43: 430 | R43: 320 | S43: 630
A44: Dumfries and Galloway | B44: 1490 | C44: 1390 | D44: 850 | E44: 740 | F44: 930 | G44: 560 | H44: 380 | I44: 450 | J44: 320 | K44: 520 | L44: 710 | M44: 510 | N44: 560 | O44: 680 | P44: 800 | Q44: 900 | R44: 730 | S44: 1240
A45: Fife | B45: 960 | C45: 930 | D45: 650 | E45: 610 | F45: 510 | G45: 240 | H45: 30 | I45: 330 | J45: 70 | K45: 480 | L45: 630 | M45: 470 | N45: 440 | O45: 660 | P45: 530 | Q45: 500 | R45: 410 | S45: -280
A46: Forth Valley | B46: 980 | C46: 620 | D46: 540 | E46: 500 | F46: 550 | G46: 110 | H46: 80 | I46: 270 | J46: 210 | K46: 370 | L46: 680 | M46: 660 | N46: 620 | O46: 460 | P46: 470 | Q46: 370 | R46: 450 | S46: 240
A47: Grampian | B47: 2340 | C47: 2030 | D47: 1640 | E47: 1520 | F47: 1270 | G47: 810 | H47: 260 | I47: -260 | J47: 750 | K47: 1540 | L47: 1190 | M47: 150 | N47: -1110 | O47: -930 | P47: -690 | Q47: 20 | R47: 270 | S47: 650
A48: Greater Glasgow and Clyde | B48: -610 | C48: -130 | D48: -910 | E48: -70 | F48: 960 | G48: -210 | H48: -880 | I48: -560 | J48: -450 | K48: 150 | L48: 840 | M48: 1470 | N48: 2280 | O48: 2290 | P48: 1750 | Q48: 1710 | R48: 1180 | S48: 330
A49: Highland | B49: 3650 | C49: 2720 | D49: 2010 | E49: 2120 | F49: 1770 | G49: 1040 | H49: 1060 | I49: 1010 | J49: 650 | K49: 1150 | L49: 1140 | M49: 1110 | N49: 1360 | O49: 1540 | P49: 1620 | Q49: 1590 | R49: 1330 | S49: 2680
A50: Lanarkshire | B50: 670 | C50: 310 | D50: 230 | E50: 290 | F50: 420 | G50: 10 | H50: -210 | I50: 150 | J50: 110 | K50: 190 | L50: 610 | M50: 90 | N50: 360 | O50: 210 | P50: 440 | Q50: 650 | R50: 600 | S50: 620
A51: Lothian | B51: 2150 | C51: 1670 | D51: 2170 | E51: 1110 | F51: 2190 | G51: 220 | H51: 1130 | I51: 500 | J51: 380 | K51: 1790 | L51: 2190 | M51: 2290 | N51: 2830 | O51: 3280 | P51: 3050 | Q51: 2140 | R51: 2220 | S51: 500
A52: Orkney | B52: 320 | C52: 180 | D52: 150 | E52: 160 | F52: 170 | G52: 170 | H52: 150 | I52: 70 | J52: 100 | K52: 90 | L52: 120 | M52: 130 | N52: 240 | O52: 160 | P52: 230 | Q52: 140 | R52: 190 | S52: 210
A53: Shetland | B53: 180 | C53: 190 | D53: 10 | E53: 130 | F53: 130 | G53: 120 | H53: 170 | I53: 10 | J53: 30 | K53: 30 | L53: 60 | M53: 30 | N53: 100 | O53: 10 | P53: 70 | Q53: 70 | R53: 70 | S53: 150
A54: Tayside | B54: 1320 | C54: 1260 | D54: 430 | E54: 460 | F54: 750 | G54: 280 | H54: 260 | I54: 140 | J54: 320 | K54: 480 | L54: 560 | M54: 490 | N54: 150 | O54: 750 | P54: 570 | Q54: 760 | R54: 520 | S54: 780
A55: Western Isles | B55: 320 | C55: 250 | D55: 190 | E55: 100 | F55: 130 | G55: 120 | H55: 150 | I55: 50 | J55: 80 | K55: 110 | L55: 20 | M55: 40 | N55: 30 | O55: 150 | P55: 120 | Q55: 100 | R55: 60 | S55: 160

Sheet Rest of UK in-migration
A1: Rest of UK in-migration
A2: This worksheet contains two tables, presented next to each other vertically with one blank row between the tables.
A3: See notes [2], [3], [4], [6] which are explained in the Notes worksheet.
A4: Return to front page
A5: Council Area | B5: 2003-04 | C5: 2004-05 | D5: 2005-06 | E5: 2006-07 | F5: 2007-08 | G5: 2008-09 | H5: 2009-10 | I5: 2010-11 | J5: 2011-12 | K5: 2012-13 | L5: 2013-14 | M5: 2014-15 | N5: 2015-16 | O5: 2016-17 | P5: 2017-18 | Q5: 2018-19 | R5: 2019-20 | S5: 2020-21
A6: Scotland | B6: 61900 | C6: 57300 | D6: 53300 | E6: 51500 | F6: 53300 | G6: 45400 | H6: 45000 | I6: 43700 | J6: 45100 | K6: 47700 | L6: 49200 | M6: 47200 | N6: 46300 | O6: 47600 | P6: 47700 | Q6: 47500 | R6: 41800 | S6: 56200
A7: Aberdeen City | B7: 2220 | C7: 2250 | D7: 2490 | E7: 2530 | F7: 2590 | G7: 2560 | H7: 2600 | I7: 2340 | J7: 2530 | K7: 2990 | L7: 2960 | M7: 2660 | N7: 1970 | O7: 2080 | P7: 1780 | Q7: 2030 | R7: 1910 | S7: 2270
A8: Aberdeenshire | B8: 3510 | C8: 2990 | D8: 2670 | E8: 2480 | F8: 2250 | G8: 1790 | H8: 1640 | I8: 1610 | J8: 1810 | K8: 1910 | L8: 2050 | M8: 1540 | N8: 1240 | O8: 1200 | P8: 1230 | Q8: 1330 | R8: 1210 | S8: 2000
A9: Angus | B9: 1210 | C9: 1110 | D9: 930 | E9: 820 | F9: 830 | G9: 640 | H9: 620 | I9: 520 | J9: 750 | K9: 740 | L9: 760 | M9: 730 | N9: 620 | O9: 610 | P9: 620 | Q9: 640 | R9: 600 | S9: 840
A10: Argyll and Bute | B10: 1980 | C10: 1850 | D10: 1720 | E10: 1570 | F10: 1460 | G10: 1340 | H10: 1330 | I10: 1330 | J10: 1310 | K10: 1380 | L10: 1380 | M10: 1340 | N10: 1370 | O10: 1510 | P10: 1640 | Q10: 1490 | R10: 1260 | S10: 1870
A11: City of Edinburgh | B11: 9900 | C11: 9530 | D11: 9480 | E11: 8320 | F11: 8940 | G11: 8060 | H11: 8650 | I11: 7870 | J11: 8020 | K11: 9080 | L11: 9440 | M11: 9500 | N11: 9630 | O11: 10060 | P11: 10200 | Q11: 9840 | R11: 9030 | S11: 10980
A12: Clackmannanshire | B12: 550 | C12: 550 | D12: 500 | E12: 450 | F12: 430 | G12: 310 | H12: 310 | I12: 290 | J12: 340 | K12: 350 | L12: 330 | M12: 300 | N12: 290 | O12: 270 | P12: 320 | Q12: 240 | R12: 270 | S12: 310
A13: Dumfries and Galloway | B13: 3250 | C13: 3140 | D13: 2560 | E13: 2450 | F13: 2620 | G13: 2090 | H13: 1950 | I13: 1990 | J13: 1870 | K13: 2050 | L13: 2110 | M13: 1910 | N13: 1870 | O13: 2130 | P13: 2120 | Q13: 2240 | R13: 1890 | S13: 2800
A14: Dundee City | B14: 1500 | C14: 1550 | D14: 1350 | E14: 1230 | F14: 1450 | G14: 1340 | H14: 1430 | I14: 1370 | J14: 1470 | K14: 1530 | L14: 1380 | M14: 1380 | N14: 1260 | O14: 1380 | P14: 1370 | Q14: 1270 | R14: 1160 | S14: 1340
A15: East Ayrshire | B15: 960 | C15: 860 | D15: 820 | E15: 790 | F15: 880 | G15: 720 | H15: 660 | I15: 690 | J15: 700 | K15: 660 | L15: 670 | M15: 660 | N15: 600 | O15: 660 | P15: 610 | Q15: 690 | R15: 570 | S15: 780
A16: East Dunbartonshire | B16: 500 | C16: 490 | D16: 470 | E16: 400 | F16: 460 | G16: 460 | H16: 390 | I16: 430 | J16: 460 | K16: 450 | L16: 460 | M16: 480 | N16: 480 | O16: 470 | P16: 500 | Q16: 460 | R16: 390 | S16: 550
A17: East Lothian | B17: 770 | C17: 660 | D17: 670 | E17: 830 | F17: 1020 | G17: 690 | H17: 730 | I17: 690 | J17: 870 | K17: 700 | L17: 740 | M17: 690 | N17: 680 | O17: 790 | P17: 700 | Q17: 740 | R17: 710 | S17: 1090
A18: East Renfrewshire | B18: 390 | C18: 460 | D18: 400 | E18: 290 | F18: 320 | G18: 350 | H18: 370 | I18: 430 | J18: 390 | K18: 420 | L18: 410 | M18: 400 | N18: 420 | O18: 440 | P18: 390 | Q18: 370 | R18: 370 | S18: 490
A19: Falkirk | B19: 1070 | C19: 990 | D19: 820 | E19: 750 | F19: 750 | G19: 610 | H19: 610 | I19: 710 | J19: 680 | K19: 670 | L19: 790 | M19: 730 | N19: 700 | O19: 730 | P19: 650 | Q19: 640 | R19: 530 | S19: 700
A20: Fife | B20: 3970 | C20: 3870 | D20: 3610 | E20: 3550 | F20: 3480 | G20: 3120 | H20: 2910 | I20: 3020 | J20: 2850 | K20: 3220 | L20: 3230 | M20: 2980 | N20: 2870 | O20: 3040 | P20: 3030 | Q20: 2950 | R20: 2640 | S20: 3310
A21: Glasgow City | B21: 6300 | C21: 6220 | D21: 5700 | E21: 6010 | F21: 6760 | G21: 6000 | H21: 5600 | I21: 5400 | J21: 5660 | K21: 5920 | L21: 6440 | M21: 6600 | N21: 6730 | O21: 6820 | P21: 7190 | Q21: 7080 | R21: 6200 | S21: 7770
A22: Highland | B22: 4760 | C22: 4200 | D22: 3610 | E22: 3700 | F22: 3530 | G22: 2620 | H22: 2640 | I22: 2520 | J22: 2400 | K22: 2490 | L22: 2470 | M22: 2470 | N22: 2540 | O22: 2550 | P22: 2630 | Q22: 2630 | R22: 2200 | S22: 3580
A23: Inverclyde | B23: 500 | C23: 460 | D23: 420 | E23: 360 | F23: 430 | G23: 300 | H23: 300 | I23: 290 | J23: 360 | K23: 350 | L23: 370 | M23: 350 | N23: 310 | O23: 300 | P23: 350 | Q23: 300 | R23: 270 | S23: 380
A24: Midlothian | B24: 420 | C24: 410 | D24: 410 | E24: 410 | F24: 450 | G24: 410 | H24: 400 | I24: 380 | J24: 400 | K24: 440 | L24: 510 | M24: 400 | N24: 410 | O24: 430 | P24: 410 | Q24: 400 | R24: 420 | S24: 620
A25: Moray | B25: 1960 | C25: 1720 | D25: 1620 | E25: 1390 | F25: 1340 | G25: 1100 | H25: 1080 | I25: 920 | J25: 1470 | K25: 1480 | L25: 1300 | M25: 1260 | N25: 1180 | O25: 1140 | P25: 1120 | Q25: 1170 | R25: 1010 | S25: 1480
A26: Na h-Eileanan Siar | B26: 540 | C26: 460 | D26: 390 | E26: 350 | F26: 330 | G26: 290 | H26: 300 | I26: 270 | J26: 270 | K26: 330 | L26: 230 | M26: 220 | N26: 230 | O26: 340 | P26: 270 | Q26: 250 | R26: 190 | S26: 340
A27: North Ayrshire | B27: 1100 | C27: 1010 | D27: 1030 | E27: 970 | F27: 1030 | G27: 830 | H27: 810 | I27: 850 | J27: 780 | K27: 810 | L27: 880 | M27: 750 | N27: 810 | O27: 830 | P27: 760 | Q27: 750 | R27: 660 | S27: 850
A28: North Lanarkshire | B28: 1640 | C28: 1450 | D28: 1330 | E28: 1270 | F28: 1350 | G28: 1190 | H28: 1010 | I28: 1170 | J28: 1150 | K28: 1120 | L28: 1250 | M28: 1180 | N28: 1170 | O28: 1090 | P28: 1170 | Q28: 1110 | R28: 930 | S28: 1180
A29: Orkney Islands | B29: 470 | C29: 370 | D29: 310 | E29: 320 | F29: 330 | G29: 310 | H29: 310 | I29: 260 | J29: 280 | K29: 280 | L29: 320 | M29: 270 | N29: 390 | O29: 330 | P29: 380 | Q29: 320 | R29: 310 | S29: 420
A30: Perth and Kinross | B30: 2220 | C30: 1940 | D30: 1630 | E30: 1730 | F30: 1600 | G30: 1370 | H30: 1380 | I30: 1380 | J30: 1330 | K30: 1230 | L30: 1380 | M30: 1360 | N30: 1150 | O30: 1370 | P30: 1210 | Q30: 1380 | R30: 1030 | S30: 1790
A31: Renfrewshire | B31: 920 | C31: 900 | D31: 750 | E31: 850 | F31: 840 | G31: 720 | H31: 760 | I31: 720 | J31: 700 | K31: 750 | L31: 700 | M31: 790 | N31: 850 | O31: 820 | P31: 710 | Q31: 780 | R31: 680 | S31: 940
A32: Scottish Borders | B32: 2440 | C32: 1830 | D32: 1830 | E32: 1920 | F32: 2120 | G32: 1510 | H32: 1510 | I32: 1510 | J32: 1500 | K32: 1570 | L32: 1600 | M32: 1580 | N32: 1580 | O32: 1600 | P32: 1690 | Q32: 1610 | R32: 1310 | S32: 1960
A33: Shetland Islands | B33: 390 | C33: 370 | D33: 270 | E33: 340 | F33: 330 | G33: 280 | H33: 360 | I33: 230 | J33: 250 | K33: 240 | L33: 270 | M33: 220 | N33: 270 | O33: 190 | P33: 220 | Q33: 220 | R33: 220 | S33: 330
A34: South Ayrshire | B34: 1180 | C34: 1130 | D34: 980 | E34: 980 | F34: 1000 | G34: 900 | H34: 960 | I34: 870 | J34: 840 | K34: 880 | L34: 790 | M34: 810 | N34: 840 | O34: 820 | P34: 760 | Q34: 850 | R34: 690 | S34: 1030
A35: South Lanarkshire | B35: 2230 | C35: 1880 | D35: 1760 | E35: 1740 | F35: 1550 | G35: 1350 | H35: 1350 | I35: 1400 | J35: 1420 | K35: 1350 | L35: 1510 | M35: 1260 | N35: 1450 | O35: 1380 | P35: 1380 | Q35: 1500 | R35: 1260 | S35: 1670
A36: Stirling | B36: 1370 | C36: 1060 | D36: 1170 | E36: 1160 | F36: 1180 | G36: 990 | H36: 870 | I36: 960 | J36: 1000 | K36: 1010 | L36: 1200 | M36: 1110 | N36: 1120 | O36: 1050 | P36: 1110 | Q36: 1030 | R36: 920 | S36: 1130
A37: West Dunbartonshire | B37: 470 | C37: 430 | D37: 420 | E37: 450 | F37: 400 | G37: 350 | H37: 350 | I37: 390 | J37: 380 | K37: 420 | L37: 380 | M37: 350 | N37: 370 | O37: 360 | P37: 320 | Q37: 370 | R37: 240 | S37: 350
A38: West Lothian | B38: 1190 | C38: 1200 | D38: 1240 | E38: 1150 | F38: 1300 | G38: 840 | H38: 830 | I38: 870 | J38: 900 | K38: 880 | L38: 970 | M38: 860 | N38: 910 | O38: 810 | P38: 840 | Q38: 780 | R38: 760 | S38: 1050
A40: NHS Board Areas | B40: 2003-04 | C40: 2004-05 | D40: 2005-06 | E40: 2006-07 | F40: 2007-08 | G40: 2008-09 | H40: 2009-10 | I40: 2010-11 | J40: 2011-12 | K40: 2012-13 | L40: 2013-14 | M40: 2014-15 | N40: 2015-16 | O40: 2016-17 | P40: 2017-18 | Q40: 2018-19 | R40: 2019-20 | S40: 2020-21
A41: Scotland | B41: 61900 | C41: 57300 | D41: 53300 | E41: 51500 | F41: 53300 | G41: 45400 | H41: 45000 | I41: 43700 | J41: 45100 | K41: 47700 | L41: 49200 | M41: 47200 | N41: 46300 | O41: 47600 | P41: 47700 | Q41: 47500 | R41: 41800 | S41: 56200
A42: Ayrshire and Arran | B42: 3240 | C42: 2990 | D42: 2830 | E42: 2740 | F42: 2910 | G42: 2450 | H42: 2430 | I42: 2400 | J42: 2320 | K42: 2350 | L42: 2330 | M42: 2220 | N42: 2250 | O42: 2300 | P42: 2130 | Q42: 2290 | R42: 1920 | S42: 2660
A43: Borders | B43: 2440 | C43: 1830 | D43: 1830 | E43: 1920 | F43: 2120 | G43: 1510 | H43: 1510 | I43: 1510 | J43: 1500 | K43: 1570 | L43: 1600 | M43: 1580 | N43: 1580 | O43: 1600 | P43: 1690 | Q43: 1610 | R43: 1310 | S43: 1960
A44: Dumfries and Galloway | B44: 3250 | C44: 3140 | D44: 2560 | E44: 2450 | F44: 2620 | G44: 2090 | H44: 1950 | I44: 1990 | J44: 1870 | K44: 2050 | L44: 2110 | M44: 1910 | N44: 1870 | O44: 2130 | P44: 2120 | Q44: 2240 | R44: 1890 | S44: 2800
A45: Fife | B45: 3970 | C45: 3870 | D45: 3610 | E45: 3550 | F45: 3470 | G45: 3120 | H45: 2910 | I45: 3020 | J45: 2850 | K45: 3220 | L45: 3230 | M45: 2980 | N45: 2870 | O45: 3040 | P45: 3030 | Q45: 2950 | R45: 2640 | S45: 3310
A46: Forth Valley | B46: 2990 | C46: 2600 | D46: 2490 | E46: 2350 | F46: 2370 | G46: 1910 | H46: 1790 | I46: 1960 | J46: 2010 | K46: 2030 | L46: 2320 | M46: 2150 | N46: 2110 | O46: 2040 | P46: 2080 | Q46: 1910 | R46: 1720 | S46: 2140
A47: Grampian | B47: 7680 | C47: 6960 | D47: 6790 | E47: 6400 | F47: 6170 | G47: 5450 | H47: 5320 | I47: 4870 | J47: 5800 | K47: 6380 | L47: 6300 | M47: 5460 | N47: 4400 | O47: 4420 | P47: 4130 | Q47: 4530 | R47: 4130 | S47: 5750
A48: Greater Glasgow and Clyde | B48: 9400 | C48: 9270 | D48: 8470 | E48: 8680 | F48: 9490 | G48: 8430 | H48: 8070 | I48: 7970 | J48: 7940 | K48: 8300 | L48: 8750 | M48: 8970 | N48: 9150 | O48: 9220 | P48: 9450 | Q48: 9360 | R48: 8140 | S48: 10480
A49: Highland | B49: 6740 | C49: 6050 | D49: 5330 | E49: 5260 | F49: 4990 | G49: 3960 | H49: 3970 | I49: 3850 | J49: 3710 | K49: 3870 | L49: 3850 | M49: 3820 | N49: 3910 | O49: 4060 | P49: 4270 | Q49: 4120 | R49: 3460 | S49: 5450
A50: Lanarkshire | B50: 3550 | C50: 3020 | D50: 2770 | E50: 2690 | F50: 2630 | G50: 2280 | H50: 2060 | I50: 2260 | J50: 2580 | K50: 2470 | L50: 2760 | M50: 2440 | N50: 2620 | O50: 2470 | P50: 2550 | Q50: 2610 | R50: 2190 | S50: 2850
A51: Lothian | B51: 12280 | C51: 11800 | D51: 11800 | E51: 10710 | F51: 11700 | G51: 9990 | H51: 10600 | I51: 9820 | J51: 10180 | K51: 11100 | L51: 11660 | M51: 11450 | N51: 11630 | O51: 12080 | P51: 12150 | Q51: 11760 | R51: 10920 | S51: 13740
A52: Orkney | B52: 470 | C52: 370 | D52: 310 | E52: 320 | F52: 330 | G52: 310 | H52: 310 | I52: 260 | J52: 280 | K52: 280 | L52: 320 | M52: 270 | N52: 390 | O52: 330 | P52: 380 | Q52: 320 | R52: 310 | S52: 420
A53: Shetland | B53: 390 | C53: 370 | D53: 270 | E53: 340 | F53: 330 | G53: 280 | H53: 360 | I53: 230 | J53: 250 | K53: 240 | L53: 270 | M53: 220 | N53: 270 | O53: 190 | P53: 220 | Q53: 220 | R53: 220 | S53: 330
A54: Tayside | B54: 4930 | C54: 4610 | D54: 3910 | E54: 3790 | F54: 3880 | G54: 3350 | H54: 3430 | I54: 3280 | J54: 3550 | K54: 3490 | L54: 3520 | M54: 3470 | N54: 3040 | O54: 3360 | P54: 3200 | Q54: 3290 | R54: 2790 | S54: 3970
A55: Western Isles | B55: 540 | C55: 460 | D55: 390 | E55: 350 | F55: 330 | G55: 290 | H55: 300 | I55: 270 | J55: 270 | K55: 330 | L55: 230 | M55: 220 | N55: 230 | O55: 340 | P55: 270 | Q55: 250 | R55: 190 | S55: 340

Sheet Rest of UK out-migration
A1: Rest of UK out-migration
A2: This worksheet contains two tables, presented next to each other vertically with one blank row between the tables.
A3: See notes [2], [3], [4], [6] which are explained in the Notes worksheet.
A4: Return to front page
A5: Council Area | B5: 2003-04 | C5: 2004-05 | D5: 2005-06 | E5: 2006-07 | F5: 2007-08 | G5: 2008-09 | H5: 2009-10 | I5: 2010-11 | J5: 2011-12 | K5: 2012-13 | L5: 2013-14 | M5: 2014-15 | N5: 2015-16 | O5: 2016-17 | P5: 2017-18 | Q5: 2018-19 | R5: 2019-20 | S5: 2020-21
A6: Scotland | B6: 46400 | C6: 44800 | D6: 44400 | E6: 42700 | F6: 41800 | G6: 41300 | H6: 41700 | I6: 40800 | J6: 42100 | K6: 39800 | L6: 39700 | M6: 38800 | N6: 37500 | O6: 37100 | P6: 37700 | Q6: 37400 | R6: 32800 | S6: 47300
A7: Aberdeen City | B7: 2600 | C7: 2210 | D7: 2350 | E7: 2210 | F7: 2310 | G7: 2280 | H7: 2280 | I7: 2340 | J7: 2430 | K7: 2430 | L7: 2370 | M7: 2550 | N7: 2750 | O7: 2760 | P7: 2430 | Q7: 2340 | R7: 1910 | S7: 2910
A8: Aberdeenshire | B8: 1640 | C8: 1700 | D8: 1600 | E8: 1730 | F8: 1650 | G8: 1570 | H8: 1740 | I8: 1740 | J8: 1700 | K8: 1540 | L8: 1770 | M8: 1760 | N8: 1850 | O8: 1610 | P8: 1480 | Q8: 1380 | R8: 1250 | S8: 1340
A9: Angus | B9: 760 | C9: 670 | D9: 800 | E9: 670 | F9: 670 | G9: 620 | H9: 600 | I9: 610 | J9: 700 | K9: 700 | L9: 570 | M9: 630 | N9: 690 | O9: 600 | P9: 590 | Q9: 550 | R9: 440 | S9: 560
A10: Argyll and Bute | B10: 1150 | C10: 1280 | D10: 1170 | E10: 1100 | F10: 1060 | G10: 1030 | H10: 980 | I10: 960 | J10: 1040 | K10: 1000 | L10: 980 | M10: 1050 | N10: 890 | O10: 910 | P10: 1030 | Q10: 930 | R10: 790 | S10: 970
A11: City of Edinburgh | B11: 7850 | C11: 7880 | D11: 7560 | E11: 7560 | F11: 7590 | G11: 7700 | H11: 7520 | I11: 7510 | J11: 7860 | K11: 7420 | L11: 7710 | M11: 7360 | N11: 7280 | O11: 7100 | P11: 7390 | Q11: 7810 | R11: 7300 | S11: 11300
A12: Clackmannanshire | B12: 290 | C12: 280 | D12: 360 | E12: 260 | F12: 320 | G12: 310 | H12: 280 | I12: 300 | J12: 300 | K12: 290 | L12: 330 | M12: 220 | N12: 230 | O12: 270 | P12: 260 | Q12: 180 | R12: 160 | S12: 260
A13: Dumfries and Galloway | B13: 1760 | C13: 1750 | D13: 1710 | E13: 1720 | F13: 1690 | G13: 1530 | H13: 1570 | I13: 1540 | J13: 1550 | K13: 1520 | L13: 1400 | M13: 1410 | N13: 1310 | O13: 1440 | P13: 1330 | Q13: 1340 | R13: 1160 | S13: 1560
A14: Dundee City | B14: 1660 | C14: 1350 | D14: 1500 | E14: 1500 | F14: 1400 | G14: 1350 | H14: 1430 | I14: 1510 | J14: 1420 | K14: 1290 | L14: 1340 | M14: 1330 | N14: 1280 | O14: 1130 | P14: 1120 | Q14: 1080 | R14: 1040 | S14: 1460
A15: East Ayrshire | B15: 750 | C15: 710 | D15: 710 | E15: 640 | F15: 600 | G15: 590 | H15: 610 | I15: 610 | J15: 580 | K15: 590 | L15: 630 | M15: 490 | N15: 480 | O15: 490 | P15: 480 | Q15: 450 | R15: 410 | S15: 520
A16: East Dunbartonshire | B16: 610 | C16: 670 | D16: 600 | E16: 530 | F16: 420 | G16: 490 | H16: 560 | I16: 490 | J16: 480 | K16: 520 | L16: 500 | M16: 420 | N16: 400 | O16: 420 | P16: 480 | Q16: 470 | R16: 340 | S16: 610
A17: East Lothian | B17: 650 | C17: 650 | D17: 660 | E17: 560 | F17: 630 | G17: 620 | H17: 630 | I17: 630 | J17: 670 | K17: 630 | L17: 620 | M17: 570 | N17: 510 | O17: 630 | P17: 590 | Q17: 650 | R17: 490 | S17: 680
A18: East Renfrewshire | B18: 540 | C18: 530 | D18: 560 | E18: 490 | F18: 450 | G18: 380 | H18: 420 | I18: 410 | J18: 510 | K18: 470 | L18: 400 | M18: 400 | N18: 370 | O18: 390 | P18: 420 | Q18: 370 | R18: 340 | S18: 590
A19: Falkirk | B19: 680 | C19: 750 | D19: 720 | E19: 710 | F19: 640 | G19: 600 | H19: 590 | I19: 570 | J19: 660 | K19: 560 | L19: 560 | M19: 520 | N19: 500 | O19: 560 | P19: 570 | Q19: 520 | R19: 430 | S19: 550
A20: Fife | B20: 3010 | C20: 2940 | D20: 2960 | E20: 2930 | F20: 2970 | G20: 2880 | H20: 2880 | I20: 2700 | J20: 2790 | K20: 2740 | L20: 2600 | M20: 2510 | N20: 2430 | O20: 2390 | P20: 2500 | Q20: 2460 | R20: 2240 | S20: 3580
A21: Glasgow City | B21: 6270 | C21: 5970 | D21: 6100 | E21: 5690 | F21: 5910 | G21: 5940 | H21: 6070 | I21: 5860 | J21: 5950 | K21: 5750 | L21: 5700 | M21: 5420 | N21: 4890 | O21: 5000 | P21: 5510 | Q21: 5670 | R21: 5200 | S21: 7460
A22: Highland | B22: 1940 | C22: 2050 | D22: 2150 | E22: 2050 | F22: 2160 | G22: 1890 | H22: 1930 | I22: 1880 | J22: 2020 | K22: 1720 | L22: 1730 | M22: 1660 | N22: 1650 | O22: 1620 | P22: 1630 | Q22: 1590 | R22: 1340 | S22: 1800
A23: Inverclyde | B23: 620 | C23: 460 | D23: 460 | E23: 430 | F23: 370 | G23: 340 | H23: 390 | I23: 310 | J23: 370 | K23: 300 | L23: 290 | M23: 250 | N23: 260 | O23: 250 | P23: 270 | Q23: 240 | R23: 200 | S23: 250
A24: Midlothian | B24: 430 | C24: 490 | D24: 460 | E24: 390 | F24: 360 | G24: 450 | H24: 460 | I24: 310 | J24: 370 | K24: 380 | L24: 400 | M24: 430 | N24: 340 | O24: 330 | P24: 410 | Q24: 440 | R24: 330 | S24: 460
A25: Moray | B25: 1090 | C25: 1030 | D25: 1200 | E25: 930 | F25: 930 | G25: 790 | H25: 1040 | I25: 1050 | J25: 930 | K25: 870 | L25: 970 | M25: 1000 | N25: 910 | O25: 970 | P25: 910 | Q25: 790 | R25: 690 | S25: 850
A26: Na h-Eileanan Siar | B26: 220 | C26: 220 | D26: 200 | E26: 250 | F26: 200 | G26: 180 | H26: 160 | I26: 220 | J26: 190 | K26: 220 | L26: 210 | M26: 180 | N26: 200 | O26: 190 | P26: 150 | Q26: 140 | R26: 130 | S26: 170
A27: North Ayrshire | B27: 1000 | C27: 930 | D27: 920 | E27: 850 | F27: 690 | G27: 690 | H27: 730 | I27: 760 | J27: 770 | K27: 690 | L27: 640 | M27: 580 | N27: 590 | O27: 530 | P27: 550 | Q27: 590 | R27: 460 | S27: 570
A28: North Lanarkshire | B28: 1490 | C28: 1430 | D28: 1340 | E28: 1260 | F28: 1130 | G28: 1170 | H28: 1160 | I28: 1140 | J28: 1120 | K28: 980 | L28: 990 | M28: 1050 | N28: 1000 | O28: 970 | P28: 940 | Q28: 870 | R28: 660 | S28: 940
A29: Orkney Islands | B29: 150 | C29: 200 | D29: 160 | E29: 170 | F29: 160 | G29: 140 | H29: 170 | I29: 190 | J29: 190 | K29: 200 | L29: 190 | M29: 140 | N29: 150 | O29: 170 | P29: 140 | Q29: 180 | R29: 130 | S29: 200
A30: Perth and Kinross | B30: 1190 | C30: 1330 | D30: 1180 | E30: 1160 | F30: 1070 | G30: 1110 | H30: 1140 | I30: 1020 | J30: 1110 | K30: 1020 | L30: 1050 | M30: 1020 | N30: 910 | O30: 880 | P30: 920 | Q30: 910 | R30: 790 | S30: 1180
A31: Renfrewshire | B31: 1060 | C31: 950 | D31: 960 | E31: 850 | F31: 730 | G31: 790 | H31: 790 | I31: 760 | J31: 740 | K31: 740 | L31: 700 | M31: 680 | N31: 660 | O31: 610 | P31: 700 | Q31: 600 | R31: 580 | S31: 840
A32: Scottish Borders | B32: 1380 | C32: 1260 | D32: 1280 | E32: 1230 | F32: 1270 | G32: 1260 | H32: 1270 | I32: 1220 | J32: 1310 | K32: 1080 | L32: 1210 | M32: 1190 | N32: 1250 | O32: 1130 | P32: 1270 | Q32: 1180 | R32: 990 | S32: 1340
A33: Shetland Islands | B33: 210 | C33: 180 | D33: 250 | E33: 210 | F33: 200 | G33: 160 | H33: 190 | I33: 210 | J33: 220 | K33: 210 | L33: 200 | M33: 190 | N33: 170 | O33: 190 | P33: 150 | Q33: 150 | R33: 150 | S33: 190
A34: South Ayrshire | B34: 820 | C34: 830 | D34: 780 | E34: 770 | F34: 740 | G34: 750 | H34: 630 | I34: 580 | J34: 680 | K34: 610 | L34: 620 | M34: 630 | N34: 580 | O34: 540 | P34: 490 | Q34: 570 | R34: 420 | S34: 560
A35: South Lanarkshire | B35: 1760 | C35: 1580 | D35: 1470 | E35: 1470 | F35: 1330 | G35: 1410 | H35: 1400 | I35: 1290 | J35: 1350 | K35: 1290 | L35: 1160 | M35: 1290 | N35: 1260 | O35: 1290 | P35: 1170 | Q35: 1100 | R35: 930 | S35: 1290
A36: Stirling | B36: 1050 | C36: 950 | D36: 860 | E36: 890 | F36: 860 | G36: 890 | H36: 840 | I36: 810 | J36: 860 | K36: 810 | L36: 750 | M36: 750 | N36: 760 | O36: 750 | P36: 770 | Q36: 850 | R36: 680 | S36: 1100
A37: West Dunbartonshire | B37: 540 | C37: 530 | D37: 450 | E37: 440 | F37: 390 | G37: 390 | H37: 440 | I37: 390 | J37: 350 | K37: 370 | L37: 320 | M37: 330 | N37: 290 | O37: 270 | P37: 320 | Q37: 300 | R37: 290 | S37: 400
A38: West Lothian | B38: 1210 | C38: 1110 | D38: 960 | E38: 1090 | F38: 940 | G38: 1000 | H38: 870 | I38: 880 | J38: 910 | K38: 880 | L38: 750 | M38: 790 | N38: 670 | O38: 740 | P38: 710 | Q38: 730 | R38: 580 | S38: 800
A40: NHS Board Areas | B40: 2003-04 | C40: 2004-05 | D40: 2005-06 | E40: 2006-07 | F40: 2007-08 | G40: 2008-09 | H40: 2009-10 | I40: 2010-11 | J40: 2011-12 | K40: 2012-13 | L40: 2013-14 | M40: 2014-15 | N40: 2015-16 | O40: 2016-17 | P40: 2017-18 | Q40: 2018-19 | R40: 2019-20 | S40: 2020-21
A41: Scotland | B41: 46400 | C41: 44800 | D41: 44400 | E41: 42700 | F41: 41800 | G41: 41300 | H41: 41700 | I41: 40800 | J41: 42100 | K41: 39800 | L41: 39700 | M41: 38800 | N41: 37500 | O41: 37100 | P41: 37700 | Q41: 37400 | R41: 32800 | S41: 47300
A42: Ayrshire and Arran | B42: 2560 | C42: 2470 | D42: 2410 | E42: 2250 | F42: 2030 | G42: 2030 | H42: 1970 | I42: 1950 | J42: 2030 | K42: 1880 | L42: 1880 | M42: 1690 | N42: 1650 | O42: 1560 | P42: 1520 | Q42: 1610 | R42: 1290 | S42: 1650
A43: Borders | B43: 1380 | C43: 1260 | D43: 1280 | E43: 1230 | F43: 1270 | G43: 1260 | H43: 1270 | I43: 1220 | J43: 1310 | K43: 1080 | L43: 1210 | M43: 1190 | N43: 1250 | O43: 1130 | P43: 1270 | Q43: 1180 | R43: 990 | S43: 1340
A44: Dumfries and Galloway | B44: 1760 | C44: 1750 | D44: 1710 | E44: 1720 | F44: 1690 | G44: 1530 | H44: 1570 | I44: 1540 | J44: 1550 | K44: 1520 | L44: 1400 | M44: 1410 | N44: 1310 | O44: 1440 | P44: 1330 | Q44: 1340 | R44: 1160 | S44: 1560
A45: Fife | B45: 3010 | C45: 2940 | D45: 2960 | E45: 2930 | F45: 2970 | G45: 2880 | H45: 2880 | I45: 2700 | J45: 2790 | K45: 2740 | L45: 2600 | M45: 2510 | N45: 2430 | O45: 2390 | P45: 2500 | Q45: 2460 | R45: 2240 | S45: 3580
A46: Forth Valley | B46: 2010 | C46: 1970 | D46: 1940 | E46: 1860 | F46: 1820 | G46: 1800 | H46: 1710 | I46: 1690 | J46: 1810 | K46: 1660 | L46: 1640 | M46: 1490 | N46: 1490 | O46: 1580 | P46: 1610 | Q46: 1540 | R46: 1270 | S46: 1910
A47: Grampian | B47: 5330 | C47: 4930 | D47: 5150 | E47: 4880 | F47: 4900 | G47: 4640 | H47: 5060 | I47: 5130 | J47: 5060 | K47: 4840 | L47: 5120 | M47: 5310 | N47: 5500 | O47: 5350 | P47: 4810 | Q47: 4510 | R47: 3850 | S47: 5100
A48: Greater Glasgow and Clyde | B48: 10010 | C48: 9400 | D48: 9380 | E48: 8750 | F48: 8520 | G48: 8640 | H48: 8950 | I48: 8520 | J48: 8390 | K48: 8150 | L48: 7910 | M48: 7500 | N48: 6870 | O48: 6940 | P48: 7690 | Q48: 7660 | R48: 6950 | S48: 10150
A49: Highland | B49: 3090 | C49: 3330 | D49: 3320 | E49: 3150 | F49: 3220 | G49: 2920 | H49: 2910 | I49: 2840 | J49: 3060 | K49: 2720 | L49: 2710 | M49: 2710 | N49: 2540 | O49: 2530 | P49: 2660 | Q49: 2530 | R49: 2140 | S49: 2770
A50: Lanarkshire | B50: 2880 | C50: 2700 | D50: 2550 | E50: 2400 | F50: 2200 | G50: 2270 | H50: 2270 | I50: 2110 | J50: 2470 | K50: 2280 | L50: 2150 | M50: 2340 | N50: 2260 | O50: 2250 | P50: 2120 | Q50: 1960 | R50: 1590 | S50: 2230
A51: Lothian | B51: 10130 | C51: 10130 | D51: 9630 | E51: 9600 | F51: 9520 | G51: 9770 | H51: 9470 | I51: 9320 | J51: 9810 | K51: 9310 | L51: 9470 | M51: 9160 | N51: 8800 | O51: 8800 | P51: 9100 | Q51: 9620 | R51: 8700 | S51: 13240
A52: Orkney | B52: 150 | C52: 200 | D52: 160 | E52: 170 | F52: 160 | G52: 140 | H52: 170 | I52: 190 | J52: 190 | K52: 200 | L52: 190 | M52: 140 | N52: 150 | O52: 170 | P52: 140 | Q52: 180 | R52: 130 | S52: 200
A53: Shetland | B53: 210 | C53: 180 | D53: 250 | E53: 210 | F53: 200 | G53: 160 | H53: 190 | I53: 210 | J53: 220 | K53: 210 | L53: 200 | M53: 190 | N53: 170 | O53: 190 | P53: 150 | Q53: 150 | R53: 150 | S53: 190
A54: Tayside | B54: 3610 | C54: 3350 | D54: 3480 | E54: 3320 | F54: 3130 | G54: 3070 | H54: 3170 | I54: 3140 | J54: 3220 | K54: 3010 | L54: 2960 | M54: 2980 | N54: 2890 | O54: 2610 | P54: 2630 | Q54: 2530 | R54: 2270 | S54: 3190
A55: Western Isles | B55: 220 | C55: 220 | D55: 200 | E55: 250 | F55: 200 | G55: 180 | H55: 160 | I55: 220 | J55: 190 | K55: 220 | L55: 210 | M55: 180 | N55: 200 | O55: 190 | P55: 150 | Q55: 140 | R55: 130 | S55: 170

Sheet International net migration
A1: International net migration
A2: This worksheet contains two tables, presented next to each other vertically with one blank row between the tables.
A3: See notes [1], [4], [5], [6] which are explained in the Notes worksheet.
A4: Return to front page
A5: Council Area | B5: 2003-04 | C5: 2004-05 | D5: 2005-06 | E5: 2006-07 | F5: 2007-08 | G5: 2008-09 | H5: 2009-10 | I5: 2010-11 | J5: 2011-12 | K5: 2012-13 | L5: 2013-14 | M5: 2014-15 | N5: 2015-16 | O5: 2016-17 | P5: 2017-18 | Q5: 2018-19 | R5: 2019-20 | S5: 2020-21
A6: Scotland | B6: 3100 | C6: 12800 | D6: 9900 | E6: 24200 | F6: 14900 | G6: 20300 | H6: 22800 | I6: 27300 | J6: 9700 | K6: 2100 | L6: 8000 | M6: 19600 | N6: 22900 | O6: 13400 | P6: 10900 | Q6: 20200 | R6: 7900 | S6: 18900
A7: Aberdeen City | B7: 870 | C7: 2150 | D7: 2140 | E7: 3750 | F7: 3030 | G7: 3670 | H7: 3740 | I7: 4130 | J7: 2100 | K7: 1300 | L7: 1970 | M7: 3190 | N7: 2470 | O7: 1490 | P7: 1180 | Q7: 2020 | R7: 1310 | S7: 1970
A8: Aberdeenshire | B8: 130 | C8: 620 | D8: 660 | E8: 840 | F8: 410 | G8: 610 | H8: 720 | I8: 720 | J8: 210 | K8: 120 | L8: 120 | M8: 260 | N8: 320 | O8: 210 | P8: -40 | Q8: 210 | R8: -90 | S8: 270
A9: Angus | B9: -110 | C9: 130 | D9: 140 | E9: 210 | F9: 110 | G9: 150 | H9: 220 | I9: 240 | J9: 10 | K9: -90 | L9: 30 | M9: -10 | N9: 70 | O9: 50 | P9: -50 | Q9: 70 | R9: -90 | S9: 170
A10: Argyll and Bute | B10: -100 | C10: -100 | D10: -110 | E10: 140 | F10: -230 | G10: -50 | H10: 90 | I10: 60 | J10: -170 | K10: -210 | L10: -230 | M10: -90 | N10: 40 | O10: -40 | P10: -130 | Q10: -80 | R10: -270 | S10: -40
A11: City of Edinburgh | B11: 3040 | C11: 5220 | D11: 4110 | E11: 6120 | F11: 3990 | G11: 6270 | H11: 7300 | I11: 8080 | J11: 4060 | K11: 1950 | L11: 3270 | M11: 6050 | N11: 6790 | O11: 4510 | P11: 4310 | Q11: 6710 | R11: 4250 | S11: 6190
A12: Clackmannanshire | B12: -50 | C12: 10 | D12: 10 | E12: 160 | F12: -10 | G12: 30 | H12: 0 | I12: 10 | J12: -50 | K12: -30 | L12: -30 | M12: 0 | N12: 60 | O12: 40 | P12: -20 | Q12: 50 | R12: -10 | S12: 40
A13: Dumfries and Galloway | B13: -260 | C13: -80 | D13: -120 | E13: 30 | F13: -180 | G13: -170 | H13: -160 | I13: 20 | J13: -280 | K13: -340 | L13: -270 | M13: -70 | N13: 10 | O13: -120 | P13: -180 | Q13: -110 | R13: -330 | S13: -70
A14: Dundee City | B14: 110 | C14: 720 | D14: 690 | E14: 1060 | F14: 950 | G14: 1030 | H14: 1260 | I14: 1580 | J14: 570 | K14: 320 | L14: 260 | M14: 670 | N14: 800 | O14: 400 | P14: 570 | Q14: 930 | R14: 390 | S14: 750
A15: East Ayrshire | B15: -130 | C15: -90 | D15: -190 | E15: -70 | F15: -90 | G15: -140 | H15: -100 | I15: -70 | J15: -130 | K15: -160 | L15: -170 | M15: -90 | N15: -40 | O15: -90 | P15: -100 | Q15: -80 | R15: -190 | S15: -20
A16: East Dunbartonshire | B16: -190 | C16: -40 | D16: -190 | E16: 10 | F16: -120 | G16: -30 | H16: -70 | I16: -70 | J16: -90 | K16: -120 | L16: -110 | M16: -110 | N16: 50 | O16: -10 | P16: -140 | Q16: -20 | R16: -20 | S16: 10
A17: East Lothian | B17: -50 | C17: 0 | D17: 40 | E17: 190 | F17: 250 | G17: 220 | H17: 150 | I17: 170 | J17: 120 | K17: -50 | L17: 30 | M17: 160 | N17: 290 | O17: 100 | P17: 170 | Q17: 220 | R17: 0 | S17: 60
A18: East Renfrewshire | B18: -140 | C18: -80 | D18: -130 | E18: -10 | F18: -100 | G18: -20 | H18: 40 | I18: -30 | J18: -160 | K18: -110 | L18: -50 | M18: -80 | N18: 50 | O18: -10 | P18: -80 | Q18: 20 | R18: -50 | S18: 100
A19: Falkirk | B19: 70 | C19: 250 | D19: 70 | E19: 320 | F19: 110 | G19: 120 | H19: 160 | I19: 280 | J19: -30 | K19: -130 | L19: 20 | M19: 130 | N19: 160 | O19: 100 | P19: 20 | Q19: 40 | R19: -110 | S19: 150
A20: Fife | B20: 90 | C20: 790 | D20: 270 | E20: 1010 | F20: 380 | G20: 1060 | H20: 1250 | I20: 1300 | J20: 360 | K20: -50 | L20: 110 | M20: 830 | N20: 1040 | O20: 670 | P20: 270 | Q20: 780 | R20: 260 | S20: 730
A21: Glasgow City | B21: 1100 | C21: 1490 | D21: 1070 | E21: 4740 | F21: 4250 | G21: 5450 | H21: 5380 | I21: 7060 | J21: 3540 | K21: 2070 | L21: 4000 | M21: 7080 | N21: 7940 | O21: 5390 | P21: 5310 | Q21: 7990 | R21: 4880 | S21: 6550
A22: Highland | B22: 10 | C22: 620 | D22: 460 | E22: 970 | F22: 310 | G22: 190 | H22: 360 | I22: 420 | J22: -180 | K22: -240 | L22: -90 | M22: 330 | N22: 350 | O22: 90 | P22: 30 | Q22: 170 | R22: -330 | S22: 300
A23: Inverclyde | B23: -180 | C23: 120 | D23: 0 | E23: 20 | F23: -50 | G23: -10 | H23: 30 | I23: -30 | J23: -100 | K23: -60 | L23: -60 | M23: 10 | N23: 40 | O23: 0 | P23: -60 | Q23: 60 | R23: -70 | S23: -20
A24: Midlothian | B24: -20 | C24: -20 | D24: 0 | E24: 90 | F24: 10 | G24: 20 | H24: 40 | I24: 70 | J24: 20 | K24: -50 | L24: -40 | M24: -20 | N24: 90 | O24: 50 | P24: 40 | Q24: 70 | R24: -70 | S24: 100
A25: Moray | B25: -80 | C25: 70 | D25: 20 | E25: 240 | F25: -10 | G25: 40 | H25: 50 | I25: -100 | J25: -100 | K25: -150 | L25: -40 | M25: -120 | N25: 80 | O25: -100 | P25: -120 | Q25: 50 | R25: -100 | S25: -10
A26: Na h-Eileanan Siar | B26: -40 | C26: -10 | D26: -10 | E26: 30 | F26: -30 | G26: -10 | H26: -10 | I26: 0 | J26: -40 | K26: -60 | L26: -50 | M26: 0 | N26: 20 | O26: 10 | P26: -20 | Q26: -10 | R26: -60 | S26: -10
A27: North Ayrshire | B27: -140 | C27: -190 | D27: -280 | E27: -50 | F27: -150 | G27: -90 | H27: -90 | I27: 30 | J27: -230 | K27: -240 | L27: -170 | M27: -40 | N27: -40 | O27: -50 | P27: -110 | Q27: -70 | R27: -150 | S27: -40
A28: North Lanarkshire | B28: -330 | C28: -20 | D28: -30 | E28: 570 | F28: 100 | G28: 20 | H28: -20 | I28: 120 | J28: -200 | K28: -340 | L28: -170 | M28: 170 | N28: 270 | O28: 50 | P28: -150 | Q28: 0 | R28: -350 | S28: 280
A29: Orkney Islands | B29: -20 | C29: -30 | D29: -30 | E29: 0 | F29: -30 | G29: -20 | H29: 0 | I29: 20 | J29: -30 | K29: -30 | L29: -20 | M29: 0 | N29: 0 | O29: 10 | P29: -10 | Q29: 0 | R29: -50 | S29: 0
A30: Perth and Kinross | B30: 110 | C30: 1070 | D30: 970 | E30: 1390 | F30: 1380 | G30: 1170 | H30: 1170 | I30: 1120 | J30: 450 | K30: -10 | L30: 470 | M30: 460 | N30: 420 | O30: 150 | P30: 150 | Q30: 310 | R30: -40 | S30: 360
A31: Renfrewshire | B31: 190 | C31: 160 | D31: 80 | E31: 500 | F31: 130 | G31: 100 | H31: 340 | I31: 460 | J31: -80 | K31: -210 | L31: -10 | M31: 280 | N31: 510 | O31: 290 | P31: 180 | Q31: 320 | R31: -50 | S31: 320
A32: Scottish Borders | B32: -60 | C32: 110 | D32: 10 | E32: 260 | F32: 90 | G32: 20 | H32: -100 | I32: 70 | J32: -70 | K32: -170 | L32: -170 | M32: -50 | N32: 0 | O32: 20 | P32: -130 | Q32: -50 | R32: -270 | S32: 30
A33: Shetland Islands | B33: -20 | C33: 0 | D33: -40 | E33: 10 | F33: 0 | G33: 80 | H33: 20 | I33: 40 | J33: 0 | K33: -30 | L33: -40 | M33: 30 | N33: 40 | O33: -20 | P33: -10 | Q33: 20 | R33: -50 | S33: -20
A34: South Ayrshire | B34: -200 | C34: -50 | D34: -90 | E34: 70 | F34: -80 | G34: -110 | H34: -30 | I34: 80 | J34: -100 | K34: -190 | L34: -170 | M34: 10 | N34: 40 | O34: 0 | P34: -50 | Q34: -50 | R34: -190 | S34: -30
A35: South Lanarkshire | B35: -370 | C35: -250 | D35: -200 | E35: 70 | F35: -180 | G35: -50 | H35: -60 | I35: 0 | J35: -320 | K35: -420 | L35: -370 | M35: -160 | N35: 130 | O35: -20 | P35: -220 | Q35: 10 | R35: -360 | S35: 40
A36: Stirling | B36: 70 | C36: 140 | D36: 180 | E36: 560 | F36: 260 | G36: 360 | H36: 660 | I36: 990 | J36: 420 | K36: -50 | L36: -40 | M36: 640 | N36: 440 | O36: 0 | P36: 160 | Q36: 300 | R36: 50 | S36: 200
A37: West Dunbartonshire | B37: -100 | C37: -80 | D37: -110 | E37: 70 | F37: -70 | G37: -30 | H37: 50 | I37: 10 | J37: -60 | K37: -100 | L37: -30 | M37: -30 | N37: 90 | O37: 30 | P37: -60 | Q37: 0 | R37: -30 | S37: 0
A38: West Lothian | B38: -100 | C38: 180 | D38: 520 | E38: 890 | F38: 470 | G38: 430 | H38: 410 | I38: 550 | J38: 260 | K38: -20 | L38: 60 | M38: 200 | N38: 370 | O38: 210 | P38: 220 | Q38: 320 | R38: 70 | S38: 500
A40: NHS Board Area | B40: 2003-04 | C40: 2004-05 | D40: 2005-06 | E40: 2006-07 | F40: 2007-08 | G40: 2008-09 | H40: 2009-10 | I40: 2010-11 | J40: 2011-12 | K40: 2012-13 | L40: 2013-14 | M40: 2014-15 | N40: 2015-16 | O40: 2016-17 | P40: 2017-18 | Q40: 2018-19 | R40: 2019-20 | S40: 2020-21
A41: Scotland | B41: 3100 | C41: 12800 | D41: 9900 | E41: 24200 | F41: 14900 | G41: 20300 | H41: 22800 | I41: 27300 | J41: 9700 | K41: 2100 | L41: 8000 | M41: 19600 | N41: 22900 | O41: 13400 | P41: 10900 | Q41: 20200 | R41: 7900 | S41: 18900
A42: Ayrshire and Arran | B42: -470 | C42: -320 | D42: -560 | E42: -50 | F42: -320 | G42: -330 | H42: -210 | I42: 50 | J42: -460 | K42: -590 | L42: -510 | M42: -120 | N42: -40 | O42: -130 | P42: -260 | Q42: -200 | R42: -530 | S42: -90
A43: Borders | B43: -60 | C43: 110 | D43: 10 | E43: 260 | F43: 90 | G43: 20 | H43: -100 | I43: 70 | J43: -70 | K43: -170 | L43: -170 | M43: -50 | N43: 0 | O43: 20 | P43: -130 | Q43: -50 | R43: -270 | S43: 30
A44: Dumfries and Galloway | B44: -260 | C44: -80 | D44: -120 | E44: 30 | F44: -180 | G44: -170 | H44: -160 | I44: 20 | J44: -280 | K44: -340 | L44: -270 | M44: -70 | N44: 10 | O44: -120 | P44: -180 | Q44: -110 | R44: -330 | S44: -70
A45: Fife | B45: 90 | C45: 790 | D45: 270 | E45: 1010 | F45: 380 | G45: 1060 | H45: 1250 | I45: 1300 | J45: 360 | K45: -50 | L45: 110 | M45: 830 | N45: 1040 | O45: 670 | P45: 270 | Q45: 780 | R45: 260 | S45: 730
A46: Forth Valley | B46: 90 | C46: 400 | D46: 260 | E46: 1040 | F46: 360 | G46: 510 | H46: 820 | I46: 1270 | J46: 340 | K46: -220 | L46: -60 | M46: 760 | N46: 660 | O46: 140 | P46: 160 | Q46: 390 | R46: -70 | S46: 400
A47: Grampian | B47: 920 | C47: 2840 | D47: 2820 | E47: 4830 | F47: 3430 | G47: 4320 | H47: 4510 | I47: 4760 | J47: 2210 | K47: 1270 | L47: 2050 | M47: 3320 | N47: 2870 | O47: 1600 | P47: 1020 | Q47: 2280 | R47: 1110 | S47: 2230
A48: Greater Glasgow and Clyde | B48: 620 | C48: 1510 | D48: 670 | E48: 5340 | F48: 4000 | G48: 5440 | H48: 5770 | I48: 7380 | J48: 3050 | K48: 1480 | L48: 3730 | M48: 7140 | N48: 8670 | O48: 5690 | P48: 5150 | Q48: 8360 | R48: 4660 | S48: 6960
A49: Highland | B49: -100 | C49: 520 | D49: 350 | E49: 1110 | F49: 90 | G49: 130 | H49: 440 | I49: 480 | J49: -350 | K49: -450 | L49: -320 | M49: 240 | N49: 390 | O49: 50 | P49: -110 | Q49: 90 | R49: -600 | S49: 260
A50: Lanarkshire | B50: -640 | C50: -210 | D50: -180 | E50: 630 | F50: -60 | G50: 0 | H50: -80 | I50: 130 | J50: -530 | K50: -770 | L50: -540 | M50: 0 | N50: 400 | O50: 30 | P50: -370 | Q50: 20 | R50: -700 | S50: 320
A51: Lothian | B51: 2880 | C51: 5380 | D51: 4670 | E51: 7300 | F51: 4710 | G51: 6940 | H51: 7900 | I51: 8860 | J51: 4460 | K51: 1840 | L51: 3330 | M51: 6380 | N51: 7540 | O51: 4860 | P51: 4730 | Q51: 7330 | R51: 4250 | S51: 6850
A52: Orkney | B52: -20 | C52: -30 | D52: -30 | E52: 0 | F52: -30 | G52: -20 | H52: 0 | I52: 20 | J52: -30 | K52: -30 | L52: -20 | M52: 0 | N52: 0 | O52: 10 | P52: -10 | Q52: 0 | R52: -50 | S52: 0
A53: Shetland | B53: -20 | C53: 0 | D53: -40 | E53: 10 | F53: 0 | G53: 80 | H53: 20 | I53: 40 | J53: 0 | K53: -30 | L53: -40 | M53: 30 | N53: 40 | O53: -20 | P53: -10 | Q53: 20 | R53: -50 | S53: -20
A54: Tayside | B54: 110 | C54: 1910 | D54: 1790 | E54: 2660 | F54: 2440 | G54: 2350 | H54: 2640 | I54: 2930 | J54: 1030 | K54: 220 | L54: 750 | M54: 1120 | N54: 1300 | O54: 590 | P54: 670 | Q54: 1310 | R54: 260 | S54: 1280
A55: Western Isles | B55: -40 | C55: -10 | D55: -10 | E55: 30 | F55: -30 | G55: -10 | H55: -10 | I55: 0 | J55: -40 | K55: -60 | L55: -50 | M55: 0 | N55: 20 | O55: 10 | P55: -20 | Q55: -10 | R55: -60 | S55: -10

Sheet International in-migration
A1: International in-migration
A2: This worksheet contains two tables, presented next to each other vertically with one blank row between the tables.
A3: See notes [1], [4], [5], [6] which are explained in the Notes worksheet.
A4: Return to front page
A5: Council Area | B5: 2003-04 | C5: 2004-05 | D5: 2005-06 | E5: 2006-07 | F5: 2007-08 | G5: 2008-09 | H5: 2009-10 | I5: 2010-11 | J5: 2011-12 | K5: 2012-13 | L5: 2013-14 | M5: 2014-15 | N5: 2015-16 | O5: 2016-17 | P5: 2017-18 | Q5: 2018-19 | R5: 2019-20 | S5: 2020-21
A6: Scotland | B6: 28500 | C6: 41800 | D6: 41300 | E6: 45100 | F6: 45200 | G6: 45100 | H6: 47400 | I6: 44200 | J6: 35900 | K6: 28200 | L6: 33200 | M6: 37800 | N6: 40400 | O6: 32900 | P6: 32900 | Q6: 39900 | R6: 39200 | S6: 41000
A7: Aberdeen City | B7: 2890 | C7: 4320 | D7: 4460 | E7: 5350 | F7: 5410 | G7: 5860 | H7: 5850 | I7: 5280 | J7: 4410 | K7: 3640 | L7: 4200 | M7: 4590 | N7: 4160 | O7: 3180 | P7: 2980 | Q7: 3590 | R7: 3780 | S7: 3690
A8: Aberdeenshire | B8: 780 | C8: 1390 | D8: 1560 | E8: 1510 | F8: 1510 | G8: 1510 | H8: 1560 | I8: 1440 | J8: 1060 | K8: 980 | L8: 1060 | M8: 1080 | N8: 980 | O8: 760 | P8: 600 | Q8: 760 | R8: 650 | S8: 770
A9: Angus | B9: 140 | C9: 370 | D9: 450 | E9: 420 | F9: 520 | G9: 460 | H9: 550 | I9: 510 | J9: 370 | K9: 280 | L9: 340 | M9: 290 | N9: 350 | O9: 300 | P9: 220 | Q9: 310 | R9: 240 | S9: 400
A10: Argyll and Bute | B10: 300 | C10: 470 | D10: 460 | E10: 540 | F10: 410 | G10: 430 | H10: 480 | I10: 360 | J10: 300 | K10: 240 | L10: 240 | M10: 300 | N10: 350 | O10: 300 | P10: 300 | Q10: 290 | R10: 300 | S10: 320
A11: City of Edinburgh | B11: 7810 | C11: 11010 | D11: 10460 | E11: 10190 | F11: 9990 | G11: 10650 | H11: 11840 | I11: 11220 | J11: 9310 | K11: 7250 | L11: 8460 | M11: 9650 | N11: 10470 | O11: 8540 | P11: 9000 | Q11: 10990 | R11: 11450 | S11: 11410
A12: Clackmannanshire | B12: 90 | C12: 150 | D12: 170 | E12: 250 | F12: 190 | G12: 180 | H12: 150 | I12: 100 | J12: 120 | K12: 70 | L12: 130 | M12: 100 | N12: 160 | O12: 170 | P12: 110 | Q12: 140 | R12: 120 | S12: 130
A13: Dumfries and Galloway | B13: 240 | C13: 500 | D13: 520 | E13: 490 | F13: 520 | G13: 390 | H13: 380 | I13: 360 | J13: 240 | K13: 200 | L13: 210 | M13: 280 | N13: 340 | O13: 240 | P13: 260 | Q13: 270 | R13: 280 | S13: 340
A14: Dundee City | B14: 810 | C14: 1730 | D14: 1630 | E14: 1850 | F14: 2070 | G14: 1920 | H14: 2200 | I14: 2250 | J14: 1580 | K14: 1370 | L14: 1280 | M14: 1390 | N14: 1440 | O14: 1180 | P14: 1320 | Q14: 1600 | R14: 1550 | S14: 1570
A15: East Ayrshire | B15: 130 | C15: 200 | D15: 120 | E15: 160 | F15: 220 | G15: 120 | H15: 150 | I15: 120 | J15: 110 | K15: 80 | L15: 90 | M15: 90 | N15: 110 | O15: 110 | P15: 110 | Q15: 110 | R15: 100 | S15: 190
A16: East Dunbartonshire | B16: 190 | C16: 300 | D16: 210 | E16: 220 | F16: 140 | G16: 180 | H16: 150 | I16: 160 | J16: 110 | K16: 80 | L16: 100 | M16: 110 | N16: 190 | O16: 140 | P16: 100 | Q16: 130 | R16: 160 | S16: 210
A17: East Lothian | B17: 210 | C17: 260 | D17: 360 | E17: 380 | F17: 550 | G17: 450 | H17: 430 | I17: 430 | J17: 410 | K17: 250 | L17: 340 | M17: 410 | N17: 460 | O17: 350 | P17: 420 | Q17: 480 | R17: 400 | S17: 340
A18: East Renfrewshire | B18: 140 | C18: 180 | D18: 160 | E18: 140 | F18: 140 | G18: 160 | H18: 190 | I18: 130 | J18: 80 | K18: 90 | L18: 130 | M18: 130 | N18: 180 | O18: 130 | P18: 100 | Q18: 150 | R18: 140 | S18: 300
A19: Falkirk | B19: 390 | C19: 670 | D19: 570 | E19: 660 | F19: 560 | G19: 510 | H19: 460 | I19: 500 | J19: 310 | K19: 240 | L19: 330 | M19: 380 | N19: 380 | O19: 380 | P19: 330 | Q19: 300 | R19: 290 | S19: 370
A20: Fife | B20: 1640 | C20: 2490 | D20: 2170 | E20: 2290 | F20: 2210 | G20: 2400 | H20: 2680 | I20: 2300 | J20: 1960 | K20: 1510 | L20: 1630 | M20: 1920 | N20: 2050 | O20: 1680 | P20: 1570 | Q20: 1940 | R20: 2080 | S20: 2070
A21: Glasgow City | B21: 7200 | C21: 8420 | D21: 7990 | E21: 9120 | F21: 9770 | G21: 10020 | H21: 10170 | I21: 10260 | J21: 8550 | K21: 7090 | L21: 8900 | M21: 10410 | N21: 11460 | O21: 9710 | P21: 9970 | Q21: 12320 | R21: 11880 | S21: 11430
A22: Highland | B22: 740 | C22: 1500 | D22: 1530 | E22: 1770 | F22: 1560 | G22: 1290 | H22: 1310 | I22: 1020 | J22: 760 | K22: 620 | L22: 720 | M22: 920 | N22: 920 | O22: 730 | P22: 750 | Q22: 820 | R22: 690 | S22: 980
A23: Inverclyde | B23: 210 | C23: 430 | D23: 270 | E23: 220 | F23: 190 | G23: 180 | H23: 200 | I23: 100 | J23: 80 | K23: 70 | L23: 70 | M23: 100 | N23: 130 | O23: 100 | P23: 80 | Q23: 150 | R23: 70 | S23: 90
A24: Midlothian | B24: 130 | C24: 170 | D24: 200 | E24: 210 | F24: 200 | G24: 180 | H24: 210 | I24: 180 | J24: 170 | K24: 90 | L24: 150 | M24: 170 | N24: 210 | O24: 160 | P24: 190 | Q24: 230 | R24: 150 | S24: 250
A25: Moray | B25: 240 | C25: 510 | D25: 530 | E25: 520 | F25: 500 | G25: 390 | H25: 450 | I25: 410 | J25: 320 | K25: 230 | L25: 280 | M25: 330 | N25: 320 | O25: 200 | P25: 220 | Q25: 300 | R25: 280 | S25: 280
A26: Na h-Eileanan Siar | B26: 50 | C26: 80 | D26: 90 | E26: 100 | F26: 80 | G26: 80 | H26: 70 | I26: 60 | J26: 40 | K26: 30 | L26: 30 | M26: 60 | N26: 70 | O26: 60 | P26: 50 | Q26: 50 | R26: 40 | S26: 50
A27: North Ayrshire | B27: 230 | C27: 260 | D27: 220 | E27: 260 | F27: 260 | G27: 230 | H27: 240 | I27: 220 | J27: 150 | K27: 110 | L27: 140 | M27: 160 | N27: 180 | O27: 180 | P27: 160 | Q27: 180 | R27: 210 | S27: 200
A28: North Lanarkshire | B28: 420 | C28: 730 | D28: 840 | E28: 1180 | F28: 1080 | G28: 900 | H28: 780 | I28: 630 | J28: 530 | K28: 410 | L28: 490 | M28: 620 | N28: 740 | O28: 580 | P28: 480 | Q28: 560 | R28: 500 | S28: 810
A29: Orkney Islands | B29: 40 | C29: 50 | D29: 50 | E29: 50 | F29: 50 | G29: 50 | H29: 60 | I29: 70 | J29: 40 | K29: 50 | L29: 50 | M29: 50 | N29: 50 | O29: 50 | P29: 50 | Q29: 60 | R29: 40 | S29: 60
A30: Perth and Kinross | B30: 650 | C30: 1640 | D30: 1730 | E30: 2040 | F30: 2340 | G30: 2160 | H30: 2130 | I30: 1630 | J30: 1380 | K30: 840 | L30: 1240 | M30: 950 | N30: 940 | O30: 700 | P30: 680 | Q30: 770 | R30: 680 | S30: 860
A31: Renfrewshire | B31: 650 | C31: 700 | D31: 810 | E31: 910 | F31: 690 | G31: 660 | H31: 850 | I31: 730 | J31: 430 | K31: 330 | L31: 430 | M31: 550 | N31: 800 | O31: 630 | P31: 640 | Q31: 730 | R31: 650 | S31: 800
A32: Scottish Borders | B32: 360 | C32: 550 | D32: 580 | E32: 640 | F32: 690 | G32: 520 | H32: 390 | I32: 370 | J32: 380 | K32: 250 | L32: 280 | M32: 260 | N32: 320 | O32: 260 | P32: 250 | Q32: 290 | R32: 250 | S32: 390
A33: Shetland Islands | B33: 60 | C33: 70 | D33: 70 | E33: 80 | F33: 90 | G33: 150 | H33: 100 | I33: 100 | J33: 90 | K33: 60 | L33: 50 | M33: 90 | N33: 90 | O33: 50 | P33: 60 | Q33: 80 | R33: 50 | S33: 40
A34: South Ayrshire | B34: 160 | C34: 350 | D34: 330 | E34: 330 | F34: 330 | G34: 280 | H34: 330 | I34: 310 | J34: 240 | K34: 170 | L34: 170 | M34: 250 | N34: 260 | O34: 250 | P34: 210 | Q34: 210 | R34: 220 | S34: 230
A35: South Lanarkshire | B35: 430 | C35: 770 | D35: 740 | E35: 720 | F35: 710 | G35: 720 | H35: 690 | I35: 560 | J35: 450 | K35: 310 | L35: 370 | M35: 450 | N35: 640 | O35: 520 | P35: 450 | Q35: 580 | R35: 500 | S35: 710
A36: Stirling | B36: 690 | C36: 820 | D36: 890 | E36: 1010 | F36: 930 | G36: 960 | H36: 1250 | I36: 1360 | J36: 1050 | K36: 690 | L36: 610 | M36: 1030 | N36: 820 | O36: 600 | P36: 630 | Q36: 770 | R36: 780 | S36: 760
A37: West Dunbartonshire | B37: 160 | C37: 200 | D37: 190 | E37: 230 | F37: 160 | G37: 170 | H37: 200 | I37: 160 | J37: 110 | K37: 100 | L37: 120 | M37: 120 | N37: 190 | O37: 140 | P37: 100 | Q37: 110 | R37: 130 | S37: 140
A38: West Lothian | B38: 330 | C38: 560 | D38: 970 | E38: 1250 | F38: 1140 | G38: 960 | H38: 930 | I38: 870 | J38: 740 | K38: 500 | L38: 560 | M38: 560 | N38: 660 | O38: 520 | P38: 560 | Q38: 640 | R38: 550 | S38: 810
A40: NHS Board Area | B40: 2003-04 | C40: 2004-05 | D40: 2005-06 | E40: 2006-07 | F40: 2007-08 | G40: 2008-09 | H40: 2009-10 | I40: 2010-11 | J40: 2011-12 | K40: 2012-13 | L40: 2013-14 | M40: 2014-15 | N40: 2015-16 | O40: 2016-17 | P40: 2017-18 | Q40: 2018-19 | R40: 2019-20 | S40: 2020-21
A41: Scotland | B41: 28500 | C41: 41800 | D41: 41300 | E41: 45100 | F41: 45200 | G41: 45100 | H41: 47400 | I41: 44200 | J41: 35900 | K41: 28200 | L41: 33200 | M41: 37800 | N41: 40400 | O41: 32900 | P41: 32900 | Q41: 39900 | R41: 39200 | S41: 41000
A42: Ayrshire and Arran | B42: 520 | C42: 800 | D42: 670 | E42: 760 | F42: 810 | G42: 620 | H42: 710 | I42: 640 | J42: 500 | K42: 360 | L42: 400 | M42: 500 | N42: 550 | O42: 540 | P42: 480 | Q42: 500 | R42: 530 | S42: 610
A43: Borders | B43: 360 | C43: 550 | D43: 580 | E43: 640 | F43: 690 | G43: 520 | H43: 390 | I43: 370 | J43: 380 | K43: 250 | L43: 280 | M43: 260 | N43: 320 | O43: 260 | P43: 250 | Q43: 290 | R43: 250 | S43: 390
A44: Dumfries and Galloway | B44: 240 | C44: 500 | D44: 520 | E44: 490 | F44: 520 | G44: 390 | H44: 380 | I44: 360 | J44: 240 | K44: 200 | L44: 210 | M44: 280 | N44: 340 | O44: 240 | P44: 260 | Q44: 270 | R44: 280 | S44: 340
A45: Fife | B45: 1640 | C45: 2490 | D45: 2170 | E45: 2290 | F45: 2210 | G45: 2400 | H45: 2680 | I45: 2300 | J45: 1960 | K45: 1510 | L45: 1630 | M45: 1920 | N45: 2050 | O45: 1680 | P45: 1570 | Q45: 1940 | R45: 2080 | S45: 2070
A46: Forth Valley | B46: 1170 | C46: 1640 | D46: 1630 | E46: 1920 | F46: 1680 | G46: 1640 | H46: 1860 | I46: 1970 | J46: 1480 | K46: 990 | L46: 1070 | M46: 1510 | N46: 1360 | O46: 1160 | P46: 1070 | Q46: 1210 | R46: 1190 | S46: 1270
A47: Grampian | B47: 3910 | C47: 6220 | D47: 6550 | E47: 7380 | F47: 7420 | G47: 7770 | H47: 7860 | I47: 7130 | J47: 5790 | K47: 4840 | L47: 5550 | M47: 6000 | N47: 5460 | O47: 4140 | P47: 3800 | Q47: 4660 | R47: 4710 | S47: 4740
A48: Greater Glasgow and Clyde | B48: 8670 | C48: 10410 | D48: 9750 | E48: 10980 | F48: 11200 | G48: 11480 | H48: 11880 | I48: 11670 | J48: 9350 | K48: 7760 | L48: 9740 | M48: 11410 | N48: 12960 | O48: 10840 | P48: 10990 | Q48: 13580 | R48: 13030 | S48: 12970
A49: Highland | B49: 1040 | C49: 1960 | D49: 1990 | E49: 2310 | F49: 1970 | G49: 1720 | H49: 1780 | I49: 1380 | J49: 1070 | K49: 850 | L49: 960 | M49: 1220 | N49: 1270 | O49: 1030 | P49: 1050 | Q49: 1110 | R49: 990 | S49: 1300
A50: Lanarkshire | B50: 720 | C50: 1300 | D50: 1450 | E50: 1760 | F50: 1660 | G50: 1500 | H50: 1340 | I50: 1060 | J50: 980 | K50: 720 | L50: 860 | M50: 1080 | N50: 1380 | O50: 1110 | P50: 930 | Q50: 1150 | R50: 1000 | S50: 1520
A51: Lothian | B51: 8480 | C51: 11990 | D51: 11980 | E51: 12030 | F51: 11880 | G51: 12240 | H51: 13400 | I51: 12700 | J51: 10630 | K51: 8090 | L51: 9510 | M51: 10790 | N51: 11790 | O51: 9570 | P51: 10170 | Q51: 12330 | R51: 12550 | S51: 12820
A52: Orkney | B52: 40 | C52: 50 | D52: 50 | E52: 50 | F52: 50 | G52: 50 | H52: 60 | I52: 70 | J52: 40 | K52: 50 | L52: 50 | M52: 50 | N52: 50 | O52: 50 | P52: 50 | Q52: 60 | R52: 40 | S52: 60
A53: Shetland | B53: 60 | C53: 70 | D53: 70 | E53: 80 | F53: 90 | G53: 150 | H53: 100 | I53: 100 | J53: 90 | K53: 60 | L53: 50 | M53: 90 | N53: 90 | O53: 50 | P53: 60 | Q53: 80 | R53: 50 | S53: 40
A54: Tayside | B54: 1600 | C54: 3740 | D54: 3810 | E54: 4310 | F54: 4930 | G54: 4540 | H54: 4880 | I54: 4390 | J54: 3340 | K54: 2490 | L54: 2860 | M54: 2630 | N54: 2720 | O54: 2190 | P54: 2210 | Q54: 2680 | R54: 2470 | S54: 2830
A55: Western Isles | B55: 50 | C55: 80 | D55: 90 | E55: 100 | F55: 80 | G55: 80 | H55: 70 | I55: 60 | J55: 40 | K55: 30 | L55: 30 | M55: 60 | N55: 70 | O55: 60 | P55: 50 | Q55: 50 | R55: 40 | S55: 50

Sheet International out-migration
A1: International out-migration
A2: This worksheet contains two tables, presented next to each other vertically with one blank row between the tables.
A3: See notes [1], [4], [5], [6] which are explained in the Notes worksheet.
A4: Return to front page
A5: Council Area | B5: 2003-04 | C5: 2004-05 | D5: 2005-06 | E5: 2006-07 | F5: 2007-08 | G5: 2008-09 | H5: 2009-10 | I5: 2010-11 | J5: 2011-12 | K5: 2012-13 | L5: 2013-14 | M5: 2014-15 | N5: 2015-16 | O5: 2016-17 | P5: 2017-18 | Q5: 2018-19 | R5: 2019-20 | S5: 2020-21
A6: Scotland | B6: 25400 | C6: 29000 | D6: 31400 | E6: 20900 | F6: 30300 | G6: 24800 | H6: 24600 | I6: 16900 | J6: 26200 | K6: 26100 | L6: 25200 | M6: 18200 | N6: 17500 | O6: 19500 | P6: 22000 | Q6: 19700 | R6: 31300 | S6: 22100
A7: Aberdeen City | B7: 2020 | C7: 2170 | D7: 2320 | E7: 1600 | F7: 2380 | G7: 2200 | H7: 2110 | I7: 1150 | J7: 2310 | K7: 2330 | L7: 2240 | M7: 1400 | N7: 1680 | O7: 1690 | P7: 1800 | Q7: 1570 | R7: 2480 | S7: 1720
A8: Aberdeenshire | B8: 650 | C8: 760 | D8: 900 | E8: 680 | F8: 1110 | G8: 910 | H8: 840 | I8: 720 | J8: 850 | K8: 860 | L8: 940 | M8: 820 | N8: 660 | O8: 550 | P8: 640 | Q8: 560 | R8: 740 | S8: 500
A9: Angus | B9: 240 | C9: 250 | D9: 310 | E9: 220 | F9: 410 | G9: 310 | H9: 340 | I9: 280 | J9: 360 | K9: 370 | L9: 310 | M9: 300 | N9: 270 | O9: 250 | P9: 270 | Q9: 250 | R9: 330 | S9: 230
A10: Argyll and Bute | B10: 400 | C10: 570 | D10: 570 | E10: 400 | F10: 640 | G10: 480 | H10: 390 | I10: 310 | J10: 480 | K10: 450 | L10: 470 | M10: 380 | N10: 310 | O10: 330 | P10: 440 | Q10: 380 | R10: 570 | S10: 350
A11: City of Edinburgh | B11: 4770 | C11: 5790 | D11: 6350 | E11: 4060 | F11: 6010 | G11: 4380 | H11: 4540 | I11: 3140 | J11: 5250 | K11: 5300 | L11: 5190 | M11: 3600 | N11: 3680 | O11: 4030 | P11: 4690 | Q11: 4280 | R11: 7200 | S11: 5220
A12: Clackmannanshire | B12: 130 | C12: 140 | D12: 160 | E12: 90 | F12: 200 | G12: 150 | H12: 150 | I12: 100 | J12: 170 | K12: 110 | L12: 150 | M12: 100 | N12: 90 | O12: 130 | P12: 140 | Q12: 90 | R12: 130 | S12: 90
A13: Dumfries and Galloway | B13: 500 | C13: 590 | D13: 640 | E13: 460 | F13: 700 | G13: 560 | H13: 540 | I13: 340 | J13: 520 | K13: 540 | L13: 480 | M13: 350 | N13: 330 | O13: 360 | P13: 440 | Q13: 380 | R13: 610 | S13: 410
A14: Dundee City | B14: 710 | C14: 1010 | D14: 940 | E14: 780 | F14: 1120 | G14: 890 | H14: 940 | I14: 670 | J14: 1020 | K14: 1050 | L14: 1020 | M14: 720 | N14: 640 | O14: 790 | P14: 750 | Q14: 670 | R14: 1160 | S14: 820
A15: East Ayrshire | B15: 260 | C15: 280 | D15: 310 | E15: 230 | F15: 320 | G15: 260 | H15: 250 | I15: 180 | J15: 250 | K15: 240 | L15: 270 | M15: 180 | N15: 150 | O15: 190 | P15: 210 | Q15: 190 | R15: 290 | S15: 200
A16: East Dunbartonshire | B16: 380 | C16: 340 | D16: 400 | E16: 210 | F16: 260 | G16: 210 | H16: 220 | I16: 230 | J16: 200 | K16: 200 | L16: 210 | M16: 220 | N16: 140 | O16: 160 | P16: 240 | Q16: 150 | R16: 190 | S16: 200
A17: East Lothian | B17: 260 | C17: 250 | D17: 320 | E17: 190 | F17: 300 | G17: 230 | H17: 280 | I17: 260 | J17: 290 | K17: 300 | L17: 310 | M17: 260 | N17: 170 | O17: 240 | P17: 250 | Q17: 260 | R17: 400 | S17: 280
A18: East Renfrewshire | B18: 280 | C18: 250 | D18: 290 | E18: 150 | F18: 240 | G18: 170 | H18: 160 | I18: 160 | J18: 230 | K18: 200 | L18: 180 | M18: 210 | N18: 130 | O18: 140 | P18: 180 | Q18: 130 | R18: 180 | S18: 200
A19: Falkirk | B19: 330 | C19: 420 | D19: 500 | E19: 350 | F19: 460 | G19: 380 | H19: 300 | I19: 220 | J19: 340 | K19: 360 | L19: 310 | M19: 250 | N19: 230 | O19: 280 | P19: 310 | Q19: 260 | R19: 400 | S19: 220
A20: Fife | B20: 1550 | C20: 1710 | D20: 1900 | E20: 1280 | F20: 1830 | G20: 1340 | H20: 1430 | I20: 1000 | J20: 1600 | K20: 1560 | L20: 1520 | M20: 1090 | N20: 1010 | O20: 1010 | P20: 1300 | Q20: 1170 | R20: 1830 | S20: 1350
A21: Glasgow City | B21: 6100 | C21: 6920 | D21: 6930 | E21: 4380 | F21: 5520 | G21: 4570 | H21: 4780 | I21: 3200 | J21: 5010 | K21: 5020 | L21: 4900 | M21: 3330 | N21: 3530 | O21: 4310 | P21: 4670 | Q21: 4330 | R21: 7000 | S21: 4880
A22: Highland | B22: 730 | C22: 870 | D22: 1070 | E22: 800 | F22: 1250 | G22: 1110 | H22: 950 | I22: 600 | J22: 940 | K22: 860 | L22: 810 | M22: 590 | N22: 570 | O22: 640 | P22: 720 | Q22: 640 | R22: 1010 | S22: 680
A23: Inverclyde | B23: 380 | C23: 310 | D23: 270 | E23: 200 | F23: 240 | G23: 180 | H23: 180 | I23: 120 | J23: 180 | K23: 130 | L23: 130 | M23: 90 | N23: 90 | O23: 100 | P23: 140 | Q23: 90 | R23: 140 | S23: 110
A24: Midlothian | B24: 150 | C24: 190 | D24: 200 | E24: 120 | F24: 190 | G24: 160 | H24: 170 | I24: 110 | J24: 150 | K24: 130 | L24: 190 | M24: 190 | N24: 120 | O24: 110 | P24: 150 | Q24: 160 | R24: 220 | S24: 150
A25: Moray | B25: 320 | C25: 440 | D25: 510 | E25: 280 | F25: 510 | G25: 350 | H25: 400 | I25: 500 | J25: 410 | K25: 370 | L25: 320 | M25: 450 | N25: 240 | O25: 300 | P25: 340 | Q25: 260 | R25: 380 | S25: 290
A26: Na h-Eileanan Siar | B26: 80 | C26: 90 | D26: 100 | E26: 70 | F26: 110 | G26: 90 | H26: 70 | I26: 60 | J26: 80 | K26: 90 | L26: 80 | M26: 50 | N26: 50 | O26: 50 | P26: 70 | Q26: 60 | R26: 90 | S26: 60
A27: North Ayrshire | B27: 370 | C27: 450 | D27: 500 | E27: 310 | F27: 410 | G27: 310 | H27: 330 | I27: 190 | J27: 380 | K27: 350 | L27: 300 | M27: 200 | N27: 220 | O27: 230 | P27: 270 | Q27: 250 | R27: 360 | S27: 240
A28: North Lanarkshire | B28: 750 | C28: 750 | D28: 880 | E28: 610 | F28: 980 | G28: 880 | H28: 800 | I28: 520 | J28: 730 | K28: 750 | L28: 660 | M28: 460 | N28: 470 | O28: 530 | P28: 630 | Q28: 560 | R28: 850 | S28: 540
A29: Orkney Islands | B29: 60 | C29: 80 | D29: 80 | E29: 50 | F29: 70 | G29: 60 | H29: 60 | I29: 40 | J29: 70 | K29: 80 | L29: 70 | M29: 50 | N29: 50 | O29: 40 | P29: 60 | Q29: 60 | R29: 90 | S29: 60
A30: Perth and Kinross | B30: 550 | C30: 570 | D30: 760 | E30: 650 | F30: 960 | G30: 990 | H30: 960 | I30: 510 | J30: 930 | K30: 850 | L30: 770 | M30: 490 | N30: 520 | O30: 550 | P30: 530 | Q30: 460 | R30: 710 | S30: 500
A31: Renfrewshire | B31: 470 | C31: 540 | D31: 730 | E31: 410 | F31: 560 | G31: 560 | H31: 500 | I31: 270 | J31: 510 | K31: 540 | L31: 440 | M31: 270 | N31: 290 | O31: 350 | P31: 450 | Q31: 410 | R31: 700 | S31: 480
A32: Scottish Borders | B32: 430 | C32: 450 | D32: 570 | E32: 380 | F32: 600 | G32: 510 | H32: 500 | I32: 310 | J32: 450 | K32: 420 | L32: 460 | M32: 310 | N32: 310 | O32: 240 | P32: 380 | Q32: 330 | R32: 520 | S32: 350
A33: Shetland Islands | B33: 80 | C33: 80 | D33: 110 | E33: 60 | F33: 90 | G33: 70 | H33: 80 | I33: 70 | J33: 90 | K33: 90 | L33: 90 | M33: 60 | N33: 50 | O33: 70 | P33: 70 | Q33: 60 | R33: 100 | S33: 70
A34: South Ayrshire | B34: 350 | C34: 390 | D34: 410 | E34: 270 | F34: 410 | G34: 380 | H34: 350 | I34: 230 | J34: 340 | K34: 360 | L34: 330 | M34: 240 | N34: 220 | O34: 250 | P34: 260 | Q34: 260 | R34: 410 | S34: 260
A35: South Lanarkshire | B35: 800 | C35: 1020 | D35: 940 | E35: 650 | F35: 890 | G35: 770 | H35: 740 | I35: 560 | J35: 770 | K35: 730 | L35: 740 | M35: 620 | N35: 510 | O35: 540 | P35: 660 | Q35: 570 | R35: 860 | S35: 670
A36: Stirling | B36: 620 | C36: 670 | D36: 710 | E36: 450 | F36: 670 | G36: 600 | H36: 590 | I36: 380 | J36: 640 | K36: 740 | L36: 660 | M36: 400 | N36: 380 | O36: 610 | P36: 470 | Q36: 470 | R36: 730 | S36: 560
A37: West Dunbartonshire | B37: 260 | C37: 280 | D37: 290 | E37: 160 | F37: 230 | G37: 200 | H37: 150 | I37: 150 | J37: 170 | K37: 200 | L37: 150 | M37: 150 | N37: 110 | O37: 110 | P37: 160 | Q37: 110 | R37: 170 | S37: 140
A38: West Lothian | B38: 420 | C38: 380 | D38: 450 | E38: 360 | F38: 680 | G38: 530 | H38: 520 | I38: 330 | J38: 480 | K38: 520 | L38: 500 | M38: 370 | N38: 280 | O38: 320 | P38: 340 | Q38: 310 | R38: 480 | S38: 320
A40: NHS Board Areas | B40: 2003-04 | C40: 2004-05 | D40: 2005-06 | E40: 2006-07 | F40: 2007-08 | G40: 2008-09 | H40: 2009-10 | I40: 2010-11 | J40: 2011-12 | K40: 2012-13 | L40: 2013-14 | M40: 2014-15 | N40: 2015-16 | O40: 2016-17 | P40: 2017-18 | Q40: 2018-19 | R40: 2019-20 | S40: 2020-21
A41: Scotland | B41: 25400 | C41: 29000 | D41: 31400 | E41: 20900 | F41: 30300 | G41: 24800 | H41: 24600 | I41: 16900 | J41: 26200 | K41: 26100 | L41: 25200 | M41: 18200 | N41: 17500 | O41: 19500 | P41: 22000 | Q41: 19700 | R41: 31300 | S41: 22100
A42: Ayrshire and Arran | B42: 990 | C42: 1120 | D42: 1220 | E42: 810 | F42: 1130 | G42: 950 | H42: 930 | I42: 600 | J42: 960 | K42: 950 | L42: 900 | M42: 620 | N42: 590 | O42: 670 | P42: 740 | Q42: 700 | R42: 1060 | S42: 700
A43: Borders | B43: 430 | C43: 450 | D43: 570 | E43: 380 | F43: 600 | G43: 510 | H43: 500 | I43: 310 | J43: 450 | K43: 420 | L43: 460 | M43: 310 | N43: 310 | O43: 240 | P43: 380 | Q43: 330 | R43: 520 | S43: 350
A44: Dumfries and Galloway | B44: 500 | C44: 590 | D44: 640 | E44: 460 | F44: 700 | G44: 560 | H44: 540 | I44: 340 | J44: 520 | K44: 540 | L44: 480 | M44: 350 | N44: 330 | O44: 360 | P44: 440 | Q44: 380 | R44: 610 | S44: 410
A45: Fife | B45: 1550 | C45: 1710 | D45: 1900 | E45: 1280 | F45: 1830 | G45: 1340 | H45: 1430 | I45: 1000 | J45: 1600 | K45: 1560 | L45: 1520 | M45: 1090 | N45: 1010 | O45: 1010 | P45: 1300 | Q45: 1170 | R45: 1830 | S45: 1350
A46: Forth Valley | B46: 1080 | C46: 1240 | D46: 1370 | E46: 880 | F46: 1320 | G46: 1130 | H46: 1030 | I46: 700 | J46: 1150 | K46: 1210 | L46: 1120 | M46: 750 | N46: 700 | O46: 1020 | P46: 910 | Q46: 820 | R46: 1260 | S46: 870
A47: Grampian | B47: 2990 | C47: 3370 | D47: 3730 | E47: 2550 | F47: 4000 | G47: 3450 | H47: 3350 | I47: 2370 | J47: 3580 | K47: 3570 | L47: 3500 | M47: 2680 | N47: 2590 | O47: 2540 | P47: 2780 | Q47: 2380 | R47: 3590 | S47: 2510
A48: Greater Glasgow and Clyde | B48: 8060 | C48: 8900 | D48: 9080 | E48: 5640 | F48: 7200 | G48: 6050 | H48: 6110 | I48: 4290 | J48: 6300 | K48: 6280 | L48: 6010 | M48: 4270 | N48: 4280 | O48: 5150 | P48: 5830 | Q48: 5220 | R48: 8370 | S48: 6010
A49: Highland | B49: 1140 | C49: 1440 | D49: 1640 | E49: 1210 | F49: 1890 | G49: 1590 | H49: 1340 | I49: 900 | J49: 1410 | K49: 1310 | L49: 1280 | M49: 970 | N49: 880 | O49: 970 | P49: 1150 | Q49: 1020 | R49: 1590 | S49: 1030
A50: Lanarkshire | B50: 1360 | C50: 1520 | D50: 1640 | E50: 1130 | F50: 1720 | G50: 1500 | H50: 1420 | I50: 930 | J50: 1500 | K50: 1480 | L50: 1400 | M50: 1070 | N50: 980 | O50: 1080 | P50: 1300 | Q50: 1130 | R50: 1710 | S50: 1200
A51: Lothian | B51: 5600 | C51: 6610 | D51: 7310 | E51: 4730 | F51: 7170 | G51: 5300 | H51: 5500 | I51: 3840 | J51: 6170 | K51: 6250 | L51: 6190 | M51: 4410 | N51: 4250 | O51: 4700 | P51: 5440 | Q51: 5010 | R51: 8300 | S51: 5970
A52: Orkney | B52: 60 | C52: 80 | D52: 80 | E52: 50 | F52: 70 | G52: 60 | H52: 60 | I52: 40 | J52: 70 | K52: 80 | L52: 70 | M52: 50 | N52: 50 | O52: 40 | P52: 60 | Q52: 60 | R52: 90 | S52: 60
A53: Shetland | B53: 80 | C53: 80 | D53: 110 | E53: 60 | F53: 90 | G53: 70 | H53: 80 | I53: 70 | J53: 90 | K53: 90 | L53: 90 | M53: 60 | N53: 50 | O53: 70 | P53: 70 | Q53: 60 | R53: 100 | S53: 70
A54: Tayside | B54: 1500 | C54: 1830 | D54: 2020 | E54: 1650 | F54: 2490 | G54: 2190 | H54: 2240 | I54: 1460 | J54: 2310 | K54: 2270 | L54: 2110 | M54: 1500 | N54: 1430 | O54: 1590 | P54: 1540 | Q54: 1370 | R54: 2210 | S54: 1550
A55: Western Isles | B55: 80 | C55: 90 | D55: 100 | E55: 70 | F55: 110 | G55: 90 | H55: 70 | I55: 60 | J55: 80 | K55: 90 | L55: 80 | M55: 50 | N55: 50 | O55: 50 | P55: 70 | Q55: 60 | R55: 90 | S55: 60

Sheet 2011 Census country of birth
A1: 2011 Census - country of birth
A2: This worksheet contains two tables, presented next to each other vertically with one blank row between the tables.
A3: See notes [8], [9], [10], [11] which are explained in the Notes worksheet.
A4: Return to front page
A5: Council Area | B5: All people | C5: England | D5: Northern Ireland | E5: Scotland | F5: Wales | G5: Republic of Ireland | H5: Other EU: Member countries in March 2001 [Note 9] | I5: Other EU: Accession countries April 2001 to March 2011 | J5: Other countries
A6: Scotland | B6: 5295403 | C6: 459486 | D6: 36655 | E6: 4411884 | F6: 17381 | G6: 22952 | H6: 59031 | I6: 78254 | J6: 209760
A7: Aberdeen City | B7: 222793 | C7: 18008 | D7: 1374 | E7: 167180 | F7: 764 | G7: 1378 | H7: 4840 | I7: 9523 | J7: 19726
A8: Aberdeenshire | B8: 252973 | C8: 31561 | D8: 1366 | E8: 203656 | F8: 1285 | G8: 572 | H8: 2484 | I8: 5040 | J8: 7009
A9: Angus | B9: 115978 | C9: 10087 | D9: 649 | E9: 99596 | F9: 397 | G9: 250 | H9: 863 | I9: 1645 | J9: 2491
A10: Argyll and Bute | B10: 88166 | C10: 15613 | D10: 644 | E10: 67060 | F10: 529 | G10: 327 | H10: 879 | I10: 896 | J10: 2218
A11: City of Edinburgh | B11: 476626 | C11: 57725 | D11: 6363 | E11: 334626 | F11: 2118 | G11: 4743 | H11: 13461 | I11: 14803 | J11: 42787
A12: Clackmannanshire | B12: 51442 | C12: 4356 | D12: 318 | E12: 44431 | F12: 192 | G12: 154 | H12: 407 | I12: 587 | J12: 997
A13: Dumfries and Galloway | B13: 151324 | C13: 27186 | D13: 1547 | E13: 116687 | F13: 642 | G13: 456 | H13: 1084 | I13: 1183 | J13: 2539
A14: Dundee City | B14: 147268 | C14: 8882 | D14: 1539 | E14: 123242 | F14: 340 | G14: 572 | H14: 2203 | I14: 2785 | J14: 7705
A15: East Ayrshire | B15: 122767 | C15: 6602 | D15: 742 | E15: 112379 | F15: 260 | G15: 251 | H15: 605 | I15: 331 | J15: 1597
A16: East Dunbartonshire | B16: 105026 | C16: 5945 | D16: 593 | E16: 93728 | F16: 236 | G16: 428 | H16: 642 | I16: 218 | J16: 3236
A17: East Lothian | B17: 99717 | C17: 9877 | D17: 645 | E17: 83463 | F17: 414 | G17: 490 | H17: 1033 | I17: 1133 | J17: 2662
A18: East Renfrewshire | B18: 90574 | C18: 4618 | D18: 481 | E18: 80890 | F18: 211 | G18: 406 | H18: 549 | I18: 261 | J18: 3158
A19: Falkirk | B19: 155990 | C19: 8317 | D19: 718 | E19: 140890 | F19: 403 | G19: 394 | H19: 893 | I19: 1450 | J19: 2925
A20: Fife | B20: 365198 | C20: 35531 | D20: 2233 | E20: 305206 | F20: 1499 | G20: 1032 | H20: 4264 | I20: 3919 | J20: 11514
A21: Glasgow City | B21: 593245 | C21: 28263 | D21: 5040 | E21: 486243 | F21: 1015 | G21: 4339 | H21: 7219 | I21: 10475 | J21: 50651
A22: Highland | B22: 232132 | C22: 37058 | D22: 1318 | E22: 179271 | F22: 1267 | G22: 681 | H22: 2544 | I22: 4361 | J22: 5632
A23: Inverclyde | B23: 81485 | C23: 3189 | D23: 338 | E23: 75679 | F23: 149 | G23: 212 | H23: 484 | I23: 167 | J23: 1267
A24: Midlothian | B24: 83187 | C24: 5560 | D24: 456 | E24: 73594 | F24: 213 | G24: 277 | H24: 755 | I24: 571 | J24: 1761
A25: Moray | B25: 93295 | C25: 16580 | D25: 632 | E25: 70332 | F25: 853 | G25: 217 | H25: 1497 | I25: 1205 | J25: 1979
A26: Na h-Eileanan Siar | B26: 27684 | C26: 3099 | D26: 75 | E26: 23556 | F26: 141 | G26: 50 | H26: 186 | I26: 118 | J26: 459
A27: North Ayrshire | B27: 138146 | C27: 8562 | D27: 866 | E27: 124918 | F27: 337 | G27: 361 | H27: 852 | I27: 348 | J27: 1902
A28: North Lanarkshire | B28: 337727 | C28: 10286 | D28: 1131 | E28: 315754 | F28: 408 | G28: 746 | H28: 1200 | I28: 3122 | J28: 5080
A29: Orkney Islands | B29: 21349 | C29: 3757 | D29: 105 | E29: 16654 | F29: 111 | G29: 34 | H29: 197 | I29: 109 | J29: 382
A30: Perth and Kinross | B30: 146652 | C30: 18519 | D30: 1006 | E30: 116268 | F30: 624 | G30: 576 | H30: 1709 | I30: 3305 | J30: 4645
A31: Renfrewshire | B31: 174908 | C31: 6824 | D31: 886 | E31: 159373 | F31: 310 | G31: 685 | H31: 1139 | I31: 1418 | J31: 4273
A32: Scottish Borders | B32: 113870 | C32: 21161 | D32: 777 | E32: 85392 | F32: 560 | G32: 410 | H32: 1288 | I32: 1580 | J32: 2702
A33: Shetland Islands | B33: 23167 | C33: 3057 | D33: 72 | E33: 18691 | F33: 151 | G33: 158 | H33: 181 | I33: 357 | J33: 500
A34: South Ayrshire | B34: 112799 | C34: 8888 | D34: 1131 | E34: 98603 | F34: 334 | G34: 383 | H34: 898 | I34: 541 | J34: 2021
A35: South Lanarkshire | B35: 313830 | C35: 14274 | D35: 1323 | E35: 286940 | F35: 609 | G35: 991 | H35: 1682 | I35: 1584 | J35: 6427
A36: Stirling | B36: 90247 | C36: 10588 | D36: 872 | E36: 71994 | F36: 389 | G36: 360 | H36: 1216 | I36: 1002 | J36: 3826
A37: West Dunbartonshire | B37: 90720 | C37: 3590 | D37: 426 | E37: 83699 | F37: 156 | G37: 509 | H37: 382 | I37: 444 | J37: 1514
A38: West Lothian | B38: 175118 | C38: 11923 | D38: 989 | E38: 151889 | F38: 464 | G38: 510 | H38: 1395 | I38: 3773 | J38: 4175
A40: NHS Board Areas | B40: All people | C40: England | D40: Northern Ireland | E40: Scotland | F40: Wales | G40: Republic of Ireland | H40: Other EU: Member countries in March 2001 [note 9] | I40: Other EU: Accession countries April 2001 to March 2011 | J40: Other countries
A41: Scotland | B41: 5295403 | C41: 459486 | D41: 36655 | E41: 4411884 | F41: 17381 | G41: 22952 | H41: 59031 | I41: 78254 | J41: 209760
A42: Ayrshire and Arran | B42: 373712 | C42: 24052 | D42: 2739 | E42: 335900 | F42: 931 | G42: 995 | H42: 2355 | I42: 1220 | J42: 5520
A43: Borders | B43: 113870 | C43: 21161 | D43: 777 | E43: 85392 | F43: 560 | G43: 410 | H43: 1288 | I43: 1580 | J43: 2702
A44: Dumfries and Galloway | B44: 151324 | C44: 27186 | D44: 1547 | E44: 116687 | F44: 642 | G44: 456 | H44: 1084 | I44: 1183 | J44: 2539
A45: Fife | B45: 365198 | C45: 35531 | D45: 2233 | E45: 305206 | F45: 1499 | G45: 1032 | H45: 4264 | I45: 3919 | J45: 11514
A46: Forth Valley | B46: 297636 | C46: 23278 | D46: 1910 | E46: 257245 | F46: 986 | G46: 909 | H46: 2519 | I46: 3041 | J46: 7748
A47: Grampian | B47: 569061 | C47: 66149 | D47: 3372 | E47: 441168 | F47: 2902 | G47: 2167 | H47: 8821 | I47: 15768 | J47: 28714
A48: Greater Glasgow and Clyde | B48: 1213408 | C48: 55024 | D48: 8072 | E48: 1051125 | F48: 2181 | G48: 6938 | H48: 10784 | I48: 13317 | J48: 65967
A49: Highland | B49: 320298 | C49: 52671 | D49: 1962 | E49: 246331 | F49: 1796 | G49: 1008 | H49: 3423 | I49: 5257 | J49: 7850
A50: Lanarkshire | B50: 574637 | C50: 21997 | D50: 2148 | E50: 531661 | F50: 914 | G50: 1379 | H50: 2520 | I50: 4374 | J50: 9644
A51: Lothian | B51: 834350 | C51: 85080 | D51: 8453 | E51: 643292 | F51: 3208 | G51: 6020 | H51: 16638 | I51: 20278 | J51: 51381
A52: Orkney | B52: 21349 | C52: 3757 | D52: 105 | E52: 16654 | F52: 111 | G52: 34 | H52: 197 | I52: 109 | J52: 382
A53: Shetland | B53: 23167 | C53: 3057 | D53: 72 | E53: 18691 | F53: 151 | G53: 158 | H53: 181 | I53: 357 | J53: 500
A54: Tayside | B54: 409709 | C54: 37444 | D54: 3190 | E54: 338976 | F54: 1359 | G54: 1396 | H54: 4771 | I54: 7733 | J54: 14840
A55: Western Isles | B55: 27684 | C55: 3099 | D55: 75 | E55: 23556 | F55: 141 | G55: 50 | H55: 186 | I55: 118 | J55: 459

Sheet Pop born outside UK
A1: Estimate of resident population born outside the UK, calendar year to 2004 to 2021
A2: This worksheet contains one table.
A3: See notes [12], [13], [14], [15], [16] which are explained in the Notes worksheet. Some shorthand is used in this table, [x] = not available, [c] = confidential, [low] = zero due to rounding.
A4: Return to front page
A5: Council Area | B5: 2004 | C5: 2005 | D5: 2006 | E5: 2007 | F5: 2008 | G5: 2009 | H5: 2010 | I5: 2011 | J5: 2012 | K5: 2013 | L5: 2014 | M5: 2015 | N5: 2016 | O5: 2017 | P5: 2018 | Q5: 2019 | R5: 2020 | S5: 2021
A6: Scotland | B6: 203000 | C6: 221000 | D6: 227000 | E6: 254000 | F6: 288000 | G6: 319000 | H6: 323000 | I6: 339000 | J6: 374000 | K6: 353000 | L6: 381000 | M6: 393000 | N6: 457000 | O6: 477000 | P6: 469000 | Q6: 502000 | R6: 516000 | S6: [x]
A7: Aberdeen City | B7: 12000 | C7: 12000 | D7: 14000 | E7: 20000 | F7: 25000 | G7: 32000 | H7: 30000 | I7: 32000 | J7: 32000 | K7: 42000 | L7: 42000 | M7: 39000 | N7: 48000 | O7: 55000 | P7: 44000 | Q7: 50000 | R7: 56000 | S7: [x]
A8: Aberdeenshire | B8: 7000 | C8: 6000 | D8: 8000 | E8: 10000 | F8: 14000 | G8: 15000 | H8: 14000 | I8: 17000 | J8: 15000 | K8: 11000 | L8: 13000 | M8: 13000 | N8: 23000 | O8: 21000 | P8: 17000 | Q8: 22000 | R8: 24000 | S8: [x]
A9: Angus | B9: 3000 | C9: 3000 | D9: 3000 | E9: 4000 | F9: 5000 | G9: 5000 | H9: 4000 | I9: 4000 | J9: 4000 | K9: 6000 | L9: 5000 | M9: 6000 | N9: 6000 | O9: 7000 | P9: 8000 | Q9: 7000 | R9: 5000 | S9: [x]
A10: Argyll and Bute | B10: 2000 | C10: 3000 | D10: 3000 | E10: 3000 | F10: 4000 | G10: 3000 | H10: 4000 | I10: 4000 | J10: 4000 | K10: 4000 | L10: 4000 | M10: 3000 | N10: 5000 | O10: 4000 | P10: 5000 | Q10: 6000 | R10: 5000 | S10: [x]
A11: City of Edinburgh | B11: 39000 | C11: 46000 | D11: 48000 | E11: 46000 | F11: 57000 | G11: 62000 | H11: 62000 | I11: 66000 | J11: 69000 | K11: 67000 | L11: 65000 | M11: 77000 | N11: 90000 | O11: 102000 | P11: 108000 | Q11: 103000 | R11: 116000 | S11: [x]
A12: Clackmannanshire | B12: 1000 | C12: 1000 | D12: 1000 | E12: 1000 | F12: 1000 | G12: 2000 | H12: 2000 | I12: 2000 | J12: 2000 | K12: 2000 | L12: 3000 | M12: 3000 | N12: 4000 | O12: 3000 | P12: 4000 | Q12: 3000 | R12: 3000 | S12: [x]
A13: Dumfries and Galloway | B13: 4000 | C13: 4000 | D13: 3000 | E13: 4000 | F13: 6000 | G13: 5000 | H13: 6000 | I13: 5000 | J13: 6000 | K13: 4000 | L13: 5000 | M13: 5000 | N13: 6000 | O13: 7000 | P13: 7000 | Q13: 6000 | R13: 8000 | S13: [x]
A14: Dundee City | B14: 6000 | C14: 7000 | D14: 9000 | E14: 8000 | F14: 9000 | G14: 11000 | H14: 12000 | I14: 14000 | J14: 14000 | K14: 15000 | L14: 18000 | M14: 17000 | N14: 12000 | O14: 15000 | P14: 12000 | Q14: 16000 | R14: 18000 | S14: [x]
A15: East Ayrshire | B15: 3000 | C15: 2000 | D15: 3000 | E15: 2000 | F15: 3000 | G15: 3000 | H15: 2000 | I15: 2000 | J15: 2000 | K15: 2000 | L15: 3000 | M15: 2000 | N15: 4000 | O15: 4000 | P15: 5000 | Q15: 5000 | R15: 5000 | S15: [x]
A16: East Dunbartonshire | B16: 3000 | C16: 4000 | D16: 4000 | E16: 4000 | F16: 5000 | G16: 4000 | H16: 4000 | I16: 4000 | J16: 5000 | K16: 5000 | L16: 6000 | M16: 5000 | N16: 5000 | O16: 6000 | P16: 6000 | Q16: 6000 | R16: 6000 | S16: [x]
A17: East Lothian | B17: 3000 | C17: 3000 | D17: 4000 | E17: 4000 | F17: 4000 | G17: 4000 | H17: 5000 | I17: 6000 | J17: 6000 | K17: 6000 | L17: 5000 | M17: 5000 | N17: 5000 | O17: 6000 | P17: 6000 | Q17: 7000 | R17: 9000 | S17: [x]
A18: East Renfrewshire | B18: 3000 | C18: 3000 | D18: 4000 | E18: 4000 | F18: 3000 | G18: 4000 | H18: 5000 | I18: 4000 | J18: 4000 | K18: 3000 | L18: 4000 | M18: 6000 | N18: 7000 | O18: 7000 | P18: 7000 | Q18: 7000 | R18: 6000 | S18: [x]
A19: Falkirk | B19: 4000 | C19: 3000 | D19: 2000 | E19: 4000 | F19: 3000 | G19: 5000 | H19: 6000 | I19: 7000 | J19: 7000 | K19: 7000 | L19: 7000 | M19: 8000 | N19: 9000 | O19: 8000 | P19: 8000 | Q19: 9000 | R19: 8000 | S19: [x]
A20: Fife | B20: 13000 | C20: 16000 | D20: 12000 | E20: 10000 | F20: 10000 | G20: 14000 | H20: 21000 | I20: 16000 | J20: 20000 | K20: 20000 | L20: 18000 | M20: 20000 | N20: 30000 | O20: 19000 | P20: 23000 | Q20: 26000 | R20: 30000 | S20: [x]
A21: Glasgow City | B21: 42000 | C21: 46000 | D21: 44000 | E21: 55000 | F21: 60000 | G21: 70000 | H21: 63000 | I21: 64000 | J21: 86000 | K21: 66000 | L21: 80000 | M21: 83000 | N21: 91000 | O21: 91000 | P21: 96000 | Q21: 103000 | R21: 90000 | S21: [x]
A22: Highland | B22: 6000 | C22: 7000 | D22: 7000 | E22: 8000 | F22: 9000 | G22: 8000 | H22: 9000 | I22: 11000 | J22: 12000 | K22: 11000 | L22: 15000 | M22: 10000 | N22: 13000 | O22: 14000 | P22: 14000 | Q22: 14000 | R22: 17000 | S22: [x]
A23: Inverclyde | B23: 3000 | C23: 2000 | D23: 2000 | E23: 2000 | F23: 2000 | G23: 2000 | H23: 2000 | I23: 2000 | J23: 3000 | K23: 2000 | L23: 2000 | M23: 2000 | N23: 2000 | O23: 1000 | P23: 2000 | Q23: 2000 | R23: 3000 | S23: [x]
A24: Midlothian | B24: 1000 | C24: 2000 | D24: 2000 | E24: 2000 | F24: 3000 | G24: 4000 | H24: 3000 | I24: 3000 | J24: 3000 | K24: 3000 | L24: 4000 | M24: 4000 | N24: 4000 | O24: 6000 | P24: 7000 | Q24: 8000 | R24: 6000 | S24: [x]
A25: Moray | B25: 3000 | C25: 4000 | D25: 4000 | E25: 4000 | F25: 4000 | G25: 5000 | H25: 5000 | I25: 6000 | J25: 5000 | K25: 5000 | L25: 4000 | M25: 4000 | N25: 5000 | O25: 4000 | P25: 5000 | Q25: 5000 | R25: 5000 | S25: [x]
A26: Na h-Eileanan Siar | B26: [low] | C26: [low] | D26: 1000 | E26: [low] | F26: [low] | G26: 1000 | H26: [c] | I26: [c] | J26: 1000 | K26: 1000 | L26: 1000 | M26: [low] | N26: 1000 | O26: 1000 | P26: 1000 | Q26: [low] | R26: 1000 | S26: [x]
A27: North Ayrshire | B27: 2000 | C27: 3000 | D27: 3000 | E27: 3000 | F27: 2000 | G27: 2000 | H27: 2000 | I27: 4000 | J27: 3000 | K27: 4000 | L27: 3000 | M27: 2000 | N27: 4000 | O27: 4000 | P27: 3000 | Q27: 3000 | R27: 3000 | S27: [x]
A28: North Lanarkshire | B28: 8000 | C28: 7000 | D28: 6000 | E28: 5000 | F28: 12000 | G28: 10000 | H28: 8000 | I28: 7000 | J28: 8000 | K28: 7000 | L28: 11000 | M28: 14000 | N28: 15000 | O28: 15000 | P28: 13000 | Q28: 16000 | R28: 16000 | S28: [x]
A29: Orkney Islands | B29: [low] | C29: 1000 | D29: 1000 | E29: 1000 | F29: [low] | G29: [low] | H29: [low] | I29: [low] | J29: [low] | K29: [low] | L29: [low] | M29: [low] | N29: 1000 | O29: 1000 | P29: 1000 | Q29: 1000 | R29: 1000 | S29: [x]
A30: Perth and Kinross | B30: 5000 | C30: 6000 | D30: 5000 | E30: 7000 | F30: 7000 | G30: 7000 | H30: 9000 | I30: 8000 | J30: 10000 | K30: 11000 | L30: 11000 | M30: 14000 | N30: 10000 | O30: 12000 | P30: 12000 | Q30: 14000 | R30: 13000 | S30: [x]
A31: Renfrewshire | B31: 5000 | C31: 4000 | D31: 5000 | E31: 7000 | F31: 9000 | G31: 7000 | H31: 7000 | I31: 11000 | J31: 10000 | K31: 9000 | L31: 11000 | M31: 9000 | N31: 12000 | O31: 11000 | P31: 10000 | Q31: 10000 | R31: 8000 | S31: [x]
A32: Scottish Borders | B32: 4000 | C32: 3000 | D32: 4000 | E32: 5000 | F32: 5000 | G32: 6000 | H32: 7000 | I32: 5000 | J32: 5000 | K32: 6000 | L32: 6000 | M32: 6000 | N32: 6000 | O32: 9000 | P32: 8000 | Q32: 7000 | R32: 4000 | S32: [x]
A33: Shetland Islands | B33: 1000 | C33: [low] | D33: [low] | E33: [low] | F33: [low] | G33: [low] | H33: 1000 | I33: [low] | J33: [low] | K33: 1000 | L33: 1000 | M33: [low] | N33: [low] | O33: 1000 | P33: 1000 | Q33: [low] | R33: 1000 | S33: [x]
A34: South Ayrshire | B34: 3000 | C34: 2000 | D34: 3000 | E34: 3000 | F34: 3000 | G34: 4000 | H34: 4000 | I34: 3000 | J34: 4000 | K34: 3000 | L34: 4000 | M34: 4000 | N34: 4000 | O34: 5000 | P34: 4000 | Q34: 5000 | R34: 5000 | S34: [x]
A35: South Lanarkshire | B35: 6000 | C35: 7000 | D35: 8000 | E35: 11000 | F35: 9000 | G35: 8000 | H35: 11000 | I35: 11000 | J35: 12000 | K35: 11000 | L35: 9000 | M35: 11000 | N35: 12000 | O35: 10000 | P35: 9000 | Q35: 13000 | R35: 14000 | S35: [x]
A36: Stirling | B36: 4000 | C36: 4000 | D36: 6000 | E36: 5000 | F36: 3000 | G36: 4000 | H36: 6000 | I36: 7000 | J36: 7000 | K36: 6000 | L36: 7000 | M36: 8000 | N36: 6000 | O36: 7000 | P36: 7000 | Q36: 6000 | R36: 5000 | S36: [x]
A37: West Dunbartonshire | B37: 2000 | C37: 2000 | D37: 3000 | E37: 3000 | F37: 3000 | G37: 4000 | H37: 3000 | I37: 3000 | J37: 3000 | K37: 3000 | L37: 3000 | M37: 2000 | N37: 4000 | O37: 4000 | P37: 3000 | Q37: 5000 | R37: 3000 | S37: [x]
A38: West Lothian | B38: 5000 | C38: 6000 | D38: 7000 | E38: 10000 | F38: 8000 | G38: 8000 | H38: 8000 | I38: 12000 | J38: 11000 | K38: 11000 | L38: 10000 | M38: 10000 | N38: 15000 | O38: 17000 | P38: 15000 | Q38: 16000 | R38: 20000 | S38: [x]

Sheet Non-British Population
A1: Estimate of resident non-British population, calendar year to 2004 to 2021
A2: This worksheet contains one table.
A3: See notes [12], [13], [14], [15] which are explained in the Notes worksheet. Some shorthand is used in this table, [x] = not available, [c] = confidential, [low] = zero due to rounding.
A4: Return to front page
A5: Council Area | B5: 2004 | C5: 2005 | D5: 2006 | E5: 2007 | F5: 2008 | G5: 2009 | H5: 2010 | I5: 2011 | J5: 2012 | K5: 2013 | L5: 2014 | M5: 2015 | N5: 2016 | O5: 2017 | P5: 2018 | Q5: 2019 | R5: 2020 | S5: 2021
A6: Scotland | B6: 126000 | C6: 137000 | D6: 134000 | E6: 169000 | F6: 196000 | G6: 229000 | H6: 245000 | I6: 257000 | J6: 281000 | K6: 264000 | L6: 282000 | M6: 295000 | N6: 337000 | O6: 378000 | P6: 352000 | Q6: 388000 | R6: 406000 | S6: [x]
A7: Aberdeen City | B7: 8000 | C7: 9000 | D7: 10000 | E7: 17000 | F7: 22000 | G7: 28000 | H7: 25000 | I7: 30000 | J7: 31000 | K7: 38000 | L7: 39000 | M7: 36000 | N7: 43000 | O7: 48000 | P7: 38000 | Q7: 41000 | R7: 46000 | S7: [x]
A8: Aberdeenshire | B8: 4000 | C8: 4000 | D8: 4000 | E8: 6000 | F8: 9000 | G8: 11000 | H8: 10000 | I8: 11000 | J8: 11000 | K8: 7000 | L8: 10000 | M8: 9000 | N8: 16000 | O8: 16000 | P8: 12000 | Q8: 16000 | R8: 17000 | S8: [x]
A9: Angus | B9: 1000 | C9: 1000 | D9: 2000 | E9: 2000 | F9: 3000 | G9: 3000 | H9: 3000 | I9: 2000 | J9: 2000 | K9: 5000 | L9: 5000 | M9: 5000 | N9: 4000 | O9: 5000 | P9: 5000 | Q9: 5000 | R9: 3000 | S9: [x]
A10: Argyll and Bute | B10: 1000 | C10: 1000 | D10: 1000 | E10: 1000 | F10: 2000 | G10: 2000 | H10: 2000 | I10: 2000 | J10: 2000 | K10: 2000 | L10: 2000 | M10: 2000 | N10: 3000 | O10: 2000 | P10: 2000 | Q10: 4000 | R10: 4000 | S10: [x]
A11: City of Edinburgh | B11: 26000 | C11: 32000 | D11: 32000 | E11: 32000 | F11: 42000 | G11: 45000 | H11: 55000 | I11: 54000 | J11: 56000 | K11: 52000 | L11: 51000 | M11: 60000 | N11: 69000 | O11: 85000 | P11: 81000 | Q11: 84000 | R11: 100000 | S11: [x]
A12: Clackmannanshire | B12: 1000 | C12: [low] | D12: 1000 | E12: 1000 | F12: 1000 | G12: 1000 | H12: 2000 | I12: 2000 | J12: 2000 | K12: 2000 | L12: 2000 | M12: 2000 | N12: 2000 | O12: 1000 | P12: 2000 | Q12: 2000 | R12: 3000 | S12: [x]
A13: Dumfries and Galloway | B13: 2000 | C13: 2000 | D13: 2000 | E13: 2000 | F13: 3000 | G13: 3000 | H13: 3000 | I13: 2000 | J13: 4000 | K13: 2000 | L13: 3000 | M13: 2000 | N13: 3000 | O13: 4000 | P13: 5000 | Q13: 3000 | R13: 4000 | S13: [x]
A14: Dundee City | B14: 4000 | C14: 5000 | D14: 6000 | E14: 5000 | F14: 5000 | G14: 7000 | H14: 10000 | I14: 12000 | J14: 12000 | K14: 14000 | L14: 17000 | M14: 14000 | N14: 10000 | O14: 14000 | P14: 9000 | Q14: 12000 | R14: 14000 | S14: [x]
A15: East Ayrshire | B15: 1000 | C15: 1000 | D15: 2000 | E15: 1000 | F15: 1000 | G15: 1000 | H15: 1000 | I15: [low] | J15: 1000 | K15: 1000 | L15: 2000 | M15: 2000 | N15: 3000 | O15: 2000 | P15: 3000 | Q15: 3000 | R15: 3000 | S15: [x]
A16: East Dunbartonshire | B16: 2000 | C16: 2000 | D16: 2000 | E16: 2000 | F16: 2000 | G16: 2000 | H16: 2000 | I16: 2000 | J16: 3000 | K16: 3000 | L16: 2000 | M16: 2000 | N16: 2000 | O16: 3000 | P16: 3000 | Q16: 4000 | R16: 4000 | S16: [x]
A17: East Lothian | B17: 1000 | C17: 2000 | D17: 2000 | E17: 3000 | F17: 2000 | G17: 2000 | H17: 3000 | I17: 3000 | J17: 3000 | K17: 4000 | L17: 4000 | M17: 3000 | N17: 3000 | O17: 4000 | P17: 4000 | Q17: 5000 | R17: 6000 | S17: [x]
A18: East Renfrewshire | B18: 1000 | C18: 2000 | D18: 2000 | E18: 2000 | F18: 2000 | G18: 3000 | H18: 3000 | I18: 2000 | J18: 3000 | K18: 1000 | L18: 2000 | M18: 4000 | N18: 4000 | O18: 4000 | P18: 4000 | Q18: 3000 | R18: 3000 | S18: [x]
A19: Falkirk | B19: 2000 | C19: 1000 | D19: 1000 | E19: 2000 | F19: 2000 | G19: 3000 | H19: 4000 | I19: 5000 | J19: 5000 | K19: 5000 | L19: 5000 | M19: 6000 | N19: 6000 | O19: 6000 | P19: 6000 | Q19: 7000 | R19: 5000 | S19: [x]
A20: Fife | B20: 7000 | C20: 9000 | D20: 7000 | E20: 6000 | F20: 3000 | G20: 7000 | H20: 11000 | I20: 10000 | J20: 12000 | K20: 15000 | L20: 12000 | M20: 14000 | N20: 21000 | O20: 10000 | P20: 13000 | Q20: 18000 | R20: 25000 | S20: [x]
A21: Glasgow City | B21: 34000 | C21: 35000 | D21: 27000 | E21: 41000 | F21: 47000 | G21: 59000 | H21: 57000 | I21: 56000 | J21: 68000 | K21: 48000 | L21: 55000 | M21: 67000 | N21: 69000 | O21: 76000 | P21: 82000 | Q21: 83000 | R21: 75000 | S21: [x]
A22: Highland | B22: 2000 | C22: 3000 | D22: 3000 | E22: 4000 | F22: 5000 | G22: 5000 | H22: 6000 | I22: 9000 | J22: 8000 | K22: 8000 | L22: 8000 | M22: 6000 | N22: 8000 | O22: 11000 | P22: 11000 | Q22: 12000 | R22: 11000 | S22: [x]
A23: Inverclyde | B23: 2000 | C23: 1000 | D23: 1000 | E23: 1000 | F23: 1000 | G23: 2000 | H23: 1000 | I23: 2000 | J23: 2000 | K23: 2000 | L23: 1000 | M23: 1000 | N23: 1000 | O23: 1000 | P23: 1000 | Q23: 1000 | R23: 1000 | S23: [x]
A24: Midlothian | B24: 1000 | C24: 1000 | D24: 1000 | E24: 1000 | F24: 2000 | G24: 2000 | H24: 1000 | I24: 2000 | J24: 2000 | K24: 2000 | L24: 3000 | M24: 3000 | N24: 3000 | O24: 5000 | P24: 5000 | Q24: 6000 | R24: 3000 | S24: [x]
A25: Moray | B25: 1000 | C25: 2000 | D25: 2000 | E25: 3000 | F25: 3000 | G25: 4000 | H25: 4000 | I25: 4000 | J25: 4000 | K25: 3000 | L25: 2000 | M25: 3000 | N25: 4000 | O25: 4000 | P25: 3000 | Q25: 3000 | R25: 3000 | S25: [x]
A26: Na h-Eileanan Siar | B26: [c] | C26: [c] | D26: [c] | E26: [c] | F26: [low] | G26: [low] | H26: [c] | I26: [c] | J26: [low] | K26: [low] | L26: [c] | M26: [c] | N26: [low] | O26: [low] | P26: 1000 | Q26: [low] | R26: [low] | S26: [x]
A27: North Ayrshire | B27: 2000 | C27: 2000 | D27: 2000 | E27: 2000 | F27: 2000 | G27: 1000 | H27: 2000 | I27: 2000 | J27: 2000 | K27: 2000 | L27: 2000 | M27: 1000 | N27: 2000 | O27: 2000 | P27: 1000 | Q27: 2000 | R27: 2000 | S27: [x]
A28: North Lanarkshire | B28: 5000 | C28: 4000 | D28: 3000 | E28: 3000 | F28: 9000 | G28: 7000 | H28: 7000 | I28: 5000 | J28: 6000 | K28: 6000 | L28: 9000 | M28: 9000 | N28: 9000 | O28: 13000 | P28: 10000 | Q28: 13000 | R28: 18000 | S28: [x]
A29: Orkney Islands | B29: [c] | C29: [c] | D29: [low] | E29: [low] | F29: [c] | G29: [low] | H29: [low] | I29: [c] | J29: [c] | K29: [c] | L29: [c] | M29: [c] | N29: [low] | O29: [low] | P29: 1000 | Q29: [c] | R29: [c] | S29: [x]
A30: Perth and Kinross | B30: 2000 | C30: 3000 | D30: 3000 | E30: 4000 | F30: 4000 | G30: 4000 | H30: 5000 | I30: 5000 | J30: 7000 | K30: 7000 | L30: 8000 | M30: 10000 | N30: 8000 | O30: 9000 | P30: 9000 | Q30: 11000 | R30: 9000 | S30: [x]
A31: Renfrewshire | B31: 3000 | C31: 2000 | D31: 3000 | E31: 5000 | F31: 6000 | G31: 5000 | H31: 5000 | I31: 8000 | J31: 8000 | K31: 7000 | L31: 9000 | M31: 8000 | N31: 10000 | O31: 8000 | P31: 7000 | Q31: 7000 | R31: 6000 | S31: [x]
A32: Scottish Borders | B32: 2000 | C32: 1000 | D32: 3000 | E32: 4000 | F32: 3000 | G32: 3000 | H32: 5000 | I32: 3000 | J32: 3000 | K32: 4000 | L32: 5000 | M32: 4000 | N32: 4000 | O32: 7000 | P32: 6000 | Q32: 5000 | R32: 3000 | S32: [x]
A33: Shetland Islands | B33: [low] | C33: [low] | D33: [low] | E33: [c] | F33: [low] | G33: [low] | H33: [low] | I33: [low] | J33: [low] | K33: [low] | L33: [low] | M33: [low] | N33: [low] | O33: 1000 | P33: 1000 | Q33: [low] | R33: 1000 | S33: [x]
A34: South Ayrshire | B34: 2000 | C34: 1000 | D34: 1000 | E34: 2000 | F34: 2000 | G34: 2000 | H34: 3000 | I34: 2000 | J34: 2000 | K34: 2000 | L34: 2000 | M34: 2000 | N34: 3000 | O34: 4000 | P34: 3000 | Q34: 4000 | R34: 4000 | S34: [x]
A35: South Lanarkshire | B35: 3000 | C35: 3000 | D35: 3000 | E35: 7000 | F35: 5000 | G35: 5000 | H35: 5000 | I35: 6000 | J35: 7000 | K35: 7000 | L35: 6000 | M35: 7000 | N35: 7000 | O35: 8000 | P35: 7000 | Q35: 8000 | R35: 9000 | S35: [x]
A36: Stirling | B36: 2000 | C36: 2000 | D36: 4000 | E36: 2000 | F36: 2000 | G36: 2000 | H36: 4000 | I36: 4000 | J36: 5000 | K36: 4000 | L36: 6000 | M36: 7000 | N36: 4000 | O36: 5000 | P36: 5000 | Q36: 6000 | R36: 3000 | S36: [x]
A37: West Dunbartonshire | B37: 1000 | C37: 1000 | D37: 2000 | E37: 2000 | F37: 2000 | G37: 2000 | H37: 1000 | I37: 1000 | J37: 2000 | K37: 2000 | L37: 2000 | M37: 1000 | N37: 2000 | O37: 3000 | P37: 2000 | Q37: 4000 | R37: 3000 | S37: [x]
A38: West Lothian | B38: 3000 | C38: 4000 | D38: 5000 | E38: 7000 | F38: 5000 | G38: 7000 | H38: 6000 | I38: 9000 | J38: 9000 | K38: 8000 | L38: 8000 | M38: 8000 | N38: 12000 | O38: 16000 | P38: 11000 | Q38: 14000 | R38: 18000 | S38: [x]

Sheet NINo
A1: National Insurance Number (NINo) allocations to adult overseas nationals entering the UK, calendar year to 2021
A2: This worksheet contains one table.
A3: See notes [16], [17], [18], [19], [20], [21], [22] which are explained in the Notes worksheet. Some shorthand is used in this table, [x] = not available
A4: Return to front page
A5: Calendar Year Registrations | B5: 2004 | C5: 2005 | D5: 2006 | E5: 2007 | F5: 2008 | G5: 2009 | H5: 2010 | I5: 2011 | J5: 2012 | K5: 2013 | L5: 2014 | M5: 2015 | N5: 2016 | O5: 2017 | P5: 2018 | Q5: 2019 | R5: 2020 | S5: 2021
A6: Scotland | B6: 19080 | C6: 39410 | D6: 45490 | E6: 57080 | F6: 46110 | G6: 41610 | H6: 39420 | I6: 39500 | J6: 34850 | K6: 39470 | L6: 43600 | M6: 46570 | N6: 45200 | O6: 40510 | P6: 38010 | Q6: 48190 | R6: 17100 | S6: [x]
A7: Aberdeen City | B7: 1900 | C7: 3580 | D7: 4960 | E7: 6360 | F7: 5020 | G7: 4830 | H7: 4230 | I7: 4600 | J7: 4110 | K7: 4930 | L7: 5460 | M7: 5210 | N7: 4140 | O7: 3230 | P7: 2940 | Q7: 4020 | R7: 1730 | S7: [x]
A8: Aberdeenshire | B8: 740 | C8: 1610 | D8: 1600 | E8: 2000 | F8: 1690 | G8: 1680 | H8: 1620 | I8: 1500 | J8: 1290 | K8: 1610 | L8: 1680 | M8: 1730 | N8: 1450 | O8: 1180 | P8: 1000 | Q8: 1100 | R8: 360 | S8: [x]
A9: Angus | B9: 370 | C9: 790 | D9: 660 | E9: 920 | F9: 1260 | G9: 1350 | H9: 1570 | I9: 1140 | J9: 1090 | K9: 1240 | L9: 1220 | M9: 1310 | N9: 1180 | O9: 1080 | P9: 1090 | Q9: 1080 | R9: 120 | S9: [x]
A10: Argyll and Bute | B10: 350 | C10: 680 | D10: 780 | E10: 770 | F10: 560 | G10: 530 | H10: 520 | I10: 360 | J10: 340 | K10: 460 | L10: 460 | M10: 570 | N10: 560 | O10: 490 | P10: 440 | Q10: 520 | R10: 110 | S10: [x]
A11: City of Edinburgh | B11: 5090 | C11: 11060 | D11: 11950 | E11: 13630 | F11: 10330 | G11: 10450 | H11: 9820 | I11: 10590 | J11: 9710 | K11: 11360 | L11: 11340 | M11: 11930 | N11: 12000 | O11: 10200 | P11: 10000 | Q11: 12470 | R11: 4550 | S11: [x]
A12: Clackmannanshire | B12: 30 | C12: 110 | D12: 160 | E12: 210 | F12: 170 | G12: 120 | H12: 100 | I12: 90 | J12: 100 | K12: 140 | L12: 90 | M12: 110 | N12: 140 | O12: 120 | P12: 80 | Q12: 120 | R12: 40 | S12: [x]
A13: Dumfries and Galloway | B13: 260 | C13: 630 | D13: 590 | E13: 800 | F13: 420 | G13: 350 | H13: 310 | I13: 310 | J13: 250 | K13: 280 | L13: 310 | M13: 340 | N13: 380 | O13: 470 | P13: 260 | Q13: 280 | R13: 80 | S13: [x]
A14: Dundee City | B14: 750 | C14: 1480 | D14: 1480 | E14: 1940 | F14: 1660 | G14: 1500 | H14: 1540 | I14: 1490 | J14: 1090 | K14: 1300 | L14: 1240 | M14: 1340 | N14: 1340 | O14: 1120 | P14: 1130 | Q14: 1450 | R14: 650 | S14: [x]
A15: East Ayrshire | B15: 100 | C15: 160 | D15: 140 | E15: 190 | F15: 130 | G15: 100 | H15: 90 | I15: 100 | J15: 100 | K15: 80 | L15: 90 | M15: 90 | N15: 160 | O15: 190 | P15: 90 | Q15: 150 | R15: 50 | S15: [x]
A16: East Dunbartonshire | B16: 130 | C16: 170 | D16: 220 | E16: 270 | F16: 140 | G16: 150 | H16: 150 | I16: 130 | J16: 90 | K16: 90 | L16: 110 | M16: 110 | N16: 170 | O16: 130 | P16: 100 | Q16: 140 | R16: 50 | S16: [x]
A17: East Lothian | B17: 160 | C17: 280 | D17: 350 | E17: 490 | F17: 490 | G17: 420 | H17: 400 | I17: 310 | J17: 280 | K17: 370 | L17: 450 | M17: 510 | N17: 550 | O17: 560 | P17: 500 | Q17: 640 | R17: 170 | S17: [x]
A18: East Renfrewshire | B18: 100 | C18: 130 | D18: 190 | E18: 230 | F18: 100 | G18: 110 | H18: 110 | I18: 100 | J18: 80 | K18: 100 | L18: 120 | M18: 140 | N18: 170 | O18: 100 | P18: 120 | Q18: 160 | R18: 60 | S18: [x]
A19: Falkirk | B19: 160 | C19: 390 | D19: 530 | E19: 670 | F19: 430 | G19: 320 | H19: 340 | I19: 330 | J19: 380 | K19: 380 | L19: 410 | M19: 540 | N19: 460 | O19: 470 | P19: 320 | Q19: 430 | R19: 140 | S19: [x]
A20: Fife | B20: 730 | C20: 1410 | D20: 1800 | E20: 2450 | F20: 1950 | G20: 1650 | H20: 1810 | I20: 1900 | J20: 1890 | K20: 1970 | L20: 2450 | M20: 2620 | N20: 2330 | O20: 1980 | P20: 1820 | Q20: 2310 | R20: 620 | S20: [x]
A21: Glasgow City | B21: 3290 | C21: 6250 | D21: 7840 | E21: 10700 | F21: 8820 | G21: 7650 | H21: 7940 | I21: 7650 | J21: 6600 | K21: 6820 | L21: 8400 | M21: 9310 | N21: 8940 | O21: 9440 | P21: 9900 | Q21: 13610 | R21: 5510 | S21: [x]
A22: Highland | B22: 1220 | C22: 2690 | D22: 2360 | E22: 2960 | F22: 2140 | G22: 1560 | H22: 1310 | I22: 1280 | J22: 1200 | K22: 1290 | L22: 1600 | M22: 1680 | N22: 1730 | O22: 1610 | P22: 1430 | Q22: 1450 | R22: 310 | S22: [x]
A23: Inverclyde | B23: 210 | C23: 330 | D23: 230 | E23: 270 | F23: 250 | G23: 150 | H23: 160 | I23: 130 | J23: 100 | K23: 80 | L23: 90 | M23: 100 | N23: 180 | O23: 190 | P23: 70 | Q23: 140 | R23: 40 | S23: [x]
A24: Midlothian | B24: 80 | C24: 210 | D24: 250 | E24: 240 | F24: 180 | G24: 150 | H24: 200 | I24: 170 | J24: 150 | K24: 180 | L24: 260 | M24: 240 | N24: 290 | O24: 220 | P24: 270 | Q24: 280 | R24: 100 | S24: [x]
A25: Moray | B25: 240 | C25: 550 | D25: 520 | E25: 560 | F25: 380 | G25: 260 | H25: 270 | I25: 200 | J25: 220 | K25: 320 | L25: 310 | M25: 310 | N25: 260 | O25: 230 | P25: 230 | Q25: 240 | R25: 70 | S25: [x]
A26: Na h-Eileanan Siar | B26: 60 | C26: 130 | D26: 90 | E26: 130 | F26: 70 | G26: 50 | H26: 40 | I26: 40 | J26: 50 | K26: 30 | L26: 60 | M26: 70 | N26: 60 | O26: 80 | P26: 60 | Q26: 50 | R26: 20 | S26: [x]
A27: North Ayrshire | B27: 240 | C27: 310 | D27: 280 | E27: 340 | F27: 220 | G27: 230 | H27: 170 | I27: 170 | J27: 110 | K27: 130 | L27: 130 | M27: 180 | N27: 210 | O27: 190 | P27: 120 | Q27: 140 | R27: 40 | S27: [x]
A28: North Lanarkshire | B28: 300 | C28: 720 | D28: 1100 | E28: 1650 | F28: 1170 | G28: 680 | H28: 540 | I28: 690 | J28: 560 | K28: 590 | L28: 790 | M28: 1030 | N28: 1300 | O28: 990 | P28: 690 | Q28: 880 | R28: 270 | S28: [x]
A29: Orkney Islands | B29: 30 | C29: 60 | D29: 70 | E29: 110 | F29: 60 | G29: 60 | H29: 50 | I29: 50 | J29: 40 | K29: 70 | L29: 50 | M29: 60 | N29: 60 | O29: 50 | P29: 50 | Q29: 50 | R29: 10 | S29: [x]
